Service Area,Account Description,Creditor,Journal Date,Journal Reference,Total
Assurance,Miscellaneous Expenses,43033820 COSTA COFFEE,18/08/2015,5043,2
Children's Family Services,Miscellaneous Expenses,99 PLUS DISCOUNT MART,08/06/2015,4184,29.97
Children's Family Services,E19 - Learning Resources,99P STORES LTD,07/12/2015,6278,34.65
Children's Family Services,Equipment and Materials Purcha,99P STORES LTD,18/08/2015,5041,10.72
Children's Family Services,Subsistence,CHOPSTIX00000000000,21/05/2015,5750,33.7
Children's Family Services,Subsistence,DOMINOS PIZZA (BARN,21/05/2015,5752,25.97
Children's Family Services,Miscellaneous Expenses,GRO HM PASSPORT OFF,21/05/2015,5773,-9.25
Children's Family Services,Miscellaneous Expenses,KEMPSFORD HSE HTL00,21/05/2015,5774,79
Children's Family Services,Miscellaneous Expenses,TV LICENSING0000000,21/05/2015,5847,145.5
Children's Family Services,Other Transfer Payments to Soc,WWW.COMAPRETHEMANAN,21/05/2015,5845,49.95
Children's Family Services,Other Transfer Payments to Soc,WWW.COMAPRETHEMANAN,21/05/2015,5846,32.28
Children's Family Services,Miscellaneous Expenses,WWW.OXFORDSHIRE.GOV,21/05/2015,5844,11.5
Children's Family Services,Travelling Expenses,TFL OYST PHOTOCARD0,21/05/2015,5848,10
Assurance,Miscellaneous Expenses,A&Y LOCKSMITHS,03/02/2016,6943,5.83
Children's Service DSG,Equipment and Materials Purcha,AA MEDIA,23/10/2015,5731,480
Children's Family Services,Building Repairs & Maintenance,ABEL ALARM COMPANY LIM,11/11/2015,5971,99
Children's Family Services,Training,ABERYSTWYTH UNIVERSITY,19/08/2015,5067,233
Customer Support Group,Professional Services,ABLE GROUP UK,11/06/2015,4240,114
Children's Family Services,Building Repairs & Maintenance,AC LEIGH (NORWICH) LTD,08/02/2016,6986,333.33
Children's Family Services,Building Repairs & Maintenance,AC LEIGH (NORWICH) LTD,10/02/2016,7029,341.33
Children's Family Services,Building Repairs & Maintenance,AC LEIGH (NORWICH) LTD,21/12/2015,6466,10.3
Children's Family Services,Other Services,ACE GRAPHICS,28/10/2015,5798,55
Commissioning,Equipment and Materials Purcha,ADOBE  CREATIVE CLOUD,01/01/2016,6554,114.33
Commissioning,Equipment and Materials Purcha,ADOBE  CREATIVE CLOUD,01/02/2016,6892,114.33
Commissioning,Equipment and Materials Purcha,ADOBE  CREATIVE CLOUD,01/03/2016,7271,114.33
Commissioning,Equipment and Materials Purcha,ADOBE  CREATIVE CLOUD,01/10/2015,5502,114.33
Commissioning,Equipment and Materials Purcha,ADOBE  CREATIVE CLOUD,01/12/2015,6216,114.33
Commissioning,Equipment and Materials Purcha,ADOBE  CREATIVE CLOUD,02/11/2015,5850,114.33
Commissioning,Equipment and Materials Purcha,ADOBE  CREATIVE CLOUD,08/06/2015,4193,114.33
Commissioning,Equipment and Materials Purcha,ADOBE  CREATIVE CLOUD,08/07/2015,4596,114.33
Commissioning,Equipment and Materials Purcha,ADOBE  CREATIVE CLOUD,08/09/2015,5261,114.33
Commissioning,Equipment and Materials Purcha,ADOBE  CREATIVE CLOUD,10/08/2015,4937,114.33
Commissioning,Equipment and Materials Purcha,ADOBE  CREATIVE CLOUD,14/05/2015,3108,114.33
Children's Education & Skills,Software Licences & Support,ADOBE SYSTEMS SOFTWARE,09/12/2015,6326,7.19
Children's Family Services,Other Agencies - Third Party P,ADVANTIS CREDIT - MOTO,15/10/2015,5640,107.95
Children's Education & Skills,Equipment and Materials Purcha,AFE SERVICELINE,30/09/2015,5485,375
Children's Education & Skills,Equipment and Materials Repair,AFE SERVICELINE,01/05/2015,3037,479.84
Children's Education & Skills,Equipment and Materials Repair,AFE SERVICELINE,27/05/2015,3226,138.1
Children's Education & Skills,Equipment and Materials Repair,AFE SERVICELINE,29/07/2015,4832,268.86
Children's Education & Skills,Equipment and Materials Repair,AFE SERVICELINE,30/04/2015,3033,500
Children's Education & Skills,Equipment and Materials Repair,AFE SERVICELINE,30/09/2015,5491,374.49
Children's Education & Skills,Equipment and Materials Repair,AFE SERVICELINE0000,21/05/2015,5657,173.58
Children's Family Services,Water Services,AFFINITY WATER LTD,14/12/2015,6362,235.7
Commissioning,Equipment and Materials Purcha,AFFINITY WATER LTD,06/01/2016,6582,141.25
Children's Family Services,Equipment and Materials Purcha,AKZONOBEL,01/07/2015,4503,53.21
Adults and Communities,Training,ALDI,19/11/2015,6071,34.98
Children's Family Services,Other Services,ALL LONDON GLASS,06/08/2015,4908,156
Children's Education & Skills,Training,ALLSAFE,08/07/2015,4589,222
Adults and Communities,Training,AMAZON EU,11/01/2016,6621,133.34
Adults and Communities,Training,AMAZON EU,20/08/2015,5074,112.42
Adults and Communities,Training,AMAZON EU,20/08/2015,5075,112.42
Adults and Communities,Training,AMAZON EU,27/08/2015,5149,210.73
Adults and Communities,Training,AMAZON EU,31/08/2015,5189,-16.22
Children's Education & Skills,Stationery,AMAZON EU,09/11/2015,5947,25.34
Children's Education & Skills,Stationery,AMAZON EU,24/09/2015,5419,11.97
Children's Family Services,Books-CDs-Audio-Video,AMAZON EU,02/11/2015,5852,9.99
Children's Family Services,Books-CDs-Audio-Video,AMAZON EU,03/02/2016,6951,9.99
Children's Family Services,Books-CDs-Audio-Video,AMAZON EU,03/11/2015,5871,8.96
Children's Family Services,Books-CDs-Audio-Video,AMAZON EU,05/11/2015,5900,7.54
Children's Family Services,Books-CDs-Audio-Video,AMAZON EU,06/11/2015,5910,12.68
Children's Family Services,Books-CDs-Audio-Video,AMAZON EU,14/09/2015,5311,6.58
Children's Family Services,Books-CDs-Audio-Video,AMAZON EU,17/09/2015,5351,89
Children's Family Services,Books-CDs-Audio-Video,AMAZON EU,21/12/2015,6494,6.56
Children's Family Services,Books-CDs-Audio-Video,AMAZON EU,22/02/2016,7170,26.66
Children's Family Services,Books-CDs-Audio-Video,AMAZON EU,23/12/2015,6523,67.5
Children's Family Services,Books-CDs-Audio-Video,AMAZON EU,23/12/2015,6524,40.5
Children's Family Services,Books-CDs-Audio-Video,AMAZON EU,31/08/2015,5195,11.98
Children's Family Services,Building Repairs & Maintenance,AMAZON EU,02/10/2015,5522,39.32
Children's Family Services,Building Repairs & Maintenance,AMAZON EU,17/08/2015,5028,71.99
Children's Family Services,E19 - Learning Resources,AMAZON EU,02/11/2015,5844,17.46
Children's Family Services,E19 - Learning Resources,AMAZON EU,22/06/2015,4380,9.98
Children's Family Services,Education CFR Administrative S,AMAZON EU,02/10/2015,5512,25.18
Children's Family Services,Education CFR Administrative S,AMAZON EU,04/09/2015,5221,43.53
Children's Family Services,Education CFR Administrative S,AMAZON EU,15/07/2015,4669,86.87
Children's Family Services,Education CFR Administrative S,AMAZON EU,18/11/2015,6065,91.3
Children's Family Services,Education CFR Administrative S,AMAZON EU,22/06/2015,4381,4.07
Children's Family Services,Education CFR Other Occupation,AMAZON EU,02/10/2015,5513,23.33
Children's Family Services,Education CFR Other Occupation,AMAZON EU,23/11/2015,6094,15.82
Children's Family Services,Equipment and Materials Purcha,AMAZON EU,01/06/2015,3265,55.92
Children's Family Services,Equipment and Materials Purcha,AMAZON EU,01/06/2015,3268,22.67
Children's Family Services,Equipment and Materials Purcha,AMAZON EU,01/06/2015,3279,13.98
Children's Family Services,Equipment and Materials Purcha,AMAZON EU,01/10/2015,5505,13.95
Children's Family Services,Equipment and Materials Purcha,AMAZON EU,01/12/2015,6208,5.93
Children's Family Services,Equipment and Materials Purcha,AMAZON EU,02/07/2015,4512,-10.64
Children's Family Services,Equipment and Materials Purcha,AMAZON EU,08/07/2015,4600,233.98
Children's Family Services,Equipment and Materials Purcha,AMAZON EU,10/09/2015,5291,11.5
Children's Family Services,Equipment and Materials Purcha,AMAZON EU,13/07/2015,4638,309.98
Children's Family Services,Equipment and Materials Purcha,AMAZON EU,21/09/2015,5371,10.8
Children's Family Services,Equipment and Materials Purcha,AMAZON EU,21/09/2015,5376,751.75
Children's Family Services,Equipment and Materials Purcha,AMAZON EU,22/01/2016,6769,197.94
Children's Family Services,Equipment and Materials Purcha,AMAZON EU,22/06/2015,4366,91.27
Children's Family Services,Equipment and Materials Purcha,AMAZON EU,22/06/2015,4377,34.07
Children's Family Services,Equipment and Materials Purcha,AMAZON EU,22/10/2015,5728,12.95
Children's Family Services,Equipment and Materials Purcha,AMAZON EU,23/07/2015,4768,9.99
Children's Family Services,Equipment and Materials Purcha,AMAZON EU,23/09/2015,5409,751.75
Children's Family Services,Equipment and Materials Purcha,AMAZON EU,25/09/2015,5436,-751.75
Children's Family Services,Equipment and Materials Purcha,AMAZON EU,26/06/2015,4443,63.79
Children's Family Services,Equipment and Materials Purcha,AMAZON EU,26/10/2015,5751,80.46
Children's Family Services,Equipment and Materials Purcha,AMAZON EU,28/08/2015,5166,19.95
Children's Family Services,Equipment and Materials Purcha,AMAZON EU,29/09/2015,5469,49.99
Children's Family Services,Equipment and Materials Purcha,AMAZON EU,31/08/2015,5192,228.96
Children's Family Services,Equipment and Materials Purcha,AMAZON EU,31/08/2015,5193,250
Children's Family Services,Miscellaneous Expenses,AMAZON EU,03/07/2015,4543,21.32
Children's Family Services,Miscellaneous Expenses,AMAZON EU,07/07/2015,4569,7.12
Children's Family Services,Miscellaneous Expenses,AMAZON EU,17/06/2015,4316,20.3
Children's Family Services,Miscellaneous Expenses,AMAZON EU,21/09/2015,5379,17.24
Children's Family Services,Other Agencies - Third Party P,AMAZON EU,22/07/2015,4736,8.44
Children's Family Services,Other Services,AMAZON EU,03/06/2015,3306,26
Children's Family Services,Other Services,AMAZON EU,04/08/2015,4882,19.09
Children's Family Services,Other Services,AMAZON EU,05/08/2015,4886,7
Children's Family Services,Other Services,AMAZON EU,05/08/2015,4887,11.76
Children's Family Services,Other Services,AMAZON EU,05/08/2015,4893,2.99
Children's Family Services,Other Services,AMAZON EU,14/08/2015,5011,21.68
Children's Family Services,Other Services,AMAZON EU,22/07/2015,4732,39.67
Children's Family Services,Other Services,AMAZON EU,22/10/2015,5720,8.32
Children's Family Services,Other Services,AMAZON EU,22/10/2015,5722,34.88
Children's Family Services,Other Services,AMAZON EU,23/06/2015,4406,84.06
Children's Family Services,Other Services,AMAZON EU,23/06/2015,4407,17.49
Children's Family Services,Other Services,AMAZON EU,23/06/2015,4408,22.32
Children's Family Services,Other Services,AMAZON EU,26/01/2016,6819,30.96
Children's Family Services,Other Transfer Payments to Soc,AMAZON EU,21/12/2015,6473,59.99
Children's Family Services,Other Transfer Payments to Soc,AMAZON EU,25/09/2015,5430,51.28
Children's Family Services,Other Transfer Payments to Soc,AMAZON EU,29/07/2015,4827,24.57
Children's Family Services,Publications,AMAZON EU,11/06/2015,4230,12.31
Children's Family Services,Stationery,AMAZON EU,05/10/2015,5533,24.73
Children's Family Services,Stationery,AMAZON EU,08/02/2016,6993,20.67
Children's Family Services,Stationery,AMAZON EU,17/02/2016,7105,22.01
Children's Family Services,Stationery,AMAZON EU,20/07/2015,4695,230.72
Children's Family Services,Stationery,AMAZON EU,21/03/2016,7519,19.32
Children's Family Services,Stationery,AMAZON EU,30/07/2015,4842,17.73
Children's Service DSG,Books-CDs-Audio-Video,AMAZON EU,10/12/2015,6336,29.86
Children's Service DSG,Books-CDs-Audio-Video,AMAZON EU,21/10/2015,5703,21.85
Children's Service DSG,Books-CDs-Audio-Video,AMAZON EU,21/10/2015,5704,20.12
Children's Service DSG,Equipment and Materials Purcha,AMAZON EU,01/12/2015,6224,10.99
Children's Service DSG,Equipment and Materials Purcha,AMAZON EU,02/11/2015,5839,50.69
Children's Service DSG,Equipment and Materials Purcha,AMAZON EU,02/11/2015,5840,25.51
Children's Service DSG,Equipment and Materials Purcha,AMAZON EU,02/12/2015,6254,88.57
Children's Service DSG,Equipment and Materials Purcha,AMAZON EU,05/11/2015,5895,14.53
Children's Service DSG,Equipment and Materials Purcha,AMAZON EU,06/08/2015,4912,279.3
Children's Service DSG,Equipment and Materials Purcha,AMAZON EU,07/07/2015,4573,25.34
Children's Service DSG,Equipment and Materials Purcha,AMAZON EU,08/12/2015,6312,25
Children's Service DSG,Equipment and Materials Purcha,AMAZON EU,09/11/2015,5948,58.76
Children's Service DSG,Equipment and Materials Purcha,AMAZON EU,10/12/2015,6337,15.48
Children's Service DSG,Equipment and Materials Purcha,AMAZON EU,11/06/2015,4245,32
Children's Service DSG,Equipment and Materials Purcha,AMAZON EU,11/12/2015,6354,53.99
Children's Service DSG,Equipment and Materials Purcha,AMAZON EU,14/12/2015,6375,-3.99
Children's Service DSG,Equipment and Materials Purcha,AMAZON EU,14/12/2015,6376,-2
Children's Service DSG,Equipment and Materials Purcha,AMAZON EU,16/02/2016,7099,47.57
Children's Service DSG,Equipment and Materials Purcha,AMAZON EU,18/02/2016,7133,24.51
Children's Service DSG,Equipment and Materials Purcha,AMAZON EU,19/11/2015,6073,40.74
Children's Service DSG,Equipment and Materials Purcha,AMAZON EU,19/11/2015,6074,-50.69
Children's Service DSG,Equipment and Materials Purcha,AMAZON EU,22/10/2015,5724,17.84
Children's Service DSG,Equipment and Materials Purcha,AMAZON EU,22/10/2015,5725,205
Children's Service DSG,Equipment and Materials Purcha,AMAZON EU,23/11/2015,6108,38.97
Children's Service DSG,Equipment and Materials Purcha,AMAZON EU,23/11/2015,6113,19.99
Children's Service DSG,Equipment and Materials Purcha,AMAZON EU,24/02/2016,7195,26.38
Children's Service DSG,Equipment and Materials Purcha,AMAZON EU,26/11/2015,6156,75.87
Children's Service DSG,Equipment and Materials Purcha,AMAZON EU,27/11/2015,6165,112.77
Children's Service DSG,Equipment and Materials Purcha,AMAZON EU,28/03/2016,7611,13.99
Commissioning,Equipment and Materials Purcha,AMAZON EU,02/03/2016,7301,101.68
Commissioning,Equipment and Materials Purcha,AMAZON EU,06/01/2016,6587,55.94
Customer Support Group,Equipment and Materials Repair,AMAZON EU,17/08/2015,5030,103.99
Parking & Infrastructure,Equipment and Materials Purcha,AMAZON EU,01/10/2015,5497,159.67
Streetscene,Equipment and Materials Purcha,AMAZON EU,01/12/2015,6198,6.01
Streetscene,Equipment and Materials Purcha,AMAZON EU,01/12/2015,6229,24.04
Streetscene,Equipment and Materials Purcha,AMAZON EU,08/12/2015,6304,30.05
Streetscene,Equipment and Materials Purcha,AMAZON EU,08/12/2015,6305,6.01
Streetscene,Equipment and Materials Purcha,AMAZON EU,10/12/2015,6333,18.03
Streetscene,Equipment and Materials Purcha,AMAZON EU,13/08/2015,4992,13.41
Streetscene,Equipment and Materials Purcha,AMAZON EU,14/08/2015,5004,89.89
Streetscene,Equipment and Materials Purcha,AMAZON EU,15/06/2015,4284,26.12
Streetscene,Equipment and Materials Purcha,AMAZON EU,15/06/2015,4285,14.16
Streetscene,Equipment and Materials Purcha,AMAZON EU,15/06/2015,4292,44.02
Streetscene,Equipment and Materials Purcha,AMAZON EU,16/10/2015,5653,44.94
Streetscene,Equipment and Materials Purcha,AMAZON EU,17/08/2015,5027,7.68
Streetscene,Equipment and Materials Purcha,AMAZON EU,24/07/2015,4780,82.84
Streetscene,Equipment and Materials Purcha,AMAZON EU,24/08/2015,5092,7.69
Streetscene,Equipment and Materials Purcha,AMAZON EU,24/08/2015,5093,7.68
Streetscene,Equipment and Materials Purcha,AMAZON EU,30/11/2015,6186,12.02
Children's Family Services,E19 - Learning Resources,AMAZON PRIME,16/10/2015,5650,65.83
Children's Family Services,Education CFR Administrative S,AMAZON PRIME,22/10/2015,5713,-65.83
Children's Family Services,Other Services,AMAZON PRIME,01/12/2015,6219,79
Children's Family Services,Other Services,AMAZON PRIME,02/11/2015,5851,79
Streetscene,Equipment and Materials Purcha,AMAZON PRIME,16/11/2015,6026,79
Children's Education & Skills,Equipment and Materials Purcha,"AMAZON SVCS EUROPE,SAR",14/01/2016,6667,44.6
Children's Education & Skills,Stationery,"AMAZON SVCS EUROPE,SAR",08/10/2015,5579,2.7
Children's Family Services,Books-CDs-Audio-Video,"AMAZON SVCS EUROPE,SAR",01/02/2016,6901,12.7
Children's Family Services,Books-CDs-Audio-Video,"AMAZON SVCS EUROPE,SAR",07/09/2015,5240,4.77
Children's Family Services,Books-CDs-Audio-Video,"AMAZON SVCS EUROPE,SAR",08/01/2016,6608,11.67
Children's Family Services,Books-CDs-Audio-Video,"AMAZON SVCS EUROPE,SAR",12/05/2015,3103,2.81
Children's Family Services,Books-CDs-Audio-Video,"AMAZON SVCS EUROPE,SAR",15/01/2016,6683,6.68
Children's Family Services,Books-CDs-Audio-Video,"AMAZON SVCS EUROPE,SAR",17/11/2015,6049,10.17
Children's Family Services,Books-CDs-Audio-Video,"AMAZON SVCS EUROPE,SAR",18/05/2015,3135,15.13
Children's Family Services,Books-CDs-Audio-Video,"AMAZON SVCS EUROPE,SAR",18/08/2015,5046,4.8
Children's Family Services,Books-CDs-Audio-Video,"AMAZON SVCS EUROPE,SAR",22/10/2015,5727,16.64
Children's Family Services,Books-CDs-Audio-Video,"AMAZON SVCS EUROPE,SAR",25/02/2016,7222,4.54
Children's Family Services,Books-CDs-Audio-Video,"AMAZON SVCS EUROPE,SAR",28/08/2015,5175,8.3
Children's Family Services,Building Repairs & Maintenance,"AMAZON SVCS EUROPE,SAR",17/06/2015,4317,22.7
Children's Family Services,Building Repairs & Maintenance,"AMAZON SVCS EUROPE,SAR",18/06/2015,4337,6.95
Children's Family Services,E25 - Catering Supplies,"AMAZON SVCS EUROPE,SAR",08/06/2015,4168,9.13
Children's Family Services,E25 - Catering Supplies,"AMAZON SVCS EUROPE,SAR",30/06/2015,4495,5.48
Children's Family Services,Education CFR Administrative S,"AMAZON SVCS EUROPE,SAR",24/09/2015,5412,4.98
Children's Family Services,Equipment and Materials Purcha,"AMAZON SVCS EUROPE,SAR",01/05/2015,3041,11.62
Children's Family Services,Equipment and Materials Purcha,"AMAZON SVCS EUROPE,SAR",01/05/2015,3042,15.84
Children's Family Services,Equipment and Materials Purcha,"AMAZON SVCS EUROPE,SAR",01/05/2015,3043,9.98
Children's Family Services,Equipment and Materials Purcha,"AMAZON SVCS EUROPE,SAR",02/10/2015,5523,33.32
Children's Family Services,Equipment and Materials Purcha,"AMAZON SVCS EUROPE,SAR",04/05/2015,3050,4.16
Children's Family Services,Equipment and Materials Purcha,"AMAZON SVCS EUROPE,SAR",04/05/2015,3051,6.45
Children's Family Services,Equipment and Materials Purcha,"AMAZON SVCS EUROPE,SAR",05/06/2015,4155,48.09
Children's Family Services,Equipment and Materials Purcha,"AMAZON SVCS EUROPE,SAR",05/06/2015,4160,3.73
Children's Family Services,Equipment and Materials Purcha,"AMAZON SVCS EUROPE,SAR",07/09/2015,5247,7.32
Children's Family Services,Equipment and Materials Purcha,"AMAZON SVCS EUROPE,SAR",07/09/2015,5254,6.5
Children's Family Services,Equipment and Materials Purcha,"AMAZON SVCS EUROPE,SAR",08/05/2015,3082,62.43
Children's Family Services,Equipment and Materials Purcha,"AMAZON SVCS EUROPE,SAR",08/09/2015,5264,9.98
Children's Family Services,Equipment and Materials Purcha,"AMAZON SVCS EUROPE,SAR",09/11/2015,5940,4.9
Children's Family Services,Equipment and Materials Purcha,"AMAZON SVCS EUROPE,SAR",10/09/2015,5284,56.14
Children's Family Services,Equipment and Materials Purcha,"AMAZON SVCS EUROPE,SAR",11/08/2015,4960,63.75
Children's Family Services,Equipment and Materials Purcha,"AMAZON SVCS EUROPE,SAR",11/11/2015,5975,0.96
Children's Family Services,Equipment and Materials Purcha,"AMAZON SVCS EUROPE,SAR",12/05/2015,3102,37.46
Children's Family Services,Equipment and Materials Purcha,"AMAZON SVCS EUROPE,SAR",12/06/2015,4253,2.71
Children's Family Services,Equipment and Materials Purcha,"AMAZON SVCS EUROPE,SAR",15/06/2015,4291,19.37
Children's Family Services,Equipment and Materials Purcha,"AMAZON SVCS EUROPE,SAR",15/06/2015,4294,63.97
Children's Family Services,Equipment and Materials Purcha,"AMAZON SVCS EUROPE,SAR",17/06/2015,4327,4.75
Children's Family Services,Equipment and Materials Purcha,"AMAZON SVCS EUROPE,SAR",18/02/2016,7136,34.2
Children's Family Services,Equipment and Materials Purcha,"AMAZON SVCS EUROPE,SAR",18/06/2015,4346,166.62
Children's Family Services,Equipment and Materials Purcha,"AMAZON SVCS EUROPE,SAR",19/08/2015,5066,100
Children's Family Services,Equipment and Materials Purcha,"AMAZON SVCS EUROPE,SAR",22/06/2015,4382,32.92
Children's Family Services,Equipment and Materials Purcha,"AMAZON SVCS EUROPE,SAR",22/07/2015,4734,16.2
Children's Family Services,Equipment and Materials Purcha,"AMAZON SVCS EUROPE,SAR",24/07/2015,4787,5.49
Children's Family Services,Equipment and Materials Purcha,"AMAZON SVCS EUROPE,SAR",24/09/2015,5422,4.96
Children's Family Services,Equipment and Materials Purcha,"AMAZON SVCS EUROPE,SAR",25/05/2015,3207,46.6
Children's Family Services,Equipment and Materials Purcha,"AMAZON SVCS EUROPE,SAR",25/05/2015,3214,44.95
Children's Family Services,Equipment and Materials Purcha,"AMAZON SVCS EUROPE,SAR",26/05/2015,3219,7.52
Children's Family Services,Equipment and Materials Purcha,"AMAZON SVCS EUROPE,SAR",26/05/2015,3220,61.25
Children's Family Services,Equipment and Materials Purcha,"AMAZON SVCS EUROPE,SAR",26/08/2015,5137,20.98
Children's Family Services,Equipment and Materials Purcha,"AMAZON SVCS EUROPE,SAR",28/05/2015,3241,25.98
Children's Family Services,Equipment and Materials Purcha,"AMAZON SVCS EUROPE,SAR",28/05/2015,3251,28.57
Children's Family Services,Equipment and Materials Purcha,"AMAZON SVCS EUROPE,SAR",30/04/2015,3035,149.98
Children's Family Services,Other Agencies - Third Party P,"AMAZON SVCS EUROPE,SAR",22/07/2015,4737,8.99
Children's Family Services,Other Services,"AMAZON SVCS EUROPE,SAR",02/02/2016,6920,20.25
Children's Family Services,Other Services,"AMAZON SVCS EUROPE,SAR",05/08/2015,4890,5.19
Children's Family Services,Other Services,"AMAZON SVCS EUROPE,SAR",09/11/2015,5920,104.49
Children's Family Services,Other Services,"AMAZON SVCS EUROPE,SAR",10/07/2015,4619,8.32
Children's Family Services,Other Services,"AMAZON SVCS EUROPE,SAR",22/07/2015,4738,239.92
Children's Family Services,Other Services,"AMAZON SVCS EUROPE,SAR",23/06/2015,4401,12.98
Children's Family Services,Other Services,"AMAZON SVCS EUROPE,SAR",23/06/2015,4402,33.98
Children's Family Services,Other Services,"AMAZON SVCS EUROPE,SAR",23/06/2015,4405,23.4
Children's Family Services,Other Services,"AMAZON SVCS EUROPE,SAR",23/06/2015,4417,22.95
Children's Family Services,Other Services,"AMAZON SVCS EUROPE,SAR",25/05/2015,3209,11.64
Children's Family Services,Other Services,"AMAZON SVCS EUROPE,SAR",25/06/2015,4433,1.49
Children's Family Services,Other Services,"AMAZON SVCS EUROPE,SAR",27/05/2015,3229,3.45
Children's Family Services,Other Transfer Payments to Soc,"AMAZON SVCS EUROPE,SAR",24/06/2015,4421,0.93
Children's Family Services,Publications,"AMAZON SVCS EUROPE,SAR",05/11/2015,5891,6.99
Children's Family Services,Stationery,"AMAZON SVCS EUROPE,SAR",05/10/2015,5535,7.72
Children's Family Services,Stationery,"AMAZON SVCS EUROPE,SAR",12/06/2015,4260,12
Children's Family Services,Stationery,"AMAZON SVCS EUROPE,SAR",13/05/2015,3105,41.94
Children's Family Services,Stationery,"AMAZON SVCS EUROPE,SAR",25/11/2015,6139,9.66
Children's Family Services,Stationery,"AMAZON SVCS EUROPE,SAR",26/02/2016,7231,36.1
Children's Family Services,Stationery,"AMAZON SVCS EUROPE,SAR",30/06/2015,4482,170
Children's Service DSG,Equipment and Materials Purcha,"AMAZON SVCS EUROPE,SAR",07/08/2015,4921,295.99
Commissioning,Equipment and Materials Purcha,"AMAZON SVCS EUROPE,SAR",28/09/2015,5458,17.42
Streetscene,Equipment and Materials Purcha,"AMAZON SVCS EUROPE,SAR",13/08/2015,4990,87.5
Streetscene,Equipment and Materials Purcha,"AMAZON SVCS EUROPE,SAR",13/08/2015,4991,2.49
Streetscene,Equipment and Materials Purcha,"AMAZON SVCS EUROPE,SAR",14/08/2015,5005,12.25
Streetscene,Equipment and Materials Purcha,"AMAZON SVCS EUROPE,SAR",17/06/2015,4328,3.26
Children's Family Services,Books-CDs-Audio-Video,Amazon Svcs EuropeS,21/05/2015,5756,23.85
Children's Family Services,Books-CDs-Audio-Video,Amazon Svcs EuropeS,21/05/2015,5757,19.25
Children's Family Services,Books-CDs-Audio-Video,Amazon Svcs EuropeS,21/05/2015,5758,21.75
Children's Family Services,Books-CDs-Audio-Video,Amazon Svcs EuropeS,21/05/2015,5759,21.5
Children's Family Services,Books-CDs-Audio-Video,Amazon Svcs EuropeS,21/05/2015,5760,84.95
Children's Family Services,Books-CDs-Audio-Video,Amazon Svcs EuropeS,21/05/2015,5762,34.78
Children's Family Services,Books-CDs-Audio-Video,Amazon Svcs EuropeS,21/05/2015,5763,20.76
Children's Family Services,Books-CDs-Audio-Video,Amazon Svcs EuropeS,21/05/2015,5764,39.98
Children's Family Services,Books-CDs-Audio-Video,Amazon Svcs EuropeS,21/05/2015,5765,14.63
Children's Family Services,Books-CDs-Audio-Video,Amazon Svcs EuropeS,21/05/2015,5766,11.23
Children's Family Services,Books-CDs-Audio-Video,Amazon Svcs EuropeS,21/05/2015,5767,30.69
Children's Family Services,Books-CDs-Audio-Video,Amazon Svcs EuropeS,21/05/2015,5768,29
Children's Family Services,Books-CDs-Audio-Video,Amazon Svcs EuropeS,21/05/2015,5769,9.68
Children's Family Services,Books-CDs-Audio-Video,Amazon Svcs EuropeS,21/05/2015,5770,12.8
Children's Family Services,Books-CDs-Audio-Video,Amazon Svcs EuropeS,21/05/2015,5761,58.64
Children's Family Services,Books-CDs-Audio-Video,Amazon Svcs EuropeS,21/05/2015,5835,32.46
Children's Family Services,Books-CDs-Audio-Video,Amazon Svcs EuropeS,21/05/2015,5838,11.45
Children's Family Services,Books-CDs-Audio-Video,Amazon Svcs EuropeS,21/05/2015,5786,2.74
Children's Family Services,Books-CDs-Audio-Video,Amazon Svcs EuropeS,21/05/2015,5789,3.12
Children's Family Services,Books-CDs-Audio-Video,Amazon Svcs EuropeS,21/05/2015,5790,3.76
Children's Family Services,Books-CDs-Audio-Video,Amazon Svcs EuropeS,21/05/2015,5795,3.67
Children's Family Services,Books-CDs-Audio-Video,Amazon Svcs EuropeS,21/05/2015,5796,21.99
Children's Family Services,Books-CDs-Audio-Video,Amazon Svcs EuropeS,21/05/2015,5694,5.55
Children's Family Services,Books-CDs-Audio-Video,Amazon Svcs EuropeS,21/05/2015,5695,3.3
Children's Family Services,Books-CDs-Audio-Video,Amazon Svcs EuropeS,21/05/2015,5696,2.81
Children's Family Services,Equipment and Materials Purcha,Amazon Svcs EuropeS,21/05/2015,5809,27.2
Children's Family Services,Equipment and Materials Purcha,Amazon Svcs EuropeS,21/05/2015,5712,44.95
Children's Family Services,Equipment and Materials Purcha,Amazon UK Marketpla,21/05/2015,5704,1.75
Adults and Communities,Training,AMAZON UK MARKETPLACE,09/02/2016,7016,15.98
Adults and Communities,Training,AMAZON UK MARKETPLACE,10/02/2016,7035,46.45
Adults and Communities,Training,AMAZON UK MARKETPLACE,19/08/2015,5065,77
Children's Education & Skills,Consumable Catering Supplies,AMAZON UK MARKETPLACE,29/12/2015,6546,61.8
Children's Education & Skills,Equipment and Materials Purcha,AMAZON UK MARKETPLACE,14/01/2016,6668,45.41
Children's Education & Skills,Equipment and Materials Purcha,AMAZON UK MARKETPLACE,29/10/2015,5807,10.25
Children's Education & Skills,Miscellaneous Expenses,AMAZON UK MARKETPLACE,18/08/2015,5045,23.97
Children's Education & Skills,Stationery,AMAZON UK MARKETPLACE,10/12/2015,6331,51.4
Children's Education & Skills,Stationery,AMAZON UK MARKETPLACE,16/10/2015,5659,48.46
Children's Education & Skills,Stationery,AMAZON UK MARKETPLACE,29/10/2015,5808,42.48
Children's Family Services,Books-CDs-Audio-Video,AMAZON UK MARKETPLACE,01/02/2016,6885,27.96
Children's Family Services,Books-CDs-Audio-Video,AMAZON UK MARKETPLACE,01/02/2016,6886,92.97
Children's Family Services,Books-CDs-Audio-Video,AMAZON UK MARKETPLACE,01/02/2016,6887,27.96
Children's Family Services,Books-CDs-Audio-Video,AMAZON UK MARKETPLACE,02/02/2016,6912,29.97
Children's Family Services,Books-CDs-Audio-Video,AMAZON UK MARKETPLACE,02/02/2016,6913,39.96
Children's Family Services,Books-CDs-Audio-Video,AMAZON UK MARKETPLACE,04/02/2016,6965,3.65
Children's Family Services,Books-CDs-Audio-Video,AMAZON UK MARKETPLACE,06/11/2015,5911,6.97
Children's Family Services,Books-CDs-Audio-Video,AMAZON UK MARKETPLACE,08/01/2016,6607,11.79
Children's Family Services,Books-CDs-Audio-Video,AMAZON UK MARKETPLACE,08/10/2015,5582,39.93
Children's Family Services,Books-CDs-Audio-Video,AMAZON UK MARKETPLACE,10/12/2015,6341,6.44
Children's Family Services,Books-CDs-Audio-Video,AMAZON UK MARKETPLACE,11/01/2016,6631,26.21
Children's Family Services,Books-CDs-Audio-Video,AMAZON UK MARKETPLACE,11/11/2015,5979,5.24
Children's Family Services,Books-CDs-Audio-Video,AMAZON UK MARKETPLACE,12/11/2015,6001,2.81
Children's Family Services,Books-CDs-Audio-Video,AMAZON UK MARKETPLACE,18/09/2015,5357,16.13
Children's Family Services,Books-CDs-Audio-Video,AMAZON UK MARKETPLACE,19/10/2015,5674,7.98
Children's Family Services,Books-CDs-Audio-Video,AMAZON UK MARKETPLACE,21/08/2015,5085,16.94
Children's Family Services,Books-CDs-Audio-Video,AMAZON UK MARKETPLACE,21/12/2015,6493,1.9
Children's Family Services,Books-CDs-Audio-Video,AMAZON UK MARKETPLACE,26/11/2015,6158,10.98
Children's Family Services,Books-CDs-Audio-Video,AMAZON UK MARKETPLACE,27/08/2015,5159,21.78
Children's Family Services,Books-CDs-Audio-Video,AMAZON UK MARKETPLACE,27/10/2015,5791,8.46
Children's Family Services,Books-CDs-Audio-Video,AMAZON UK MARKETPLACE,28/08/2015,5174,9.79
Children's Family Services,Building Repairs & Maintenance,AMAZON UK MARKETPLACE,07/10/2015,5556,4.22
Children's Family Services,Building Repairs & Maintenance,AMAZON UK MARKETPLACE,16/10/2015,5651,33.17
Children's Family Services,Building Repairs & Maintenance,AMAZON UK MARKETPLACE,17/06/2015,4311,6.18
Children's Family Services,Building Repairs & Maintenance,AMAZON UK MARKETPLACE,17/06/2015,4315,74.95
Children's Family Services,Building Repairs & Maintenance,AMAZON UK MARKETPLACE,18/01/2016,6695,40.99
Children's Family Services,Building Repairs & Maintenance,AMAZON UK MARKETPLACE,22/07/2015,4726,28.47
Children's Family Services,Building Repairs & Maintenance,AMAZON UK MARKETPLACE,28/10/2015,5793,18.68
Children's Family Services,Cleaning and domestic material,AMAZON UK MARKETPLACE,10/02/2016,7034,14.99
Children's Family Services,Cleaning and domestic material,AMAZON UK MARKETPLACE,26/02/2016,7229,24
Children's Family Services,Cleaning and domestic material,AMAZON UK MARKETPLACE,29/09/2015,5471,27.98
Children's Family Services,E19 - Learning Resources,AMAZON UK MARKETPLACE,02/03/2016,7283,5.41
Children's Family Services,E19 - Learning Resources,AMAZON UK MARKETPLACE,02/07/2015,4511,1.06
Children's Family Services,E19 - Learning Resources,AMAZON UK MARKETPLACE,02/11/2015,5824,0.93
Children's Family Services,E19 - Learning Resources,AMAZON UK MARKETPLACE,02/11/2015,5827,4.95
Children's Family Services,E19 - Learning Resources,AMAZON UK MARKETPLACE,03/03/2016,7309,13.29
Children's Family Services,E19 - Learning Resources,AMAZON UK MARKETPLACE,03/03/2016,7310,24.13
Children's Family Services,E19 - Learning Resources,AMAZON UK MARKETPLACE,03/03/2016,7311,24.33
Children's Family Services,E19 - Learning Resources,AMAZON UK MARKETPLACE,03/11/2015,5870,10.66
Children's Family Services,E19 - Learning Resources,AMAZON UK MARKETPLACE,06/07/2015,4548,2.17
Children's Family Services,E19 - Learning Resources,AMAZON UK MARKETPLACE,12/02/2016,7067,4.4
Children's Family Services,E19 - Learning Resources,AMAZON UK MARKETPLACE,15/10/2015,5648,0.75
Children's Family Services,E19 - Learning Resources,AMAZON UK MARKETPLACE,16/02/2016,7089,45.58
Children's Family Services,E19 - Learning Resources,AMAZON UK MARKETPLACE,17/09/2015,5344,6.55
Children's Family Services,E19 - Learning Resources,AMAZON UK MARKETPLACE,18/11/2015,6064,1.73
Children's Family Services,E19 - Learning Resources,AMAZON UK MARKETPLACE,24/09/2015,5413,14.33
Children's Family Services,E19 - Learning Resources,AMAZON UK MARKETPLACE,24/09/2015,5414,65.63
Children's Family Services,E19 - Learning Resources,AMAZON UK MARKETPLACE,24/09/2015,5415,13.55
Children's Family Services,E19 - Learning Resources,AMAZON UK MARKETPLACE,27/01/2016,6827,54.15
Children's Family Services,E19 - Learning Resources,AMAZON UK MARKETPLACE,27/01/2016,6828,21.05
Children's Family Services,E25 - Catering Supplies,AMAZON UK MARKETPLACE,22/06/2015,4375,5.83
Children's Family Services,Education CFR Administrative S,AMAZON UK MARKETPLACE,02/03/2016,7284,18.32
Children's Family Services,Education CFR Administrative S,AMAZON UK MARKETPLACE,03/03/2016,7313,5.48
Children's Family Services,Education CFR Administrative S,AMAZON UK MARKETPLACE,03/09/2015,5207,9.96
Children's Family Services,Education CFR Administrative S,AMAZON UK MARKETPLACE,17/09/2015,5344,11.7
Children's Family Services,Education CFR Administrative S,AMAZON UK MARKETPLACE,25/02/2016,7199,2.48
Children's Family Services,Education CFR Other Occupation,AMAZON UK MARKETPLACE,02/03/2016,7282,10.21
Children's Family Services,Education CFR Other Occupation,AMAZON UK MARKETPLACE,03/03/2016,7312,17.2
Children's Family Services,Education CFR Other Occupation,AMAZON UK MARKETPLACE,04/11/2015,5875,6.63
Children's Family Services,Equipment and Materials Purcha,AMAZON UK MARKETPLACE,01/02/2016,6888,12.35
Children's Family Services,Equipment and Materials Purcha,AMAZON UK MARKETPLACE,01/02/2016,6889,6.94
Children's Family Services,Equipment and Materials Purcha,AMAZON UK MARKETPLACE,01/03/2016,7265,13.45
Children's Family Services,Equipment and Materials Purcha,AMAZON UK MARKETPLACE,01/12/2015,6199,14.14
Children's Family Services,Equipment and Materials Purcha,AMAZON UK MARKETPLACE,01/12/2015,6200,19.95
Children's Family Services,Equipment and Materials Purcha,AMAZON UK MARKETPLACE,01/12/2015,6201,24.99
Children's Family Services,Equipment and Materials Purcha,AMAZON UK MARKETPLACE,01/12/2015,6202,13.38
Children's Family Services,Equipment and Materials Purcha,AMAZON UK MARKETPLACE,01/12/2015,6203,4.21
Children's Family Services,Equipment and Materials Purcha,AMAZON UK MARKETPLACE,01/12/2015,6204,4.53
Children's Family Services,Equipment and Materials Purcha,AMAZON UK MARKETPLACE,01/12/2015,6205,18.12
Children's Family Services,Equipment and Materials Purcha,AMAZON UK MARKETPLACE,01/12/2015,6206,31.87
Children's Family Services,Equipment and Materials Purcha,AMAZON UK MARKETPLACE,01/12/2015,6207,29.97
Children's Family Services,Equipment and Materials Purcha,AMAZON UK MARKETPLACE,01/12/2015,6210,28.69
Children's Family Services,Equipment and Materials Purcha,AMAZON UK MARKETPLACE,01/12/2015,6211,2.89
Children's Family Services,Equipment and Materials Purcha,AMAZON UK MARKETPLACE,01/12/2015,6212,54.76
Children's Family Services,Equipment and Materials Purcha,AMAZON UK MARKETPLACE,01/12/2015,6213,6.75
Children's Family Services,Equipment and Materials Purcha,AMAZON UK MARKETPLACE,01/12/2015,6214,55.13
Children's Family Services,Equipment and Materials Purcha,AMAZON UK MARKETPLACE,01/12/2015,6215,14.97
Children's Family Services,Equipment and Materials Purcha,AMAZON UK MARKETPLACE,01/12/2015,6230,20.1
Children's Family Services,Equipment and Materials Purcha,AMAZON UK MARKETPLACE,01/12/2015,6231,22.33
Children's Family Services,Equipment and Materials Purcha,AMAZON UK MARKETPLACE,02/02/2016,6927,29.92
Children's Family Services,Equipment and Materials Purcha,AMAZON UK MARKETPLACE,02/02/2016,6928,32.97
Children's Family Services,Equipment and Materials Purcha,AMAZON UK MARKETPLACE,02/10/2015,5524,42.47
Children's Family Services,Equipment and Materials Purcha,AMAZON UK MARKETPLACE,02/11/2015,5836,3.32
Children's Family Services,Equipment and Materials Purcha,AMAZON UK MARKETPLACE,02/12/2015,6239,55.52
Children's Family Services,Equipment and Materials Purcha,AMAZON UK MARKETPLACE,02/12/2015,6240,24.04
Children's Family Services,Equipment and Materials Purcha,AMAZON UK MARKETPLACE,03/09/2015,5219,23.08
Children's Family Services,Equipment and Materials Purcha,AMAZON UK MARKETPLACE,04/09/2015,5228,10.92
Children's Family Services,Equipment and Materials Purcha,AMAZON UK MARKETPLACE,04/12/2015,6267,7.49
Children's Family Services,Equipment and Materials Purcha,AMAZON UK MARKETPLACE,05/05/2015,3054,6.62
Children's Family Services,Equipment and Materials Purcha,AMAZON UK MARKETPLACE,05/06/2015,4156,3.58
Children's Family Services,Equipment and Materials Purcha,AMAZON UK MARKETPLACE,05/06/2015,4157,5.94
Children's Family Services,Equipment and Materials Purcha,AMAZON UK MARKETPLACE,05/06/2015,4158,8.9
Children's Family Services,Equipment and Materials Purcha,AMAZON UK MARKETPLACE,05/06/2015,4159,3.52
Children's Family Services,Equipment and Materials Purcha,AMAZON UK MARKETPLACE,06/01/2016,6579,10.35
Children's Family Services,Equipment and Materials Purcha,AMAZON UK MARKETPLACE,06/01/2016,6580,95.9
Children's Family Services,Equipment and Materials Purcha,AMAZON UK MARKETPLACE,07/09/2015,5243,4.96
Children's Family Services,Equipment and Materials Purcha,AMAZON UK MARKETPLACE,07/09/2015,5244,1.1
Children's Family Services,Equipment and Materials Purcha,AMAZON UK MARKETPLACE,07/09/2015,5248,21.03
Children's Family Services,Equipment and Materials Purcha,AMAZON UK MARKETPLACE,07/09/2015,5249,13.4
Children's Family Services,Equipment and Materials Purcha,AMAZON UK MARKETPLACE,07/09/2015,5253,5
Children's Family Services,Equipment and Materials Purcha,AMAZON UK MARKETPLACE,07/09/2015,5255,10
Children's Family Services,Equipment and Materials Purcha,AMAZON UK MARKETPLACE,07/10/2015,5563,13.75
Children's Family Services,Equipment and Materials Purcha,AMAZON UK MARKETPLACE,07/12/2015,6282,9.96
Children's Family Services,Equipment and Materials Purcha,AMAZON UK MARKETPLACE,07/12/2015,6298,14.98
Children's Family Services,Equipment and Materials Purcha,AMAZON UK MARKETPLACE,08/01/2016,6609,66.5
Children's Family Services,Equipment and Materials Purcha,AMAZON UK MARKETPLACE,08/06/2015,4186,153.98
Children's Family Services,Equipment and Materials Purcha,AMAZON UK MARKETPLACE,08/07/2015,4601,-153.98
Children's Family Services,Equipment and Materials Purcha,AMAZON UK MARKETPLACE,09/11/2015,5928,2.37
Children's Family Services,Equipment and Materials Purcha,AMAZON UK MARKETPLACE,09/11/2015,5930,3.7
Children's Family Services,Equipment and Materials Purcha,AMAZON UK MARKETPLACE,09/11/2015,5931,15.33
Children's Family Services,Equipment and Materials Purcha,AMAZON UK MARKETPLACE,09/11/2015,5932,1.7
Children's Family Services,Equipment and Materials Purcha,AMAZON UK MARKETPLACE,09/11/2015,5934,31.35
Children's Family Services,Equipment and Materials Purcha,AMAZON UK MARKETPLACE,09/11/2015,5935,2.08
Children's Family Services,Equipment and Materials Purcha,AMAZON UK MARKETPLACE,09/11/2015,5936,6.15
Children's Family Services,Equipment and Materials Purcha,AMAZON UK MARKETPLACE,09/11/2015,5937,4.49
Children's Family Services,Equipment and Materials Purcha,AMAZON UK MARKETPLACE,09/11/2015,5938,1.22
Children's Family Services,Equipment and Materials Purcha,AMAZON UK MARKETPLACE,09/11/2015,5939,1.66
Children's Family Services,Equipment and Materials Purcha,AMAZON UK MARKETPLACE,09/11/2015,5941,6.61
Children's Family Services,Equipment and Materials Purcha,AMAZON UK MARKETPLACE,09/11/2015,5942,2.24
Children's Family Services,Equipment and Materials Purcha,AMAZON UK MARKETPLACE,09/11/2015,5943,4.25
Children's Family Services,Equipment and Materials Purcha,AMAZON UK MARKETPLACE,09/11/2015,5944,1.58
Children's Family Services,Equipment and Materials Purcha,AMAZON UK MARKETPLACE,09/11/2015,5945,4.99
Children's Family Services,Equipment and Materials Purcha,AMAZON UK MARKETPLACE,09/11/2015,5946,1.87
Children's Family Services,Equipment and Materials Purcha,AMAZON UK MARKETPLACE,09/12/2015,6324,4.57
Children's Family Services,Equipment and Materials Purcha,AMAZON UK MARKETPLACE,10/02/2016,7033,19.49
Children's Family Services,Equipment and Materials Purcha,AMAZON UK MARKETPLACE,10/09/2015,5285,13.17
Children's Family Services,Equipment and Materials Purcha,AMAZON UK MARKETPLACE,10/09/2015,5286,14.58
Children's Family Services,Equipment and Materials Purcha,AMAZON UK MARKETPLACE,10/09/2015,5287,20.01
Children's Family Services,Equipment and Materials Purcha,AMAZON UK MARKETPLACE,10/11/2015,5953,1.82
Children's Family Services,Equipment and Materials Purcha,AMAZON UK MARKETPLACE,10/11/2015,5954,11.12
Children's Family Services,Equipment and Materials Purcha,AMAZON UK MARKETPLACE,10/11/2015,5955,3.13
Children's Family Services,Equipment and Materials Purcha,AMAZON UK MARKETPLACE,10/11/2015,5956,49.98
Children's Family Services,Equipment and Materials Purcha,AMAZON UK MARKETPLACE,10/11/2015,5957,93.61
Children's Family Services,Equipment and Materials Purcha,AMAZON UK MARKETPLACE,10/11/2015,5958,11.87
Children's Family Services,Equipment and Materials Purcha,AMAZON UK MARKETPLACE,10/11/2015,5960,3.25
Children's Family Services,Equipment and Materials Purcha,AMAZON UK MARKETPLACE,11/06/2015,4229,56.57
Children's Family Services,Equipment and Materials Purcha,AMAZON UK MARKETPLACE,11/06/2015,4241,5.46
Children's Family Services,Equipment and Materials Purcha,AMAZON UK MARKETPLACE,11/11/2015,5972,14.5
Children's Family Services,Equipment and Materials Purcha,AMAZON UK MARKETPLACE,11/11/2015,5973,0.91
Children's Family Services,Equipment and Materials Purcha,AMAZON UK MARKETPLACE,11/11/2015,5974,36.52
Children's Family Services,Equipment and Materials Purcha,AMAZON UK MARKETPLACE,11/11/2015,5976,4.17
Children's Family Services,Equipment and Materials Purcha,AMAZON UK MARKETPLACE,11/12/2015,6345,124.98
Children's Family Services,Equipment and Materials Purcha,AMAZON UK MARKETPLACE,11/12/2015,6348,-5.98
Children's Family Services,Equipment and Materials Purcha,AMAZON UK MARKETPLACE,11/12/2015,6349,-4.35
Children's Family Services,Equipment and Materials Purcha,AMAZON UK MARKETPLACE,12/06/2015,4254,25.75
Children's Family Services,Equipment and Materials Purcha,AMAZON UK MARKETPLACE,12/06/2015,4255,2.46
Children's Family Services,Equipment and Materials Purcha,AMAZON UK MARKETPLACE,12/08/2015,4976,11.55
Children's Family Services,Equipment and Materials Purcha,AMAZON UK MARKETPLACE,12/08/2015,4977,34.97
Children's Family Services,Equipment and Materials Purcha,AMAZON UK MARKETPLACE,14/08/2015,5013,13.5
Children's Family Services,Equipment and Materials Purcha,AMAZON UK MARKETPLACE,14/10/2015,5629,28.98
Children's Family Services,Equipment and Materials Purcha,AMAZON UK MARKETPLACE,15/01/2016,6679,26.99
Children's Family Services,Equipment and Materials Purcha,AMAZON UK MARKETPLACE,15/06/2015,4290,49.5
Children's Family Services,Equipment and Materials Purcha,AMAZON UK MARKETPLACE,16/03/2016,7472,54.16
Children's Family Services,Equipment and Materials Purcha,AMAZON UK MARKETPLACE,16/12/2015,6413,25.98
Children's Family Services,Equipment and Materials Purcha,AMAZON UK MARKETPLACE,17/02/2016,7103,109.94
Children's Family Services,Equipment and Materials Purcha,AMAZON UK MARKETPLACE,18/01/2016,6695,22.17
Children's Family Services,Equipment and Materials Purcha,AMAZON UK MARKETPLACE,18/06/2015,4345,7.15
Children's Family Services,Equipment and Materials Purcha,AMAZON UK MARKETPLACE,19/01/2016,6720,32.97
Children's Family Services,Equipment and Materials Purcha,AMAZON UK MARKETPLACE,19/08/2015,5068,312.35
Children's Family Services,Equipment and Materials Purcha,AMAZON UK MARKETPLACE,20/11/2015,6089,20.03
Children's Family Services,Equipment and Materials Purcha,AMAZON UK MARKETPLACE,21/12/2015,6486,6.99
Children's Family Services,Equipment and Materials Purcha,AMAZON UK MARKETPLACE,21/12/2015,6487,5.99
Children's Family Services,Equipment and Materials Purcha,AMAZON UK MARKETPLACE,22/06/2015,4370,11.27
Children's Family Services,Equipment and Materials Purcha,AMAZON UK MARKETPLACE,22/07/2015,4733,2.48
Children's Family Services,Equipment and Materials Purcha,AMAZON UK MARKETPLACE,22/07/2015,4735,1.25
Children's Family Services,Equipment and Materials Purcha,AMAZON UK MARKETPLACE,22/09/2015,5392,-8.93
Children's Family Services,Equipment and Materials Purcha,AMAZON UK MARKETPLACE,23/03/2016,7561,38.48
Children's Family Services,Equipment and Materials Purcha,AMAZON UK MARKETPLACE,23/07/2015,4754,29.98
Children's Family Services,Equipment and Materials Purcha,AMAZON UK MARKETPLACE,23/07/2015,4766,13.39
Children's Family Services,Equipment and Materials Purcha,AMAZON UK MARKETPLACE,23/07/2015,4767,41.86
Children's Family Services,Equipment and Materials Purcha,AMAZON UK MARKETPLACE,24/07/2015,4781,16.63
Children's Family Services,Equipment and Materials Purcha,AMAZON UK MARKETPLACE,24/07/2015,4784,15.94
Children's Family Services,Equipment and Materials Purcha,AMAZON UK MARKETPLACE,24/07/2015,4786,1.37
Children's Family Services,Equipment and Materials Purcha,AMAZON UK MARKETPLACE,24/09/2015,5421,9.15
Children's Family Services,Equipment and Materials Purcha,AMAZON UK MARKETPLACE,24/11/2015,6131,5.98
Children's Family Services,Equipment and Materials Purcha,AMAZON UK MARKETPLACE,25/01/2016,6789,7.49
Children's Family Services,Equipment and Materials Purcha,AMAZON UK MARKETPLACE,25/09/2015,5441,8.11
Children's Family Services,Equipment and Materials Purcha,AMAZON UK MARKETPLACE,25/11/2015,6141,7.17
Children's Family Services,Equipment and Materials Purcha,AMAZON UK MARKETPLACE,25/11/2015,6142,4.35
Children's Family Services,Equipment and Materials Purcha,AMAZON UK MARKETPLACE,26/01/2016,6811,7.88
Children's Family Services,Equipment and Materials Purcha,AMAZON UK MARKETPLACE,26/01/2016,6812,16.34
Children's Family Services,Equipment and Materials Purcha,AMAZON UK MARKETPLACE,26/11/2015,6153,2.99
Children's Family Services,Equipment and Materials Purcha,AMAZON UK MARKETPLACE,27/05/2015,3230,11.9
Children's Family Services,Equipment and Materials Purcha,AMAZON UK MARKETPLACE,27/08/2015,5150,25.33
Children's Family Services,Equipment and Materials Purcha,AMAZON UK MARKETPLACE,28/01/2016,6848,2.66
Children's Family Services,Equipment and Materials Purcha,AMAZON UK MARKETPLACE,28/01/2016,6852,42.73
Children's Family Services,Equipment and Materials Purcha,AMAZON UK MARKETPLACE,28/05/2015,3242,69.99
Children's Family Services,Equipment and Materials Purcha,AMAZON UK MARKETPLACE,28/10/2015,5802,12.99
Children's Family Services,Equipment and Materials Purcha,AMAZON UK MARKETPLACE,29/01/2016,6866,81.27
Children's Family Services,Equipment and Materials Purcha,AMAZON UK MARKETPLACE,30/07/2015,4841,14.15
Children's Family Services,Equipment and Materials Purcha,AMAZON UK MARKETPLACE,30/11/2015,6190,78.92
Children's Family Services,Equipment and Materials Purcha,AMAZON UK MARKETPLACE,30/11/2015,6191,71.58
Children's Family Services,Equipment and Materials Purcha,AMAZON UK MARKETPLACE,30/11/2015,6192,4.12
Children's Family Services,Equipment and Materials Purcha,AMAZON UK MARKETPLACE,31/07/2015,4854,19.95
Children's Family Services,Equipment and Materials Purcha,AMAZON UK MARKETPLACE,31/08/2015,5182,7.99
Children's Family Services,Equipment and Materials Purcha,AMAZON UK MARKETPLACE,31/08/2015,5188,2.99
Children's Family Services,Food Costs,AMAZON UK MARKETPLACE,19/08/2015,5050,13.98
Children's Family Services,Miscellaneous Expenses,AMAZON UK MARKETPLACE,08/07/2015,4598,32.93
Children's Family Services,Miscellaneous Expenses,AMAZON UK MARKETPLACE,10/08/2015,4942,49.5
Children's Family Services,Miscellaneous Expenses,AMAZON UK MARKETPLACE,14/10/2015,5627,201.31
Children's Family Services,Miscellaneous Expenses,AMAZON UK MARKETPLACE,30/12/2015,6549,43.94
Children's Family Services,Other Services,AMAZON UK MARKETPLACE,02/02/2016,6916,22.92
Children's Family Services,Other Services,AMAZON UK MARKETPLACE,02/02/2016,6921,12.21
Children's Family Services,Other Services,AMAZON UK MARKETPLACE,02/03/2016,7305,11.1
Children's Family Services,Other Services,AMAZON UK MARKETPLACE,02/09/2015,5199,54.44
Children's Family Services,Other Services,AMAZON UK MARKETPLACE,02/09/2015,5205,3.99
Children's Family Services,Other Services,AMAZON UK MARKETPLACE,02/10/2015,5518,19.98
Children's Family Services,Other Services,AMAZON UK MARKETPLACE,02/10/2015,5519,23.57
Children's Family Services,Other Services,AMAZON UK MARKETPLACE,02/10/2015,5520,40.6
Children's Family Services,Other Services,AMAZON UK MARKETPLACE,02/10/2015,5521,2.79
Children's Family Services,Other Services,AMAZON UK MARKETPLACE,03/02/2016,6944,3.82
Children's Family Services,Other Services,AMAZON UK MARKETPLACE,03/09/2015,5212,2.19
Children's Family Services,Other Services,AMAZON UK MARKETPLACE,05/02/2016,6972,9.34
Children's Family Services,Other Services,AMAZON UK MARKETPLACE,05/02/2016,6973,7.98
Children's Family Services,Other Services,AMAZON UK MARKETPLACE,05/08/2015,4891,7
Children's Family Services,Other Services,AMAZON UK MARKETPLACE,05/08/2015,4892,16.16
Children's Family Services,Other Services,AMAZON UK MARKETPLACE,06/08/2015,4907,9
Children's Family Services,Other Services,AMAZON UK MARKETPLACE,07/10/2015,5567,23.8
Children's Family Services,Other Services,AMAZON UK MARKETPLACE,08/02/2016,6991,18.78
Children's Family Services,Other Services,AMAZON UK MARKETPLACE,08/02/2016,6992,1.89
Children's Family Services,Other Services,AMAZON UK MARKETPLACE,09/02/2016,7020,12.49
Children's Family Services,Other Services,AMAZON UK MARKETPLACE,09/06/2015,4205,41.93
Children's Family Services,Other Services,AMAZON UK MARKETPLACE,10/02/2016,7044,6.12
Children's Family Services,Other Services,AMAZON UK MARKETPLACE,10/08/2015,4933,2.38
Children's Family Services,Other Services,AMAZON UK MARKETPLACE,10/08/2015,4934,2.98
Children's Family Services,Other Services,AMAZON UK MARKETPLACE,11/02/2016,7060,18.66
Children's Family Services,Other Services,AMAZON UK MARKETPLACE,11/02/2016,7061,7.99
Children's Family Services,Other Services,AMAZON UK MARKETPLACE,12/01/2016,6639,2.81
Children's Family Services,Other Services,AMAZON UK MARKETPLACE,12/02/2016,7071,13.99
Children's Family Services,Other Services,AMAZON UK MARKETPLACE,12/02/2016,7072,3.95
Children's Family Services,Other Services,AMAZON UK MARKETPLACE,12/11/2015,5992,7.7
Children's Family Services,Other Services,AMAZON UK MARKETPLACE,13/01/2016,6650,6.97
Children's Family Services,Other Services,AMAZON UK MARKETPLACE,13/11/2015,6009,4.95
Children's Family Services,Other Services,AMAZON UK MARKETPLACE,14/01/2016,6670,12.84
Children's Family Services,Other Services,AMAZON UK MARKETPLACE,14/01/2016,6671,20.68
Children's Family Services,Other Services,AMAZON UK MARKETPLACE,15/12/2015,6401,7.58
Children's Family Services,Other Services,AMAZON UK MARKETPLACE,17/09/2015,5345,19.76
Children's Family Services,Other Services,AMAZON UK MARKETPLACE,17/09/2015,5348,77
Children's Family Services,Other Services,AMAZON UK MARKETPLACE,18/08/2015,5037,20.68
Children's Family Services,Other Services,AMAZON UK MARKETPLACE,22/07/2015,4731,458.99
Children's Family Services,Other Services,AMAZON UK MARKETPLACE,22/07/2015,4739,4.99
Children's Family Services,Other Services,AMAZON UK MARKETPLACE,22/07/2015,4741,56.96
Children's Family Services,Other Services,AMAZON UK MARKETPLACE,22/07/2015,4742,21.98
Children's Family Services,Other Services,AMAZON UK MARKETPLACE,22/07/2015,4743,6.19
Children's Family Services,Other Services,AMAZON UK MARKETPLACE,23/06/2015,4404,22.63
Children's Family Services,Other Services,AMAZON UK MARKETPLACE,23/06/2015,4418,10.82
Children's Family Services,Other Services,AMAZON UK MARKETPLACE,24/02/2016,7193,6.66
Children's Family Services,Other Services,AMAZON UK MARKETPLACE,25/01/2016,6793,4.29
Children's Family Services,Other Services,AMAZON UK MARKETPLACE,25/01/2016,6794,4.29
Children's Family Services,Other Services,AMAZON UK MARKETPLACE,25/05/2015,3194,54.95
Children's Family Services,Other Services,AMAZON UK MARKETPLACE,25/08/2015,5126,1.2
Children's Family Services,Other Services,AMAZON UK MARKETPLACE,26/10/2015,5750,39.98
Children's Family Services,Other Services,AMAZON UK MARKETPLACE,26/10/2015,5755,4.95
Children's Family Services,Other Services,AMAZON UK MARKETPLACE,27/05/2015,3223,19.95
Children's Family Services,Other Services,AMAZON UK MARKETPLACE,27/05/2015,3228,15.99
Children's Family Services,Other Services,AMAZON UK MARKETPLACE,28/08/2015,5165,2.39
Children's Family Services,Other Services,AMAZON UK MARKETPLACE,30/11/2015,6178,503.17
Children's Family Services,Other Services,AMAZON UK MARKETPLACE,30/11/2015,6187,36.93
Children's Family Services,Other Services,AMAZON UK MARKETPLACE,30/11/2015,6188,21.18
Children's Family Services,Other Transfer Payments to Soc,AMAZON UK MARKETPLACE,23/06/2015,4413,16.8
Children's Family Services,Other Transfer Payments to Soc,AMAZON UK MARKETPLACE,25/06/2015,4428,6.8
Children's Family Services,Other Transfer Payments to Soc,AMAZON UK MARKETPLACE,28/07/2015,4821,1.95
Children's Family Services,Other Transfer Payments to Soc,AMAZON UK MARKETPLACE,28/07/2015,4822,3.3
Children's Family Services,Stationery,AMAZON UK MARKETPLACE,04/05/2015,3049,84.99
Children's Family Services,Stationery,AMAZON UK MARKETPLACE,04/12/2015,6268,20.98
Children's Family Services,Stationery,AMAZON UK MARKETPLACE,04/12/2015,6269,6.02
Children's Family Services,Stationery,AMAZON UK MARKETPLACE,05/02/2016,6974,5.79
Children's Family Services,Stationery,AMAZON UK MARKETPLACE,05/02/2016,6975,18.78
Children's Family Services,Stationery,AMAZON UK MARKETPLACE,08/02/2016,6994,4.34
Children's Family Services,Stationery,AMAZON UK MARKETPLACE,10/02/2016,7049,67.9
Children's Family Services,Stationery,AMAZON UK MARKETPLACE,14/12/2015,6382,108.6
Children's Family Services,Stationery,AMAZON UK MARKETPLACE,15/12/2015,6399,33.29
Children's Family Services,Stationery,AMAZON UK MARKETPLACE,17/02/2016,7104,9.18
Children's Family Services,Stationery,AMAZON UK MARKETPLACE,17/02/2016,7106,3.16
Children's Family Services,Stationery,AMAZON UK MARKETPLACE,18/01/2016,6697,5.93
Children's Family Services,Stationery,AMAZON UK MARKETPLACE,18/02/2016,7119,3.95
Children's Family Services,Stationery,AMAZON UK MARKETPLACE,19/01/2016,6721,4.08
Children's Family Services,Stationery,AMAZON UK MARKETPLACE,20/10/2015,5692,56.4
Children's Family Services,Stationery,AMAZON UK MARKETPLACE,22/07/2015,4730,231.98
Children's Family Services,Stationery,AMAZON UK MARKETPLACE,23/11/2015,6100,11.2
Children's Family Services,Stationery,AMAZON UK MARKETPLACE,25/02/2016,7205,26.45
Children's Family Services,Stationery,AMAZON UK MARKETPLACE,28/09/2015,5448,25.13
Children's Family Services,Stationery,AMAZON UK MARKETPLACE,29/07/2015,4838,44.57
Children's Family Services,Stationery,AMAZON UK MARKETPLACE,29/09/2015,5467,45
Children's Family Services,Stationery,AMAZON UK MARKETPLACE,30/10/2015,5812,9.99
Children's Family Services,Stationery,AMAZON UK MARKETPLACE,30/10/2015,5813,10.65
Children's Family Services,Travelling Expenses,AMAZON UK MARKETPLACE,18/11/2015,6061,47.95
Children's Service DSG,Books-CDs-Audio-Video,AMAZON UK MARKETPLACE,10/12/2015,6338,15.65
Children's Service DSG,Equipment and Materials Purcha,AMAZON UK MARKETPLACE,01/12/2015,6225,40.28
Children's Service DSG,Equipment and Materials Purcha,AMAZON UK MARKETPLACE,02/12/2015,6252,48.5
Children's Service DSG,Equipment and Materials Purcha,AMAZON UK MARKETPLACE,02/12/2015,6253,50.57
Children's Service DSG,Equipment and Materials Purcha,AMAZON UK MARKETPLACE,04/11/2015,5884,11.87
Children's Service DSG,Equipment and Materials Purcha,AMAZON UK MARKETPLACE,04/12/2015,6276,-40.28
Children's Service DSG,Equipment and Materials Purcha,AMAZON UK MARKETPLACE,05/11/2015,5896,1.1
Children's Service DSG,Equipment and Materials Purcha,AMAZON UK MARKETPLACE,06/08/2015,4911,13.94
Children's Service DSG,Equipment and Materials Purcha,AMAZON UK MARKETPLACE,07/08/2015,4922,8.89
Children's Service DSG,Equipment and Materials Purcha,AMAZON UK MARKETPLACE,08/12/2015,6313,23.29
Children's Service DSG,Equipment and Materials Purcha,AMAZON UK MARKETPLACE,08/12/2015,6314,16.99
Children's Service DSG,Equipment and Materials Purcha,AMAZON UK MARKETPLACE,09/10/2015,5591,1.59
Children's Service DSG,Equipment and Materials Purcha,AMAZON UK MARKETPLACE,09/11/2015,5925,13.76
Children's Service DSG,Equipment and Materials Purcha,AMAZON UK MARKETPLACE,11/06/2015,4246,14.4
Children's Service DSG,Equipment and Materials Purcha,AMAZON UK MARKETPLACE,12/10/2015,5601,14.1
Children's Service DSG,Equipment and Materials Purcha,AMAZON UK MARKETPLACE,12/10/2015,5602,3.58
Children's Service DSG,Equipment and Materials Purcha,AMAZON UK MARKETPLACE,12/10/2015,5603,8.7
Children's Service DSG,Equipment and Materials Purcha,AMAZON UK MARKETPLACE,17/02/2016,7113,2.85
Children's Service DSG,Equipment and Materials Purcha,AMAZON UK MARKETPLACE,17/06/2015,4321,121.6
Children's Service DSG,Equipment and Materials Purcha,AMAZON UK MARKETPLACE,17/07/2015,4682,34.66
Children's Service DSG,Equipment and Materials Purcha,AMAZON UK MARKETPLACE,18/02/2016,7132,1.45
Children's Service DSG,Equipment and Materials Purcha,AMAZON UK MARKETPLACE,18/02/2016,7134,27.54
Children's Service DSG,Equipment and Materials Purcha,AMAZON UK MARKETPLACE,19/02/2016,7149,74.67
Children's Service DSG,Equipment and Materials Purcha,AMAZON UK MARKETPLACE,20/08/2015,5078,83.52
Children's Service DSG,Equipment and Materials Purcha,AMAZON UK MARKETPLACE,21/10/2015,5705,3.1
Children's Service DSG,Equipment and Materials Purcha,AMAZON UK MARKETPLACE,25/03/2016,7607,91.9
Children's Service DSG,Equipment and Materials Purcha,AMAZON UK MARKETPLACE,26/11/2015,6155,29.99
Children's Service DSG,Equipment and Materials Purcha,AMAZON UK MARKETPLACE,27/11/2015,6162,11.72
Children's Service DSG,Equipment and Materials Purcha,AMAZON UK MARKETPLACE,27/11/2015,6164,45.62
Children's Service DSG,Equipment and Materials Purcha,AMAZON UK MARKETPLACE,29/01/2016,6873,21.9
Children's Service DSG,Equipment and Materials Purcha,AMAZON UK MARKETPLACE,30/11/2015,6182,1.89
Children's Service DSG,Equipment and Materials Purcha,AMAZON UK MARKETPLACE,30/11/2015,6183,11.21
Commissioning,Equipment and Materials Purcha,AMAZON UK MARKETPLACE,01/03/2016,7269,6.63
Commissioning,Equipment and Materials Purcha,AMAZON UK MARKETPLACE,02/03/2016,7302,4.5
Commissioning,Equipment and Materials Purcha,AMAZON UK MARKETPLACE,02/03/2016,7303,1.83
Commissioning,Equipment and Materials Purcha,AMAZON UK MARKETPLACE,02/03/2016,7304,21.63
Commissioning,Equipment and Materials Purcha,AMAZON UK MARKETPLACE,04/12/2015,6271,120.62
Commissioning,Equipment and Materials Purcha,AMAZON UK MARKETPLACE,08/01/2016,6606,47.25
Commissioning,Equipment and Materials Purcha,AMAZON UK MARKETPLACE,13/10/2015,5618,-27.87
Commissioning,Equipment and Materials Purcha,AMAZON UK MARKETPLACE,14/12/2015,6368,4.98
Commissioning,Equipment and Materials Purcha,AMAZON UK MARKETPLACE,14/12/2015,6369,190
Commissioning,Equipment and Materials Purcha,AMAZON UK MARKETPLACE,22/10/2015,5716,170
Commissioning,Equipment and Materials Purcha,AMAZON UK MARKETPLACE,28/09/2015,5459,19.91
Commissioning,Equipment and Materials Purcha,AMAZON UK MARKETPLACE,28/10/2015,5797,173.3
Commissioning,Hardware Purchases,AMAZON UK MARKETPLACE,14/01/2016,6666,9.77
Customer Support Group,Equipment and Materials Repair,AMAZON UK MARKETPLACE,17/08/2015,5031,8.24
Streetscene,Equipment and Materials Purcha,AMAZON UK MARKETPLACE,03/07/2015,4540,103.92
Streetscene,Equipment and Materials Purcha,AMAZON UK MARKETPLACE,03/11/2015,5859,19.99
Streetscene,Equipment and Materials Purcha,AMAZON UK MARKETPLACE,03/11/2015,5860,194.99
Streetscene,Equipment and Materials Purcha,AMAZON UK MARKETPLACE,03/11/2015,5861,13.95
Streetscene,Equipment and Materials Purcha,AMAZON UK MARKETPLACE,05/11/2015,5890,31.35
Streetscene,Equipment and Materials Purcha,AMAZON UK MARKETPLACE,13/08/2015,4988,47.94
Streetscene,Equipment and Materials Purcha,AMAZON UK MARKETPLACE,13/08/2015,4989,52.5
Streetscene,Equipment and Materials Purcha,AMAZON UK MARKETPLACE,14/01/2016,6664,107.92
Streetscene,Equipment and Materials Purcha,AMAZON UK MARKETPLACE,14/08/2015,5006,46.56
Streetscene,Equipment and Materials Purcha,AMAZON UK MARKETPLACE,14/08/2015,5007,79.98
Streetscene,Equipment and Materials Purcha,AMAZON UK MARKETPLACE,15/06/2015,4283,34.24
Streetscene,Equipment and Materials Purcha,AMAZON UK MARKETPLACE,17/06/2015,4314,2.99
Streetscene,Equipment and Materials Purcha,AMAZON UK MARKETPLACE,17/08/2015,5019,6.08
Streetscene,Equipment and Materials Purcha,AMAZON UK MARKETPLACE,17/08/2015,5020,24
Streetscene,Equipment and Materials Purcha,AMAZON UK MARKETPLACE,18/06/2015,4336,33.94
Streetscene,Equipment and Materials Purcha,AMAZON UK MARKETPLACE,21/09/2015,5368,9.97
Streetscene,Equipment and Materials Purcha,AMAZON UK MARKETPLACE,21/12/2015,6479,31.96
Streetscene,Equipment and Materials Purcha,AMAZON UK MARKETPLACE,27/10/2015,5780,55.93
Assurance,Training,AMAZON UK RETAIL,14/05/2015,3110,99
Children's Family Services,Equipment and Materials Purcha,AMAZON UK RETAIL,25/05/2015,3211,10.24
Children's Family Services,Equipment and Materials Purcha,AMAZON UK RETAIL,25/05/2015,3212,10.27
Children's Family Services,Equipment and Materials Purcha,AMAZON UK RETAIL,25/05/2015,3213,17.22
Children's Family Services,Equipment and Materials Purcha,AMAZON UK RETAIL,25/05/2015,3215,17.22
Children's Family Services,Equipment and Materials Purcha,AMAZON UK RETAIL,25/05/2015,3216,21.72
Children's Family Services,Other Services,AMAZON UK RETAIL,25/05/2015,3189,150
Children's Family Services,Other Services,AMAZON UK RETAIL,25/05/2015,3208,3.61
Children's Family Services,Other Services,AMAZON UK RETAIL,28/05/2015,3243,14.83
Children's Family Services,Stationery,AMAZON UK RETAIL,04/05/2015,3048,125.76
Children's Family Services,Equipment and Materials Purcha,Amazon UK Retail000,21/05/2015,5850,14.99
Children's Family Services,Equipment and Materials Purcha,Amazon UK Retail000,21/05/2015,5794,72.5
Assurance,Training,AMBERWING LTD,21/08/2015,5082,234
Children's Family Services,Other Services,AMF BOWLING,10/08/2015,4936,5.78
Children's Family Services,Miscellaneous Expenses,AMFBOWLING.CO.UK,19/05/2015,3141,33.5
Children's Family Services,Other Services,AMFBOWLING.CO.UK,03/08/2015,4874,33.5
Children's Family Services,Other Services,AMFBOWLING.CO.UK,04/06/2015,4142,29.58
Children's Family Services,Other Services,AMFBOWLING.CO.UK,10/08/2015,4930,33.5
Children's Family Services,Other Services,AMFBOWLING.CO.UK,13/08/2015,4997,33.5
Children's Family Services,Other Services,AMFBOWLING.CO.UK,18/02/2016,7128,50.2
Children's Family Services,Other Services,AMFBOWLING.CO.UK,22/10/2015,5726,21.1
Children's Family Services,Other Services,AMFBOWLING.CO.UK,27/10/2015,5776,50.2
Children's Family Services,Other Transfer Payments to Soc,AMFBOWLING.CO.UK,02/03/2016,7306,34.65
Children's Service DSG,Equipment and Materials Purcha,AMHERST ENTERPRISES LT,17/12/2015,6437,148
Children's Family Services,Equipment and Materials Purcha,ANDREWS OFFICE FUR,27/08/2015,5151,300
Children's Family Services,Miscellaneous Expenses,ANGEL SPRINGS LTD,14/09/2015,5310,33.6
Children's Family Services,Miscellaneous Expenses,ANGEL SPRINGS LTD,23/12/2015,6521,115
Children's Family Services,Food Costs,ANSCO ARENA LTD,15/05/2015,3116,20.83
Children's Family Services,Equipment and Materials Purcha,AO RETAIL LIMITED,30/09/2015,5483,149.98
Children's Family Services,Other Agencies - Third Party P,AO RETAIL LIMITED,18/06/2015,4332,232.5
Children's Family Services,Other Transfer Payments to Soc,AO RETAIL LIMITED,16/09/2015,5333,568.98
Children's Family Services,Other Transfer Payments to Soc,AO RETAIL LIMITED,18/09/2015,5356,358.99
Children's Family Services,Other Services,APPLE STORE R163,21/12/2015,6471,484.8
Children's Family Services,Other Services,APPLIANCESDIRECT,04/11/2015,5878,230.54
Children's Family Services,Other Services,APPLIANCESDIRECT,25/05/2015,3196,405.9
Children's Education & Skills,Training,APT TRAINING,22/06/2015,4372,230
Children's Family Services,Education CFR Administrative S,ARGOS,29/02/2016,7246,220.81
Children's Family Services,Miscellaneous Expenses,ARGOS B2B ONLINE,28/05/2015,3248,"1,107.56"
Children's Family Services,Other Transfer Payments to Soc,ARGOS B2B ONLINE,28/05/2015,3249,"1,240.86"
Children's Family Services,Equipment and Materials Purcha,ARGOS DIRECT,01/07/2015,4498,32.98
Children's Family Services,Equipment and Materials Purcha,ARGOS DIRECT,12/11/2015,5989,124.98
Children's Family Services,Equipment and Materials Purcha,ARGOS DIRECT,16/02/2016,7094,-44.99
Children's Family Services,Equipment and Materials Purcha,ARGOS DIRECT,28/08/2015,5162,-3.95
Children's Family Services,General Office Expenses,ARGOS DIRECT,29/06/2015,4452,38.94
Children's Family Services,Other Services,ARGOS DIRECT,26/06/2015,4441,-796
Children's Family Services,Books-CDs-Audio-Video,ARGOS LTD,17/12/2015,6433,24.17
Children's Family Services,E19 - Learning Resources,ARGOS LTD,07/12/2015,6281,33.36
Children's Family Services,Equipment and Materials Purcha,ARGOS LTD,07/03/2016,7361,24.99
Children's Family Services,Equipment and Materials Purcha,ARGOS LTD,07/08/2015,4926,50.97
Children's Family Services,Equipment and Materials Purcha,ARGOS LTD,11/08/2015,4956,50.33
Children's Family Services,Equipment and Materials Purcha,ARGOS LTD,13/01/2016,6646,26.59
Children's Family Services,Equipment and Materials Purcha,ARGOS LTD,14/08/2015,5008,12.16
Children's Family Services,Equipment and Materials Purcha,ARGOS LTD,14/08/2015,5015,9.74
Children's Family Services,Equipment and Materials Purcha,ARGOS LTD,21/05/2015,3178,18.99
Children's Family Services,Equipment and Materials Purcha,ARGOS LTD,23/11/2015,6105,50.58
Children's Family Services,Equipment and Materials Purcha,ARGOS LTD,24/07/2015,4797,49.98
Children's Family Services,Miscellaneous Expenses,ARGOS LTD,03/11/2015,5868,19.04
Children's Family Services,Miscellaneous Expenses,ARGOS LTD,31/08/2015,5190,-2.49
Children's Family Services,Miscellaneous Expenses,ARGOS LTD,31/08/2015,5191,17.48
Children's Family Services,Other Agencies - Third Party P,ARGOS LTD,14/07/2015,4639,52.48
Children's Family Services,Other Services,ARGOS LTD,07/08/2015,4925,39.97
Children's Family Services,Other Services,ARGOS LTD,29/01/2016,6876,7.49
Children's Family Services,Other Transfer Payments to Soc,ARGOS LTD,09/11/2015,5921,12.99
Children's Family Services,Other Transfer Payments to Soc,ARGOS LTD,10/08/2015,4938,100
Children's Family Services,Other Transfer Payments to Soc,ARGOS LTD,14/12/2015,6371,185.55
Children's Family Services,Other Transfer Payments to Soc,ARGOS LTD,18/01/2016,6687,19.99
Children's Family Services,Other Transfer Payments to Soc,ARGOS LTD,18/01/2016,6688,89.96
Children's Family Services,Other Transfer Payments to Soc,ARGOS LTD,18/12/2015,6455,30.96
Children's Family Services,Other Transfer Payments to Soc,ARGOS LTD,19/01/2016,6730,82.04
Children's Family Services,Other Transfer Payments to Soc,ARGOS LTD,19/01/2016,6731,18.99
Children's Family Services,Other Transfer Payments to Soc,ARGOS LTD,19/02/2016,7145,4.5
Children's Family Services,Other Transfer Payments to Soc,ARGOS LTD,19/02/2016,7146,56.06
Children's Family Services,Other Transfer Payments to Soc,ARGOS LTD,22/02/2016,7166,21.84
Children's Family Services,Other Transfer Payments to Soc,ARGOS LTD,22/06/2015,4374,29.99
Children's Family Services,Other Transfer Payments to Soc,ARGOS LTD,29/01/2016,6875,9.99
Children's Family Services,Equipment and Materials Purcha,ARGOS NEW STHGATE,01/03/2016,7260,146.29
Children's Family Services,Equipment and Materials Purcha,ARGOS NEW STHGATE,02/03/2016,7287,9.99
Children's Family Services,Equipment and Materials Purcha,ARGOS NEW STHGATE,16/10/2015,5652,23.74
Adults and Communities,Miscellaneous Expenses,ARGOS RETAIL GROUP,17/02/2016,7111,32.47
Adults and Communities,Miscellaneous Expenses,ARGOS RETAIL GROUP,20/11/2015,6086,45.82
Children's Family Services,Equipment and Materials Purcha,ARGOS RETAIL GROUP,03/06/2015,3305,43.94
Children's Family Services,Equipment and Materials Purcha,ARGOS RETAIL GROUP,04/03/2016,7337,31.65
Children's Family Services,Equipment and Materials Purcha,ARGOS RETAIL GROUP,17/06/2015,4312,533.44
Children's Family Services,Equipment and Materials Purcha,ARGOS RETAIL GROUP,17/06/2015,4313,119.33
Children's Family Services,Equipment and Materials Purcha,ARGOS RETAIL GROUP,20/10/2015,5682,138.9
Children's Family Services,Equipment and Materials Purcha,ARGOS RETAIL GROUP,20/11/2015,6075,108.94
Children's Family Services,Equipment and Materials Purcha,ARGOS RETAIL GROUP,20/11/2015,6076,49.99
Children's Family Services,Equipment and Materials Purcha,ARGOS RETAIL GROUP,21/01/2016,6762,34.95
Children's Family Services,Equipment and Materials Purcha,ARGOS RETAIL GROUP,22/01/2016,6783,268.93
Children's Family Services,Equipment and Materials Purcha,ARGOS RETAIL GROUP,22/12/2015,6514,24.99
Children's Family Services,Equipment and Materials Purcha,ARGOS RETAIL GROUP,26/08/2015,5138,43.87
Children's Family Services,Equipment and Materials Purcha,ARGOS RETAIL GROUP,27/01/2016,6826,288.92
Children's Family Services,Equipment and Materials Purcha,ARGOS RETAIL GROUP,27/08/2015,5154,8.99
Children's Family Services,Equipment and Materials Purcha,ARGOS RETAIL GROUP,27/08/2015,5155,88.99
Children's Family Services,Equipment and Materials Purcha,ARGOS RETAIL GROUP,27/08/2015,5156,63.92
Children's Family Services,Equipment and Materials Purcha,ARGOS RETAIL GROUP,28/01/2016,6847,36
Children's Family Services,General Office Expenses,ARGOS RETAIL GROUP,20/07/2015,4698,6.99
Children's Family Services,Other Services,ARGOS RETAIL GROUP,26/06/2015,4439,956
Children's Family Services,Other Services,ARGOS RETAIL GROUP,26/06/2015,4440,796
Children's Family Services,Other Services,ARGOS RETAIL GROUP,26/06/2015,4442,717
Children's Family Services,Other Transfer Payments to Soc,ARGOS RETAIL GROUP,07/01/2016,6595,157.34
Children's Family Services,Other Transfer Payments to Soc,ARGOS RETAIL GROUP,15/01/2016,6682,-3.99
Commissioning,Other Services,ARGOS RETAIL GROUP,23/07/2015,4753,130.99
Children's Family Services,Cleaning and domestic material,ASDA 4387,17/11/2015,6034,5.94
Children's Family Services,Food Costs,ASDA 4387,17/11/2015,6034,69.06
Children's Family Services,Food Costs,ASDA 4387,26/10/2015,5744,-12
Children's Family Services,Other Transfer Payments to Soc,ASDA 4387,16/09/2015,5336,24
Children's Family Services,Other Transfer Payments to Soc,ASDA 4387,21/09/2015,5365,-24
Children's Family Services,Other Transfer Payments to Soc,ASDA 4387,28/09/2015,5457,12
Children's Family Services,Cleaning and domestic material,ASDA HOME SHOPPING,01/12/2015,6196,11.5
Children's Family Services,Cleaning and domestic material,ASDA HOME SHOPPING,03/11/2015,5856,3.92
Children's Family Services,Cleaning and domestic material,ASDA HOME SHOPPING,05/01/2016,6562,11.52
Children's Family Services,Cleaning and domestic material,ASDA HOME SHOPPING,05/02/2016,6970,8
Children's Family Services,Cleaning and domestic material,ASDA HOME SHOPPING,07/10/2015,5561,7.7
Children's Family Services,Cleaning and domestic material,ASDA HOME SHOPPING,07/12/2015,6284,4
Children's Family Services,Cleaning and domestic material,ASDA HOME SHOPPING,08/12/2015,6301,8.31
Children's Family Services,Cleaning and domestic material,ASDA HOME SHOPPING,09/02/2016,7014,25.1
Children's Family Services,Cleaning and domestic material,ASDA HOME SHOPPING,09/09/2015,5270,15.34
Children's Family Services,Cleaning and domestic material,ASDA HOME SHOPPING,09/11/2015,5913,29.74
Children's Family Services,Cleaning and domestic material,ASDA HOME SHOPPING,11/08/2015,4957,12
Children's Family Services,Cleaning and domestic material,ASDA HOME SHOPPING,15/07/2015,4660,46.33
Children's Family Services,Cleaning and domestic material,ASDA HOME SHOPPING,16/06/2015,4300,30.68
Children's Family Services,Cleaning and domestic material,ASDA HOME SHOPPING,19/05/2015,3139,35.88
Children's Family Services,Cleaning and domestic material,ASDA HOME SHOPPING,20/10/2015,5685,40.12
Children's Family Services,Cleaning and domestic material,ASDA HOME SHOPPING,22/12/2015,6503,10.9
Children's Family Services,Cleaning and domestic material,ASDA HOME SHOPPING,23/09/2015,5396,7.98
Children's Family Services,Cleaning and domestic material,ASDA HOME SHOPPING,23/11/2015,6096,13.18
Children's Family Services,Cleaning and domestic material,ASDA HOME SHOPPING,23/11/2015,6098,3.02
Children's Family Services,Cleaning and domestic material,ASDA HOME SHOPPING,26/10/2015,5746,12
Children's Family Services,Cleaning and domestic material,ASDA HOME SHOPPING,27/10/2015,5777,5
Children's Family Services,Cleaning and domestic material,ASDA HOME SHOPPING,28/07/2015,4811,12.5
Children's Family Services,Cleaning and domestic material,ASDA HOME SHOPPING,30/12/2015,6547,15.39
Children's Family Services,Equipment and Materials Purcha,ASDA HOME SHOPPING,08/12/2015,6301,4
Children's Family Services,Equipment and Materials Purcha,ASDA HOME SHOPPING,30/11/2015,6175,0.47
Children's Family Services,Equipment and Materials Purcha,ASDA HOME SHOPPING,30/11/2015,6176,74.59
Children's Family Services,Food Costs,ASDA HOME SHOPPING,01/03/2016,7262,-1.48
Children's Family Services,Food Costs,ASDA HOME SHOPPING,01/03/2016,7263,-0.79
Children's Family Services,Food Costs,ASDA HOME SHOPPING,01/03/2016,7264,155.91
Children's Family Services,Food Costs,ASDA HOME SHOPPING,01/12/2015,6195,0.4
Children's Family Services,Food Costs,ASDA HOME SHOPPING,01/12/2015,6196,205.9
Children's Family Services,Food Costs,ASDA HOME SHOPPING,02/11/2015,5828,0.65
Children's Family Services,Food Costs,ASDA HOME SHOPPING,02/11/2015,5830,85.66
Children's Family Services,Food Costs,ASDA HOME SHOPPING,03/08/2015,4862,105.81
Children's Family Services,Food Costs,ASDA HOME SHOPPING,03/11/2015,5856,197.37
Children's Family Services,Food Costs,ASDA HOME SHOPPING,03/11/2015,5857,-1.61
Children's Family Services,Food Costs,ASDA HOME SHOPPING,04/08/2015,4878,204.86
Children's Family Services,Food Costs,ASDA HOME SHOPPING,05/01/2016,6560,1.48
Children's Family Services,Food Costs,ASDA HOME SHOPPING,05/01/2016,6562,98.44
Children's Family Services,Food Costs,ASDA HOME SHOPPING,05/02/2016,6968,0.38
Children's Family Services,Food Costs,ASDA HOME SHOPPING,05/02/2016,6970,77.79
Children's Family Services,Food Costs,ASDA HOME SHOPPING,05/10/2015,5529,165.01
Children's Family Services,Food Costs,ASDA HOME SHOPPING,05/10/2015,5530,-0.54
Children's Family Services,Food Costs,ASDA HOME SHOPPING,06/05/2015,3057,15
Children's Family Services,Food Costs,ASDA HOME SHOPPING,07/10/2015,5560,-0.01
Children's Family Services,Food Costs,ASDA HOME SHOPPING,07/10/2015,5561,199.39
Children's Family Services,Food Costs,ASDA HOME SHOPPING,07/10/2015,5562,-3
Children's Family Services,Food Costs,ASDA HOME SHOPPING,07/12/2015,6283,-0.05
Children's Family Services,Food Costs,ASDA HOME SHOPPING,07/12/2015,6284,68.65
Children's Family Services,Food Costs,ASDA HOME SHOPPING,08/12/2015,6301,166.84
Children's Family Services,Food Costs,ASDA HOME SHOPPING,08/12/2015,6302,0.69
Children's Family Services,Food Costs,ASDA HOME SHOPPING,09/02/2016,7013,-4.83
Children's Family Services,Food Costs,ASDA HOME SHOPPING,09/02/2016,7014,159.2
Children's Family Services,Food Costs,ASDA HOME SHOPPING,09/06/2015,4198,165.79
Children's Family Services,Food Costs,ASDA HOME SHOPPING,09/09/2015,5269,-1.78
Children's Family Services,Food Costs,ASDA HOME SHOPPING,09/09/2015,5270,184.55
Children's Family Services,Food Costs,ASDA HOME SHOPPING,09/11/2015,5913,82.5
Children's Family Services,Food Costs,ASDA HOME SHOPPING,09/11/2015,5915,3.96
Children's Family Services,Food Costs,ASDA HOME SHOPPING,10/08/2015,4931,105.43
Children's Family Services,Food Costs,ASDA HOME SHOPPING,10/08/2015,4932,15
Children's Family Services,Food Costs,ASDA HOME SHOPPING,10/11/2015,5951,155.45
Children's Family Services,Food Costs,ASDA HOME SHOPPING,10/11/2015,5952,0.37
Children's Family Services,Food Costs,ASDA HOME SHOPPING,11/08/2015,4957,174.22
Children's Family Services,Food Costs,ASDA HOME SHOPPING,12/01/2016,6635,154.62
Children's Family Services,Food Costs,ASDA HOME SHOPPING,12/01/2016,6636,-0.15
Children's Family Services,Food Costs,ASDA HOME SHOPPING,12/10/2015,5608,-10.75
Children's Family Services,Food Costs,ASDA HOME SHOPPING,12/10/2015,5609,116.35
Children's Family Services,Food Costs,ASDA HOME SHOPPING,15/02/2016,7078,-2.65
Children's Family Services,Food Costs,ASDA HOME SHOPPING,15/02/2016,7079,48.16
Children's Family Services,Food Costs,ASDA HOME SHOPPING,15/07/2015,4660,117.18
Children's Family Services,Food Costs,ASDA HOME SHOPPING,15/10/2015,5636,0.19
Children's Family Services,Food Costs,ASDA HOME SHOPPING,15/10/2015,5637,99.42
Children's Family Services,Food Costs,ASDA HOME SHOPPING,15/12/2015,6386,-1.47
Children's Family Services,Food Costs,ASDA HOME SHOPPING,15/12/2015,6389,186.74
Children's Family Services,Food Costs,ASDA HOME SHOPPING,16/02/2016,7090,-2.14
Children's Family Services,Food Costs,ASDA HOME SHOPPING,16/02/2016,7091,199.71
Children's Family Services,Food Costs,ASDA HOME SHOPPING,16/06/2015,4300,199.56
Children's Family Services,Food Costs,ASDA HOME SHOPPING,16/09/2015,5337,188.71
Children's Family Services,Food Costs,ASDA HOME SHOPPING,16/11/2015,6027,36
Children's Family Services,Food Costs,ASDA HOME SHOPPING,17/07/2015,4675,125.17
Children's Family Services,Food Costs,ASDA HOME SHOPPING,17/08/2015,5018,129.97
Children's Family Services,Food Costs,ASDA HOME SHOPPING,17/11/2015,6035,-0.4
Children's Family Services,Food Costs,ASDA HOME SHOPPING,17/11/2015,6036,-0.02
Children's Family Services,Food Costs,ASDA HOME SHOPPING,17/11/2015,6037,240.26
Children's Family Services,Food Costs,ASDA HOME SHOPPING,18/01/2016,6692,106.68
Children's Family Services,Food Costs,ASDA HOME SHOPPING,18/01/2016,6693,-1.69
Children's Family Services,Food Costs,ASDA HOME SHOPPING,19/01/2016,6714,-1.17
Children's Family Services,Food Costs,ASDA HOME SHOPPING,19/01/2016,6715,211.13
Children's Family Services,Food Costs,ASDA HOME SHOPPING,19/05/2015,3139,191.23
Children's Family Services,Food Costs,ASDA HOME SHOPPING,19/10/2015,5675,96.97
Children's Family Services,Food Costs,ASDA HOME SHOPPING,19/10/2015,5676,0.89
Children's Family Services,Food Costs,ASDA HOME SHOPPING,20/10/2015,5685,152.47
Children's Family Services,Food Costs,ASDA HOME SHOPPING,20/10/2015,5686,-0.58
Children's Family Services,Food Costs,ASDA HOME SHOPPING,21/07/2015,4710,114.87
Children's Family Services,Food Costs,ASDA HOME SHOPPING,21/08/2015,5080,249.39
Children's Family Services,Food Costs,ASDA HOME SHOPPING,21/12/2015,6475,98.97
Children's Family Services,Food Costs,ASDA HOME SHOPPING,21/12/2015,6476,-2.35
Children's Family Services,Food Costs,ASDA HOME SHOPPING,21/12/2015,6477,-0.4
Children's Family Services,Food Costs,ASDA HOME SHOPPING,21/12/2015,6478,-0.26
Children's Family Services,Food Costs,ASDA HOME SHOPPING,22/02/2016,7159,-0.25
Children's Family Services,Food Costs,ASDA HOME SHOPPING,22/02/2016,7160,68.82
Children's Family Services,Food Costs,ASDA HOME SHOPPING,22/06/2015,4365,64.94
Children's Family Services,Food Costs,ASDA HOME SHOPPING,22/12/2015,6502,0.4
Children's Family Services,Food Costs,ASDA HOME SHOPPING,22/12/2015,6503,150.19
Children's Family Services,Food Costs,ASDA HOME SHOPPING,23/02/2016,7175,-2.16
Children's Family Services,Food Costs,ASDA HOME SHOPPING,23/02/2016,7176,184.12
Children's Family Services,Food Costs,ASDA HOME SHOPPING,23/09/2015,5395,-0.06
Children's Family Services,Food Costs,ASDA HOME SHOPPING,23/09/2015,5396,151.25
Children's Family Services,Food Costs,ASDA HOME SHOPPING,23/11/2015,6096,113.12
Children's Family Services,Food Costs,ASDA HOME SHOPPING,24/07/2015,4779,95.49
Children's Family Services,Food Costs,ASDA HOME SHOPPING,24/11/2015,6125,-1.55
Children's Family Services,Food Costs,ASDA HOME SHOPPING,24/11/2015,6126,178.11
Children's Family Services,Food Costs,ASDA HOME SHOPPING,25/01/2016,6786,86.38
Children's Family Services,Food Costs,ASDA HOME SHOPPING,25/01/2016,6787,0.56
Children's Family Services,Food Costs,ASDA HOME SHOPPING,26/01/2016,6809,-1.17
Children's Family Services,Food Costs,ASDA HOME SHOPPING,26/01/2016,6810,206.23
Children's Family Services,Food Costs,ASDA HOME SHOPPING,26/10/2015,5746,88.4
Children's Family Services,Food Costs,ASDA HOME SHOPPING,26/10/2015,5747,0.95
Children's Family Services,Food Costs,ASDA HOME SHOPPING,27/05/2015,3224,242.3
Children's Family Services,Food Costs,ASDA HOME SHOPPING,27/10/2015,5775,1.23
Children's Family Services,Food Costs,ASDA HOME SHOPPING,27/10/2015,5777,242.45
Children's Family Services,Food Costs,ASDA HOME SHOPPING,28/07/2015,4811,135.39
Children's Family Services,Food Costs,ASDA HOME SHOPPING,28/08/2015,5163,176.68
Children's Family Services,Food Costs,ASDA HOME SHOPPING,28/09/2015,5444,113.1
Children's Family Services,Food Costs,ASDA HOME SHOPPING,28/09/2015,5445,-3.02
Children's Family Services,Food Costs,ASDA HOME SHOPPING,29/02/2016,7248,61.24
Children's Family Services,Food Costs,ASDA HOME SHOPPING,29/02/2016,7249,0.3
Children's Family Services,Food Costs,ASDA HOME SHOPPING,29/09/2015,5463,3.17
Children's Family Services,Food Costs,ASDA HOME SHOPPING,29/09/2015,5464,182.08
Children's Family Services,Food Costs,ASDA HOME SHOPPING,30/12/2015,6547,164.19
Children's Family Services,Food Costs,ASDA HOME SHOPPING,30/12/2015,6548,4.21
Children's Family Services,Other Services,ASDA HOME SHOPPING,02/03/2016,7285,39.92
Children's Family Services,Other Services,ASDA HOME SHOPPING,02/03/2016,7286,0.2
Children's Family Services,Other Services,ASDA HOME SHOPPING,02/12/2015,6234,34.27
Children's Family Services,Other Services,ASDA HOME SHOPPING,02/12/2015,6235,0.33
Children's Family Services,Other Services,ASDA HOME SHOPPING,03/02/2016,6934,-21
Children's Family Services,Other Services,ASDA HOME SHOPPING,03/02/2016,6935,41.12
Children's Family Services,Other Services,ASDA HOME SHOPPING,07/01/2016,6590,0.33
Children's Family Services,Other Services,ASDA HOME SHOPPING,07/01/2016,6591,43.41
Children's Family Services,Other Services,ASDA HOME SHOPPING,07/10/2015,5565,0.3
Children's Family Services,Other Services,ASDA HOME SHOPPING,07/10/2015,5566,92.7
Children's Family Services,Other Services,ASDA HOME SHOPPING,09/12/2015,6318,38.22
Children's Family Services,Other Services,ASDA HOME SHOPPING,09/12/2015,6319,-0.09
Children's Family Services,Other Services,ASDA HOME SHOPPING,11/02/2016,7051,35.06
Children's Family Services,Other Services,ASDA HOME SHOPPING,11/02/2016,7052,-0.15
Children's Family Services,Other Services,ASDA HOME SHOPPING,13/01/2016,6644,44.18
Children's Family Services,Other Services,ASDA HOME SHOPPING,13/01/2016,6645,-0.1
Children's Family Services,Other Services,ASDA HOME SHOPPING,14/08/2015,5010,47.02
Children's Family Services,Other Services,ASDA HOME SHOPPING,16/12/2015,6409,-11.63
Children's Family Services,Other Services,ASDA HOME SHOPPING,16/12/2015,6410,39.22
Children's Family Services,Other Services,ASDA HOME SHOPPING,18/11/2015,6051,35.3
Children's Family Services,Other Services,ASDA HOME SHOPPING,20/01/2016,6740,0.33
Children's Family Services,Other Services,ASDA HOME SHOPPING,20/01/2016,6741,36.27
Children's Family Services,Other Services,ASDA HOME SHOPPING,21/10/2015,5700,41.64
Children's Family Services,Other Services,ASDA HOME SHOPPING,24/11/2015,6123,45.87
Children's Family Services,Other Services,ASDA HOME SHOPPING,24/11/2015,6124,0.17
Children's Family Services,Other Services,ASDA HOME SHOPPING,25/02/2016,7200,3.06
Children's Family Services,Other Services,ASDA HOME SHOPPING,25/02/2016,7201,40.67
Children's Family Services,Other Services,ASDA HOME SHOPPING,27/01/2016,6829,1.37
Children's Family Services,Other Services,ASDA HOME SHOPPING,27/01/2016,6830,35.35
Children's Family Services,Other Services,ASDA HOME SHOPPING,28/01/2016,6844,-11.25
Children's Family Services,Other Transfer Payments to Soc,ASDA HOME SHOPPING,20/10/2015,5685,18.15
Children's Family Services,Cleaning and domestic material,ASDA HOME SHOPPING0,21/05/2015,5681,9.5
Children's Family Services,Cleaning and domestic material,ASDA SUPERSTORE,02/07/2015,4513,3.97
Children's Family Services,Cleaning and domestic material,ASDA SUPERSTORE,02/10/2015,5516,27.5
Children's Family Services,Cleaning and domestic material,ASDA SUPERSTORE,02/11/2015,5829,3.6
Children's Family Services,Cleaning and domestic material,ASDA SUPERSTORE,03/09/2015,5213,5
Children's Family Services,Cleaning and domestic material,ASDA SUPERSTORE,08/06/2015,4170,-0.55
Children's Family Services,Cleaning and domestic material,ASDA SUPERSTORE,09/02/2016,7015,5.96
Children's Family Services,Cleaning and domestic material,ASDA SUPERSTORE,10/08/2015,4951,8.82
Children's Family Services,Cleaning and domestic material,ASDA SUPERSTORE,11/02/2016,7057,4
Children's Family Services,Cleaning and domestic material,ASDA SUPERSTORE,12/02/2016,7068,8
Children's Family Services,Cleaning and domestic material,ASDA SUPERSTORE,14/01/2016,6665,25.35
Children's Family Services,Cleaning and domestic material,ASDA SUPERSTORE,14/05/2015,3111,21.96
Children's Family Services,Cleaning and domestic material,ASDA SUPERSTORE,15/06/2015,4261,1.94
Children's Family Services,Cleaning and domestic material,ASDA SUPERSTORE,17/11/2015,6048,16
Children's Family Services,Cleaning and domestic material,ASDA SUPERSTORE,18/11/2015,6055,10.97
Children's Family Services,Cleaning and domestic material,ASDA SUPERSTORE,20/08/2015,5072,10
Children's Family Services,Cleaning and domestic material,ASDA SUPERSTORE,21/12/2015,6474,4.96
Children's Family Services,Cleaning and domestic material,ASDA SUPERSTORE,22/09/2015,5391,17.6
Children's Family Services,Cleaning and domestic material,ASDA SUPERSTORE,22/10/2015,5718,10
Children's Family Services,Cleaning and domestic material,ASDA SUPERSTORE,22/10/2015,5721,5
Children's Family Services,Cleaning and domestic material,ASDA SUPERSTORE,23/07/2015,4751,13.56
Children's Family Services,Cleaning and domestic material,ASDA SUPERSTORE,23/11/2015,6110,4.96
Children's Family Services,Cleaning and domestic material,ASDA SUPERSTORE,24/07/2015,4782,14.46
Children's Family Services,Cleaning and domestic material,ASDA SUPERSTORE,24/07/2015,4785,4
Children's Family Services,Cleaning and domestic material,ASDA SUPERSTORE,25/05/2015,3191,13.18
Children's Family Services,Cleaning and domestic material,ASDA SUPERSTORE,26/06/2015,4436,13.17
Children's Family Services,Cleaning and domestic material,ASDA SUPERSTORE,29/06/2015,4467,20.4
Children's Family Services,E19 - Learning Resources,ASDA SUPERSTORE,16/12/2015,6408,6.45
Children's Family Services,E25 - Catering Supplies,ASDA SUPERSTORE,02/07/2015,4510,27.05
Children's Family Services,E25 - Catering Supplies,ASDA SUPERSTORE,08/01/2016,6600,38.73
Children's Family Services,E25 - Catering Supplies,ASDA SUPERSTORE,10/02/2016,7028,21.09
Children's Family Services,E25 - Catering Supplies,ASDA SUPERSTORE,12/11/2015,5986,25.27
Children's Family Services,E25 - Catering Supplies,ASDA SUPERSTORE,18/06/2015,4333,2.67
Children's Family Services,E25 - Catering Supplies,ASDA SUPERSTORE,23/02/2016,7174,22.73
Children's Family Services,E25 - Catering Supplies,ASDA SUPERSTORE,23/11/2015,6093,9.28
Children's Family Services,Equipment and Materials Purcha,ASDA SUPERSTORE,02/11/2015,5829,3.5
Children's Family Services,Equipment and Materials Purcha,ASDA SUPERSTORE,03/03/2016,7316,20
Children's Family Services,Equipment and Materials Purcha,ASDA SUPERSTORE,03/03/2016,7317,13.65
Children's Family Services,Equipment and Materials Purcha,ASDA SUPERSTORE,03/09/2015,5213,35.5
Children's Family Services,Equipment and Materials Purcha,ASDA SUPERSTORE,05/06/2015,4152,64
Children's Family Services,Equipment and Materials Purcha,ASDA SUPERSTORE,07/01/2016,6593,33
Children's Family Services,Equipment and Materials Purcha,ASDA SUPERSTORE,07/05/2015,3073,6
Children's Family Services,Equipment and Materials Purcha,ASDA SUPERSTORE,08/06/2015,4181,11.54
Children's Family Services,Equipment and Materials Purcha,ASDA SUPERSTORE,08/10/2015,5581,18
Children's Family Services,Equipment and Materials Purcha,ASDA SUPERSTORE,11/02/2016,7057,20.22
Children's Family Services,Equipment and Materials Purcha,ASDA SUPERSTORE,14/01/2016,6665,16
Children's Family Services,Equipment and Materials Purcha,ASDA SUPERSTORE,17/03/2016,7498,14.5
Children's Family Services,Equipment and Materials Purcha,ASDA SUPERSTORE,17/11/2015,6046,25
Children's Family Services,Equipment and Materials Purcha,ASDA SUPERSTORE,17/12/2015,6428,53.98
Children's Family Services,Equipment and Materials Purcha,ASDA SUPERSTORE,19/02/2016,7142,5
Children's Family Services,Equipment and Materials Purcha,ASDA SUPERSTORE,21/12/2015,6474,16
Children's Family Services,Equipment and Materials Purcha,ASDA SUPERSTORE,24/02/2016,7191,126
Children's Family Services,Equipment and Materials Purcha,ASDA SUPERSTORE,24/07/2015,4783,70
Children's Family Services,Equipment and Materials Purcha,ASDA SUPERSTORE,24/07/2015,4785,21.5
Children's Family Services,Equipment and Materials Purcha,ASDA SUPERSTORE,24/09/2015,5417,73.35
Children's Family Services,Equipment and Materials Purcha,ASDA SUPERSTORE,25/02/2016,7206,35.5
Children's Family Services,Equipment and Materials Purcha,ASDA SUPERSTORE,25/06/2015,4434,15
Children's Family Services,Equipment and Materials Purcha,ASDA SUPERSTORE,26/02/2016,7230,5.75
Children's Family Services,Equipment and Materials Purcha,ASDA SUPERSTORE,26/02/2016,7233,-5
Children's Family Services,Equipment and Materials Purcha,ASDA SUPERSTORE,26/06/2015,4436,22.3
Children's Family Services,Equipment and Materials Purcha,ASDA SUPERSTORE,27/08/2015,5147,4
Children's Family Services,Equipment and Materials Purcha,ASDA SUPERSTORE,28/01/2016,6845,15
Children's Family Services,Food Costs,ASDA SUPERSTORE,01/10/2015,5498,37.75
Children's Family Services,Food Costs,ASDA SUPERSTORE,02/07/2015,4513,23.46
Children's Family Services,Food Costs,ASDA SUPERSTORE,02/07/2015,4534,4
Children's Family Services,Food Costs,ASDA SUPERSTORE,02/11/2015,5829,3.94
Children's Family Services,Food Costs,ASDA SUPERSTORE,03/03/2016,7317,26.98
Children's Family Services,Food Costs,ASDA SUPERSTORE,03/09/2015,5213,84.95
Children's Family Services,Food Costs,ASDA SUPERSTORE,03/12/2015,6258,32.15
Children's Family Services,Food Costs,ASDA SUPERSTORE,04/02/2016,6955,9
Children's Family Services,Food Costs,ASDA SUPERSTORE,05/06/2015,4152,14.5
Children's Family Services,Food Costs,ASDA SUPERSTORE,05/11/2015,5892,27.96
Children's Family Services,Food Costs,ASDA SUPERSTORE,07/01/2016,6593,33.2
Children's Family Services,Food Costs,ASDA SUPERSTORE,08/06/2015,4170,102.84
Children's Family Services,Food Costs,ASDA SUPERSTORE,08/06/2015,4181,8.83
Children's Family Services,Food Costs,ASDA SUPERSTORE,08/10/2015,5581,22.26
Children's Family Services,Food Costs,ASDA SUPERSTORE,09/02/2016,7015,45.2
Children's Family Services,Food Costs,ASDA SUPERSTORE,09/07/2015,4609,24.76
Children's Family Services,Food Costs,ASDA SUPERSTORE,09/09/2015,5267,5.7
Children's Family Services,Food Costs,ASDA SUPERSTORE,10/02/2016,7048,5
Children's Family Services,Food Costs,ASDA SUPERSTORE,10/09/2015,5282,35.41
Children's Family Services,Food Costs,ASDA SUPERSTORE,10/12/2015,6334,44.61
Children's Family Services,Food Costs,ASDA SUPERSTORE,11/02/2016,7057,18.59
Children's Family Services,Food Costs,ASDA SUPERSTORE,11/03/2016,7413,16.11
Children's Family Services,Food Costs,ASDA SUPERSTORE,12/02/2016,7068,11.2
Children's Family Services,Food Costs,ASDA SUPERSTORE,12/10/2015,5604,8.95
Children's Family Services,Food Costs,ASDA SUPERSTORE,12/11/2015,5988,61.02
Children's Family Services,Food Costs,ASDA SUPERSTORE,13/01/2016,6654,4.79
Children's Family Services,Food Costs,ASDA SUPERSTORE,14/01/2016,6665,125.69
Children's Family Services,Food Costs,ASDA SUPERSTORE,15/06/2015,4261,118
Children's Family Services,Food Costs,ASDA SUPERSTORE,16/09/2015,5341,4.99
Children's Family Services,Food Costs,ASDA SUPERSTORE,16/12/2015,6421,3
Children's Family Services,Food Costs,ASDA SUPERSTORE,17/03/2016,7498,48.82
Children's Family Services,Food Costs,ASDA SUPERSTORE,17/08/2015,5026,13.6
Children's Family Services,Food Costs,ASDA SUPERSTORE,17/09/2015,5350,79.69
Children's Family Services,Food Costs,ASDA SUPERSTORE,17/11/2015,6047,4
Children's Family Services,Food Costs,ASDA SUPERSTORE,18/02/2016,7118,11.68
Children's Family Services,Food Costs,ASDA SUPERSTORE,18/02/2016,7120,27.7
Children's Family Services,Food Costs,ASDA SUPERSTORE,18/05/2015,3125,53.72
Children's Family Services,Food Costs,ASDA SUPERSTORE,18/11/2015,6055,3.97
Children's Family Services,Food Costs,ASDA SUPERSTORE,18/12/2015,6448,9.42
Children's Family Services,Food Costs,ASDA SUPERSTORE,19/02/2016,7142,12.91
Children's Family Services,Food Costs,ASDA SUPERSTORE,19/05/2015,3140,6.65
Children's Family Services,Food Costs,ASDA SUPERSTORE,19/05/2015,3147,89
Children's Family Services,Food Costs,ASDA SUPERSTORE,19/06/2015,4363,86.17
Children's Family Services,Food Costs,ASDA SUPERSTORE,19/11/2015,6070,23.59
Children's Family Services,Food Costs,ASDA SUPERSTORE,20/05/2015,3160,5.5
Children's Family Services,Food Costs,ASDA SUPERSTORE,20/08/2015,5072,1.75
Children's Family Services,Food Costs,ASDA SUPERSTORE,20/08/2015,5073,87.05
Children's Family Services,Food Costs,ASDA SUPERSTORE,21/12/2015,6474,3.8
Children's Family Services,Food Costs,ASDA SUPERSTORE,22/01/2016,6772,5.7
Children's Family Services,Food Costs,ASDA SUPERSTORE,22/10/2015,5718,9
Children's Family Services,Food Costs,ASDA SUPERSTORE,22/10/2015,5721,52.82
Children's Family Services,Food Costs,ASDA SUPERSTORE,23/10/2015,5734,10
Children's Family Services,Food Costs,ASDA SUPERSTORE,23/12/2015,6520,14.27
Children's Family Services,Food Costs,ASDA SUPERSTORE,24/02/2016,7191,1.8
Children's Family Services,Food Costs,ASDA SUPERSTORE,24/07/2015,4775,19.25
Children's Family Services,Food Costs,ASDA SUPERSTORE,24/07/2015,4782,57.96
Children's Family Services,Food Costs,ASDA SUPERSTORE,24/07/2015,4785,1.5
Children's Family Services,Food Costs,ASDA SUPERSTORE,24/09/2015,5417,6.02
Children's Family Services,Food Costs,ASDA SUPERSTORE,25/02/2016,7206,47.82
Children's Family Services,Food Costs,ASDA SUPERSTORE,25/05/2015,3191,92.49
Children's Family Services,Food Costs,ASDA SUPERSTORE,25/06/2015,4434,14.01
Children's Family Services,Food Costs,ASDA SUPERSTORE,26/06/2015,4436,20.84
Children's Family Services,Food Costs,ASDA SUPERSTORE,27/08/2015,5147,53.38
Children's Family Services,Food Costs,ASDA SUPERSTORE,28/01/2016,6845,49.31
Children's Family Services,Food Costs,ASDA SUPERSTORE,28/10/2015,5795,13.8
Children's Family Services,Food Costs,ASDA SUPERSTORE,30/07/2015,4843,35.68
Children's Family Services,Food Costs,ASDA SUPERSTORE,30/11/2015,6174,3.86
Children's Family Services,Other Services,ASDA SUPERSTORE,11/08/2015,4953,46.39
Children's Family Services,Other Transfer Payments to Soc,ASDA SUPERSTORE,03/09/2015,5213,8
Children's Family Services,Other Transfer Payments to Soc,ASDA SUPERSTORE,05/10/2015,5532,-7.5
Children's Family Services,Other Transfer Payments to Soc,ASDA SUPERSTORE,10/12/2015,6334,30.5
Children's Family Services,Other Transfer Payments to Soc,ASDA SUPERSTORE,22/10/2015,5721,24
Children's Family Services,Other Transfer Payments to Soc,ASDA SUPERSTORE,26/08/2015,5136,16.5
Children's Family Services,Other Transfer Payments to Soc,ASDA SUPERSTORE,27/08/2015,5147,7
Children's Family Services,Other Transfer Payments to Soc,ASDA SUPERSTORE,29/06/2015,4468,1
Children's Family Services,Other Transfer Payments to Soc,ASDA SUPERSTORE,29/06/2015,4469,1.94
Children's Family Services,Publications,ASDA SUPERSTORE,02/11/2015,5829,0.6
Children's Family Services,Publications,ASDA SUPERSTORE,08/06/2015,4170,0.55
Children's Family Services,Publications,ASDA SUPERSTORE,09/02/2016,7015,0.6
Children's Family Services,Publications,ASDA SUPERSTORE,09/09/2015,5267,0.6
Children's Family Services,Publications,ASDA SUPERSTORE,12/02/2016,7068,0.6
Children's Family Services,Publications,ASDA SUPERSTORE,15/06/2015,4261,0.6
Children's Family Services,Publications,ASDA SUPERSTORE,18/02/2016,7118,0.6
Children's Family Services,Publications,ASDA SUPERSTORE,18/05/2015,3125,0.55
Children's Family Services,Publications,ASDA SUPERSTORE,19/05/2015,3140,0.6
Children's Family Services,Publications,ASDA SUPERSTORE,21/12/2015,6474,0.6
Children's Family Services,Publications,ASDA SUPERSTORE,23/07/2015,4751,0.6
Children's Family Services,Publications,ASDA SUPERSTORE,23/10/2015,5734,0.6
Children's Family Services,Publications,ASDA SUPERSTORE,24/02/2016,7191,0.6
Children's Family Services,Publications,ASDA SUPERSTORE,25/05/2015,3191,0.55
Children's Family Services,Publications,ASDA SUPERSTORE,28/10/2015,5795,0.6
Children's Family Services,Publications,ASDA SUPERSTORE,30/11/2015,6174,0.6
Children's Family Services,Stationery,ASDA SUPERSTORE,08/06/2015,4181,16
Children's Family Services,Stationery,ASDA SUPERSTORE,09/02/2016,7015,2.5
Children's Family Services,Training,ASDA SUPERSTORE,21/01/2016,6755,65.36
Children's Family Services,Cleaning and domestic material,ASDA SUPERSTORE0000,21/05/2015,5686,13.96
Children's Family Services,Equipment and Materials Purcha,ASDA SUPERSTORE0000,21/05/2015,5715,68.45
Children's Family Services,Food Costs,ASDA SUPERSTORE0000,21/05/2015,5828,38.8
Children's Family Services,Other Services,ASDAN,03/03/2016,7319,368.78
Children's Family Services,Other Services,ASDAN,11/06/2015,4237,9.06
Children's Family Services,Other Services,ATG TICKET WEB,08/02/2016,6988,127.5
Children's Education & Skills,Food Costs,ATLANTIC SHOPPING,07/07/2015,4561,179.96
Children's Family Services,Other Transfer Payments to Soc,AUTO-STORE(MOTOR F,24/12/2015,6534,12.99
Children's Family Services,Building Repairs & Maintenance,B  Q000000000000000,21/05/2015,5778,8.33
Children's Family Services,Building Repairs & Maintenance,B  Q000000000000000,21/05/2015,5780,2.15
Children's Family Services,Building Repairs & Maintenance,B  Q000000000000000,21/05/2015,5782,2.98
Children's Family Services,Building Repairs & Maintenance,B  Q000000000000000,21/05/2015,5784,1.82
Assurance,Miscellaneous Expenses,B & Q,19/02/2016,7143,19.35
Children's Family Services,Building Repairs & Maintenance,B & Q,14/08/2015,4999,57.47
Children's Family Services,Building Repairs & Maintenance,B & Q,16/11/2015,6012,97.3
Children's Family Services,Building Repairs & Maintenance,B & Q,17/12/2015,6424,42.58
Children's Family Services,Equipment and Materials Purcha,B & Q,12/06/2015,4257,176.29
Children's Family Services,Equipment and Materials Purcha,B & Q,19/06/2015,4364,164
Children's Family Services,Equipment and Materials Purcha,B & Q,29/06/2015,4455,101.38
Children's Family Services,Other Services,B & Q,06/01/2016,6574,53.61
Children's Family Services,Other Services,B & Q,11/05/2015,3088,30.23
Children's Family Services,Other Services,B & Q,17/12/2015,6426,21
Children's Family Services,Equipment and Materials Purcha,B AND M,23/11/2015,6114,11.98
Children's Family Services,Building Repairs & Maintenance,B AND Q 1072,23/03/2016,7557,37.88
Children's Family Services,Equipment and Materials Purcha,B AND Q 1072,18/03/2016,7504,28.52
Children's Education & Skills,Equipment and Materials Purcha,B&Q,12/08/2015,4982,115.71
Children's Family Services,Food Costs,BABA CONFECTIONERY,03/02/2016,6933,2.99
Children's Family Services,Food Costs,BABA CONFECTIONERY,22/01/2016,6766,3.58
Children's Family Services,Food Costs,BABA CONFECTIONERY,28/01/2016,6843,2
Children's Family Services,Travelling Expenses,BABA CONFECTIONERY,03/02/2016,6933,15
Children's Family Services,Travelling Expenses,BABA CONFECTIONERY,22/01/2016,6766,10
Children's Family Services,Travelling Expenses,BABA CONFECTIONERY,28/01/2016,6843,15
Children's Family Services,Miscellaneous Expenses,BACCHUS HOTEL LTD,30/07/2015,4845,57.12
Children's Family Services,Equipment and Materials Purcha,BAMBUZO LLC,18/06/2015,4331,17.01
Children's Family Services,Other Services,BANHAM GROUP,24/12/2015,6535,115.2
Children's Family Services,Other Transfer Payments to Soc,BARNET COLLEGE,25/11/2015,6143,5
Children's Family Services,Building Repairs & Maintenance,BARNET LOCK CENTRE LTD,20/10/2015,5683,54
Children's Family Services,Equipment and Materials Purcha,BARNET LOCK CENTRE LTD,10/11/2015,5962,9.2
Children's Family Services,Equipment and Materials Purcha,BARNET LOCK CENTRE LTD,24/11/2015,6132,27
Children's Family Services,Equipment and Materials Purcha,BARNET LOCK CENTRE LTD,29/07/2015,4826,54
Children's Family Services,Equipment and Materials Purcha,BARNET LOCK CENTRE LTD,30/07/2015,4840,27
Children's Family Services,Miscellaneous Expenses,BARNET REGISTER OFFICE,01/07/2015,4501,15
Children's Family Services,Miscellaneous Expenses,BARNET REGISTER OFFICE,07/01/2016,6597,90
Children's Family Services,Miscellaneous Expenses,BARNET REGISTER OFFICE,10/08/2015,4941,15
Children's Family Services,Miscellaneous Expenses,BARNET REGISTER OFFICE,20/07/2015,4697,15
Children's Family Services,Miscellaneous Expenses,BARNET REGISTER OFFICE,21/09/2015,5377,30
Children's Family Services,Miscellaneous Expenses,BARNET REGISTER OFFICE,21/09/2015,5378,30
Children's Family Services,Miscellaneous Expenses,BARNET REGISTER OFFICE,28/01/2016,6851,30
Children's Family Services,Other Agencies - Third Party P,BARNET REGISTER OFFICE,07/10/2015,5573,30
Children's Family Services,Other Agencies - Third Party P,BARNET REGISTER OFFICE,21/05/2015,3167,12.5
Assurance,Equipment and Materials Purcha,BARTLETTS KEY SERVICES,02/03/2016,7280,4.25
Children's Family Services,Building Repairs & Maintenance,BARTLETTS KEY SERVICES,09/09/2015,5277,7.49
Children's Family Services,Building Repairs & Maintenance,BARTLETTS KEY SERVICES,09/09/2015,5278,114.2
Children's Family Services,Building Repairs & Maintenance,BARTLETTS KEY SERVICES,09/11/2015,5926,19.24
Children's Family Services,Building Repairs & Maintenance,BARTLETTS KEY SERVICES,10/06/2015,4222,27.73
Children's Family Services,Building Repairs & Maintenance,BARTLETTS KEY SERVICES,13/01/2016,6642,74.85
Children's Family Services,Building Repairs & Maintenance,BARTLETTS KEY SERVICES,14/12/2015,6381,36.92
Children's Family Services,Building Repairs & Maintenance,BARTLETTS KEY SERVICES,28/01/2016,6857,24.96
Children's Family Services,Equipment and Materials Purcha,BARTLETTS KEY SERVICES,04/11/2015,5879,93.88
Children's Family Services,Equipment and Materials Purcha,BARTLETTS KEY SERVICES,05/08/2015,4888,3.4
Children's Family Services,Equipment and Materials Purcha,BARTLETTS KEY SERVICES,11/06/2015,4232,81.61
Children's Family Services,Equipment and Materials Purcha,BARTLETTS KEY SERVICES,25/03/2016,7597,26.25
Children's Family Services,Training,BECCLES LIBRARY,16/06/2015,4301,400
Children's Family Services,Food Costs,BIG BEN FISHERIES,14/08/2015,4998,17.88
Children's Family Services,Other Agencies - Third Party P,BIG YELLOW SELF STORAG,14/05/2015,3109,244.96
Children's Service DSG,Subscriptions,BILD CHARITY IMPREST A,11/06/2015,4223,90
Children's Family Services,Other Services,BITTACY CS LTD,08/07/2015,4597,119
Assurance,Conference Expenses,BLACKPOOL HILTON,01/10/2015,5506,170
Assurance,Cleaning and domestic material,BLAKES DRY CLEANER,21/05/2015,5718,21
Assurance,Cleaning and domestic material,BLAKES DRY CLEANER,21/05/2015,5722,10.99
Assurance,Miscellaneous Expenses,BLAKES DRY CLEANER LTD,01/02/2016,6890,9.58
Assurance,Miscellaneous Expenses,BLAKES DRY CLEANER LTD,06/08/2015,4906,6.67
Assurance,Miscellaneous Expenses,BLAKES DRY CLEANER LTD,11/05/2015,3085,28.73
Assurance,Miscellaneous Expenses,BLAKES DRY CLEANER LTD,23/06/2015,4399,12.5
Assurance,Miscellaneous Expenses,BLAKES DRY CLEANER LTD,28/07/2015,4817,27.49
Children's Family Services,Other Transfer Payments to Soc,BLUE INC.,07/12/2015,6296,67.01
Children's Family Services,Equipment and Materials Purcha,BOOTS 1656,06/01/2016,6586,3.59
Children's Family Services,Other Transfer Payments to Soc,BOOTS 1656,15/09/2015,5331,3.59
Children's Family Services,Other Transfer Payments to Soc,BOOTS 6509,11/05/2015,3086,22.02
Children's Family Services,Other Transfer Payments to Soc,"BOOTS,0785",08/02/2016,6982,27.63
Children's Family Services,Other Transfer Payments to Soc,"BOOTS,0785",31/08/2015,5179,34.98
Children's Family Services,Equipment and Materials Purcha,BOOTS.COM0000000000,21/05/2015,5708,101.62
Streetscene,Operating Leases - Transport,BOWMONK LTD,25/02/2016,7213,65.83
Children's Family Services,Other Services,BOX.COM UK LTD GBP,22/02/2016,7169,12.6
Children's Family Services,Other Services,BOX.COM UK LTD GBP,24/02/2016,7196,-12.6
Assurance,Vehicle Running Costs,BP KELLYS CORNER CO,21/05/2015,5719,4
Assurance,Vehicle Running Costs,BP KELLYS CORNER CO,21/05/2015,5720,9
Assurance,Miscellaneous Expenses,BP KELLYS CORNER CONNE,08/07/2015,4581,7.5
Assurance,Miscellaneous Expenses,BP KELLYS CORNER CONNE,15/07/2015,4661,9.41
Children's Family Services,Other Transfer Payments to Soc,BRAGGS,09/07/2015,4611,34.95
Children's Family Services,Other Transfer Payments to Soc,BRAGGS,17/12/2015,6440,19.95
Children's Service DSG,Equipment and Materials Purcha,BRAIN SENSE THERAPY,10/12/2015,6339,43
Children's Family Services,Other Services,BRILLIANT BINS HYGIENE,10/09/2015,5280,133.5
Children's Education & Skills,Training,BRIT PSYCHOLOGICAL,02/02/2016,6915,68.33
Children's Family Services,Miscellaneous Expenses,BRITISH GAS BUSINE,27/01/2016,6836,405.93
Children's Family Services,Books-CDs-Audio-Video,BROTHER & SONS LIMITED,10/02/2016,7036,3.08
Children's Family Services,Other Transfer Payments to Soc,BROWN BASIC,28/09/2015,5456,45
Children's Family Services,Other Services,BT BILL PAYMENT 1,08/01/2016,6601,74.2
Children's Family Services,Other Services,BT BILL PAYMENT 1,12/06/2015,4250,82.43
Children's Family Services,Other Services,BT BILL PAYMENT 1,23/09/2015,5399,74.41
Children's Family Services,Telephones Calls,BT BILL PAYMENT 1,01/06/2015,3276,59.87
Children's Family Services,Telephones Calls,BT BILL PAYMENT 1,01/06/2015,3277,76.01
Children's Family Services,Telephones Calls,BT BILL PAYMENT 1,02/12/2015,6246,83.88
Children's Family Services,Telephones Calls,BT BILL PAYMENT 1,02/12/2015,6247,212.28
Children's Family Services,Telephones Calls,BT BILL PAYMENT 1,07/09/2015,5241,74.93
Children's Family Services,Telephones Calls,BT BILL PAYMENT 1,07/09/2015,5242,59.92
Children's Family Services,Telephones Calls,BT BILL PAYMENT 1,08/09/2015,5263,206.74
Children's Family Services,Telephones Calls,BT BILL PAYMENT 1,20/05/2015,3159,176.19
Children's Family Services,Telephones Calls,BT BILL PAYMENT 1,26/11/2015,6159,83.15
Children's Family Services,Telephones Calls,BT BILL PAYMENT 1,26/11/2015,6160,67.16
Children's Family Services,Telephones Calls,BT BILL PAYMENT 1,28/05/2015,3245,88.4
Children's Family Services,Telephones Calls,BT BILL PAYMENT 1,28/05/2015,3246,240.14
Children's Family Services,Telephones Calls,BT BILL PAYMENT 1,28/05/2015,3247,74.48
Children's Family Services,E19 - Learning Resources,BT PAY BY PHONE,17/12/2015,6423,79.78
Children's Family Services,Education CFR Administrative S,BT PAY BY PHONE,09/10/2015,5584,44.93
Children's Family Services,Education CFR Administrative S,BT PAY BY PHONE,22/02/2016,7153,80.71
Children's Family Services,Education CFR Administrative S,BT PAY BY PHONE,24/11/2015,6122,308.15
Children's Family Services,Education CFR Administrative S,BT PAY BY PHONE,26/01/2016,6806,85.69
Children's Family Services,Other Services,BT PAY BY PHONE,06/11/2015,5904,192.16
Children's Family Services,Other Services,BT PAY BY PHONE,07/08/2015,4917,192.82
Children's Family Services,Other Services,BT PAY BY PHONE,10/02/2016,7032,192.16
Children's Family Services,Telephones Calls,BT PAY BY PHONE,01/03/2016,7266,232.27
Children's Family Services,Telephones Calls,BT PAY BY PHONE,03/03/2016,7324,83.39
Children's Family Services,Telephones Calls,BT PAY BY PHONE,03/03/2016,7325,67.15
Children's Family Services,Telephones Calls,BT PAY BY PHONE,03/07/2015,4544,99.22
Children's Family Services,Telephones Calls,BT PAY BY PHONE,04/02/2016,6959,78.6
Children's Family Services,Telephones Calls,BT PAY BY PHONE,04/11/2015,5883,76.2
Children's Family Services,Telephones Calls,BT PAY BY PHONE,06/08/2015,4909,96.2
Children's Family Services,Telephones Calls,BT PAY BY PHONE,20/05/2015,3158,187
Children's Family Services,Telephones Calls,BT PAY BY PHONE,20/10/2015,5678,49.33
Children's Family Services,Telephones Calls,BT PAY BY PHONE,21/07/2015,4715,57.83
Children's Family Services,Telephones Calls,BT PAY BY PHONE,22/12/2015,6507,66.9
Children's Family Services,Telephones Calls,BT PAY BY PHONE,27/08/2015,5153,76.92
Children's Family Services,Building Repairs & Maintenance,BUILDER DEPOT LTD,20/11/2015,6078,24.03
Children's Family Services,Building Repairs & Maintenance,BUILDER DEPOT LTD,24/08/2015,5088,61.9
Children's Family Services,Building Repairs & Maintenance,BUILDER DEPOT LTD,25/09/2015,5427,49.93
Children's Family Services,Building Repairs & Maintenance,BUILDER DEPOT LTD,25/09/2015,5428,45.69
Children's Family Services,Equipment and Materials Purcha,BUILDER DEPOT LTD,21/09/2015,5362,15.92
Children's Family Services,Building Repairs & Maintenance,BUILDER DEPOT N11,05/10/2015,5528,16.5
Children's Family Services,Building Repairs & Maintenance,BUILDER DEPOT N11,07/10/2015,5558,19.95
Children's Family Services,Building Repairs & Maintenance,BUILDER DEPOT N11,20/11/2015,6079,16.68
Children's Family Services,Building Repairs & Maintenance,BUILDER DEPOT N11,21/01/2016,6756,50.51
Children's Family Services,Equipment and Materials Purcha,BUILDER DEPOT N11,03/09/2015,5210,12.71
Children's Family Services,Equipment and Materials Purcha,BUILDER DEPOT N11,29/01/2016,6861,37.6
Children's Family Services,Food Costs,BURGER KING,27/08/2015,5141,10.77
Children's Family Services,Other Services,BUYAGIFT PLC,12/08/2015,4979,70.99
Children's Family Services,Equipment and Materials Purcha,BUYSPARES,14/09/2015,5301,4.98
Children's Family Services,Training,C I L I P,15/09/2015,5323,195
Children's Family Services,Other Transfer Payments to Soc,C.E.S.,25/09/2015,5435,124.17
Assurance,Other Indirect Employee Expens,CAFE 57 LTD,25/11/2015,6137,58.55
Children's Family Services,Food Costs,CAFE RITAZZA,28/08/2015,5172,7.84
Assurance,Miscellaneous Expenses,CAMDEN COUNCIL,28/01/2016,6849,1
Children's Family Services,Other Agencies - Third Party P,CAMP BEAUMONT DAY CAMP,24/08/2015,5086,48.18
Children's Family Services,Other Agencies - Third Party P,CAMP BEAUMONT DAY CAMP,25/08/2015,5118,139.4
Commissioning,Equipment and Materials Purcha,CAMPAIGNMONITOR,03/12/2015,6261,3.42
Commissioning,Equipment and Materials Purcha,CAMPAIGNMONITOR,18/02/2016,7123,20.98
Commissioning,Equipment and Materials Purcha,CAMPAIGNMONITOR,18/02/2016,7124,6.51
Commissioning,Equipment and Materials Purcha,CAMPAIGNMONITOR,18/12/2015,6453,6.19
Commissioning,Equipment and Materials Purcha,CAMPAIGNMONITOR,18/12/2015,6454,19.92
Commissioning,Equipment and Materials Purcha,CAMPAIGNMONITOR,19/01/2016,6728,6.48
Commissioning,Equipment and Materials Purcha,CAMPAIGNMONITOR,19/01/2016,6729,20.85
Commissioning,Equipment and Materials Purcha,CAMPAIGNMONITOR,23/02/2016,7183,71.55
Assurance,Miscellaneous Expenses,CANFORD AUDIO PLC,22/10/2015,5729,172.8
Adults and Communities,Training,CAPITA BUS SVS-MOTO,12/06/2015,4252,420
Children's Family Services,Equipment and Materials Purcha,CAPITA RECRUITMENT VET,15/10/2015,5639,43.42
Children's Family Services,Other Services,CAPITAL FIRE RISK ASSE,27/08/2015,5145,234
Children's Family Services,Other Transfer Payments to Soc,CAR LIMITS LTD,05/10/2015,5543,30
Children's Education & Skills,Food Costs,CARMELLI BAKERIES LTD,04/05/2015,3053,200
Children's Family Services,Equipment and Materials Purcha,CARPETRIGHT,19/01/2016,6716,132.32
Children's Family Services,Equipment and Materials Purcha,CARPETRIGHT00000000,21/05/2015,5801,486.14
Children's Family Services,Other Transfer Payments to Soc,CARPHONE WAREHOUSE,22/06/2015,4373,99.99
Children's Family Services,Other Transfer Payments to Soc,CARPHONE WAREHOUSE,26/06/2015,4446,24.99
Children's Family Services,Publications,CARTRIDGESAVE.CO.UK,04/08/2015,4879,232.47
Children's Family Services,Stationery,CARTRIDGESAVE.CO.UK,06/01/2016,6578,70.62
Children's Family Services,Stationery,CARTRIDGESAVE.CO.UK,15/09/2015,5321,50.62
Children's Family Services,Stationery,CARTRIDGESAVE.CO.UK,18/01/2016,6696,113.37
Children's Education & Skills,Equipment and Materials Purcha,CE-CES LTD,29/09/2015,5466,344.83
Children's Education & Skills,Equipment and Materials Purcha,CE-CES LTD,30/09/2015,5486,86.21
Commissioning,Professional Services,CENTREMAPS,21/01/2016,6763,720
Children's Family Services,Other Services,CEX,01/10/2015,5494,30
Children's Family Services,Other Transfer Payments to Soc,CEX,23/12/2015,6517,87
Children's Family Services,Other Transfer Payments to Soc,CEX,29/02/2016,7244,25
Streetscene,Equipment and Materials Purcha,CHARACTERS SIGNS LTD,21/01/2016,6757,64.2
Children's Family Services,Food Costs,CHELSEA & WESTMINSTER,14/01/2016,6658,7.1
Children's Family Services,Other Transfer Payments to Soc,CHOICE OF EDGWARE,30/11/2015,6171,18.9
Children's Family Services,Other Transfer Payments to Soc,CHOICE OF HATFIELD,27/08/2015,5142,33.04
Children's Family Services,Other Agencies - Third Party P,CILEX LAW SCHOOL LIMIT,03/11/2015,5855,282.5
Commissioning,Other Transfer Payments to Soc,CILEX LAW SCHOOL LIMIT,03/11/2015,5855,282.5
Children's Family Services,Other Services,CINEWORLD WOO CP,08/02/2016,7003,32.6
Children's Family Services,Other Services,CINEWORLD WOO CP,12/10/2015,5606,26.2
Children's Family Services,Other Services,CIRCLE ONLINE,08/06/2015,4183,515
Children's Family Services,Other Transfer Payments to Soc,CLAIRE'S ACCESSORIES,23/12/2015,6528,5.05
Children's Family Services,Other Transfer Payments to Soc,CLAIRE'S ACCESSORIES,23/12/2015,6530,5
Children's Family Services,Equipment and Materials Purcha,CLEVERCARDZ/HAMMERSON.,24/06/2015,4423,131.6
Children's Family Services,Food Costs,COFFEE REPUBLIC,14/01/2016,6662,7.5
Children's Education & Skills,Training,COLLEGE COURT CONFEREN,12/06/2015,4256,130
Children's Education & Skills,Equipment and Materials Purcha,COMMERCIAL CATERIN,11/11/2015,5965,92.52
Children's Education & Skills,Equipment and Materials Repair,COMMERCIAL CATERIN,22/01/2016,6773,34.36
Children's Education & Skills,Equipment and Materials Repair,COMMERCIAL CATERIN,22/12/2015,6504,37.38
Children's Family Services,Miscellaneous Expenses,COMPARE THE MAN AND VA,22/07/2015,4745,71.4
Children's Family Services,Other Agencies - Third Party P,COMPARE THE MAN AND VA,08/07/2015,4585,45.3
Children's Family Services,Other Agencies - Third Party P,COMPARE THE MAN AND VA,21/05/2015,3168,18.75
Children's Family Services,Other Transfer Payments to Soc,COMPARE THE MAN AND VA,07/10/2015,5568,68.2
Children's Family Services,Other Transfer Payments to Soc,COMPARE THE MAN AND VA,21/09/2015,5374,143.96
Children's Service DSG,Equipment and Materials Purcha,CONNEVANS LTD,09/06/2015,4214,90.86
Children's Service DSG,Equipment and Materials Purcha,CONNEVANS LTD,30/07/2015,4846,39.38
Commissioning,Training,CONTINUITY SHOP,24/07/2015,4778,"1,310.00"
Children's Family Services,Food Costs,CO-OP GROUP 060706,01/07/2015,4496,21.67
Children's Family Services,Food Costs,CO-OP GROUP 060706,01/07/2015,4497,9.72
Children's Family Services,Food Costs,CO-OP GROUP 060706,02/07/2015,4507,21.73
Children's Family Services,Food Costs,CO-OP GROUP 060706,30/06/2015,4476,35.48
Children's Family Services,Food Costs,CO-OP GROUP 180222,02/06/2015,3286,7
Children's Family Services,Food Costs,CO-OP GROUP 180222,09/12/2015,6322,8.33
Children's Family Services,Food Costs,CO-OP GROUP 180222,13/08/2015,4986,7
Children's Family Services,Food Costs,CO-OP GROUP 180222,22/01/2016,6771,9.8
Children's Family Services,Food Costs,CO-OP GROUP 180222,31/08/2015,5185,5.79
Children's Family Services,Publications,CO-OP GROUP 180222,09/12/2015,6322,0.6
Children's Family Services,Cleaning and domestic material,CO-OP GROUP FOOD,01/03/2016,7276,1.5
Children's Family Services,Cleaning and domestic material,CO-OP GROUP FOOD,02/11/2015,5837,2.95
Children's Family Services,Cleaning and domestic material,CO-OP GROUP FOOD,19/06/2015,4359,2.92
Children's Family Services,Cleaning and domestic material,CO-OP GROUP FOOD,19/06/2015,4360,2.92
Children's Family Services,Food Costs,CO-OP GROUP FOOD,01/03/2016,7274,5.83
Children's Family Services,Food Costs,CO-OP GROUP FOOD,03/09/2015,5214,2.85
Children's Family Services,Food Costs,CO-OP GROUP FOOD,09/09/2015,5275,22.18
Children's Family Services,Food Costs,CO-OP GROUP FOOD,10/08/2015,4928,20.84
Children's Family Services,Food Costs,CO-OP GROUP FOOD,15/10/2015,5641,12.53
Children's Family Services,Food Costs,CO-OP GROUP FOOD,18/08/2015,5033,7.99
Children's Family Services,Food Costs,CO-OP GROUP FOOD,19/08/2015,5070,23.8
Children's Family Services,Food Costs,CO-OP GROUP FOOD,21/01/2016,6758,17.63
Children's Family Services,Food Costs,CO-OP GROUP FOOD,25/03/2016,7598,7.94
Children's Family Services,Food Costs,CO-OP GROUP FOOD,26/02/2016,7223,4
Children's Family Services,Food Costs,CO-OP GROUP FOOD,26/10/2015,5762,2.29
Children's Family Services,Food Costs,CO-OP GROUP FOOD,26/11/2015,6150,11.26
Children's Family Services,Miscellaneous Expenses,CO-OP GROUP FOOD,18/12/2015,6456,23.2
Children's Family Services,Miscellaneous Expenses,CO-OP GROUP FOOD,18/12/2015,6458,7.87
Children's Family Services,Cleaning and domestic material,COOPERS OF BARNET,05/01/2016,6559,9.98
Children's Family Services,Cleaning and domestic material,COOPERS OF BARNET,08/02/2016,6989,15.96
Children's Family Services,Cleaning and domestic material,COOPERS OF BARNET,09/06/2015,4197,5.98
Children's Family Services,Equipment and Materials Purcha,COOPERS OF BARNET,06/08/2015,4901,9.99
Children's Family Services,Equipment and Materials Purcha,COOPERS OF BARNET,22/09/2015,5386,9.98
Children's Family Services,Equipment and Materials Purcha,COOPERS OF BARNET,23/11/2015,6097,3.5
Children's Family Services,Equipment and Materials Purcha,COOPERS OF BARNET,25/11/2015,6138,2.24
Children's Family Services,Stationery,COOPERS OF BARNET,23/11/2015,6097,2.99
Children's Family Services,Stationery,COOPERS OF BARNET,25/11/2015,6138,2.99
Children's Family Services,Food Costs,COSTA COFFEE,30/11/2015,6169,10.55
Assurance,Subsistence,COSTA COFFEE0000000,21/05/2015,5726,4.05
Children's Family Services,Equipment and Materials Purcha,COSTCO ON-LINE,28/10/2015,5794,44.4
Children's Family Services,Other Agencies - Third Party P,COSTCO ON-LINE,16/09/2015,5334,25
Children's Family Services,Food Costs,COSTCUTTER,11/09/2015,5298,14.88
Children's Family Services,Food Costs,COSTCUTTER,22/01/2016,6781,14.8
Children's Family Services,Other Agencies - Third Party P,CRAZY DISCOUNTS,03/06/2015,3302,416.67
Children's Family Services,Other Agencies - Third Party P,CRAZY DISCOUNTS,04/06/2015,4135,250
Children's Family Services,Other Agencies - Third Party P,CRAZY DISCOUNTS,04/06/2015,4136,150
Children's Family Services,Other Agencies - Third Party P,CRAZY DISCOUNTS,05/06/2015,4146,416.67
Children's Family Services,Other Agencies - Third Party P,CRAZY DISCOUNTS,08/06/2015,4167,416.67
Children's Family Services,Other Agencies - Third Party P,CRAZY DISCOUNTS,29/05/2015,3254,416.67
Children's Family Services,Other Transfer Payments to Soc,CRAZY DISCOUNTS,10/09/2015,5288,500
Children's Family Services,Other Transfer Payments to Soc,CRAZY DISCOUNTS,11/09/2015,5297,230
Children's Family Services,Subscriptions,CREATESEND/COM,25/02/2016,7217,17
Children's Family Services,Subscriptions,CREATESEND/COM,26/01/2016,6815,17
Children's Family Services,Subscriptions,CREATESEND/COM,28/12/2015,6544,17
Commissioning,Equipment and Materials Purcha,CREATESEND/COM,08/12/2015,6306,24
Commissioning,Equipment and Materials Purcha,CREATESEND/COM,16/11/2015,6011,3
Commissioning,Equipment and Materials Purcha,CREATESEND/COM,22/01/2016,6779,59
Commissioning,Equipment and Materials Purcha,CREATESEND/COM,22/12/2015,6510,59
Commissioning,Equipment and Materials Purcha,CREATESEND/COM,24/11/2015,6119,35
Children's Education & Skills,Equipment and Materials Purcha,CURRYS,12/06/2015,4258,8.33
Children's Education & Skills,Equipment and Materials Purcha,CURRYS,12/06/2015,4259,216.66
Adults and Communities,Training,CURRYS ONLINE,15/01/2016,6677,83.94
Adults and Communities,Training,CURRYS ONLINE,15/01/2016,6678,163.93
Children's Family Services,E19 - Learning Resources,CURRYS ONLINE,04/09/2015,5222,240.83
Children's Family Services,Equipment and Materials Purcha,CURRYS ONLINE,22/07/2015,4729,329.99
Children's Family Services,Other Transfer Payments to Soc,CURRYS ONLINE,10/12/2015,6329,157.5
Children's Family Services,Other Transfer Payments to Soc,CURRYS ONLINE,17/08/2015,5022,434.98
Children's Family Services,Subscriptions,CVLE / MPLC,30/04/2015,3034,57.96
Assurance,Equipment and Materials Purcha,D & R SIMMONS LTD,20/10/2015,5679,224.7
Children's Family Services,Travelling Expenses,TFL OYST PHOTOCARD0,21/05/2015,5714,10
Children's Family Services,Other Services,TEAM SPORT V/T00000,21/05/2015,5836,30
Assurance,Miscellaneous Expenses,D H C LTD,02/06/2015,3301,173.04
Children's Service DSG,Other Establishments - Third P,DAVID LLOYD,07/09/2015,5231,97.86
Children's Service DSG,Other Establishments - Third P,DAVID LLOYD,18/01/2016,6691,76.44
Children's Education & Skills,Equipment and Materials Purcha,DAWSONSDEPARTMENTS,24/08/2015,5090,135.5
Children's Education & Skills,Equipment and Materials Purcha,DAWSONSDEPARTMENTS,24/08/2015,5113,412.5
Children's Education & Skills,Equipment and Materials Purcha,DAWSONSDEPARTMENTS,24/08/2015,5114,495
Children's Education & Skills,Equipment and Materials Purcha,DAWSONSDEPARTMENTS,24/08/2015,5115,412.5
Streetscene,Equipment and Materials Purcha,DIRECT 365ONLINE LTD,01/10/2015,5507,280.8
Streetscene,Equipment and Materials Purcha,DIRECT 365ONLINE LTD,01/10/2015,5508,"1,098.00"
Children's Family Services,E19 - Learning Resources,DISCLOSURE & BARRING,21/12/2015,6468,10.83
Children's Family Services,Equipment and Materials Purcha,DISCLOSURE & BARRING,16/11/2015,6020,10.83
Children's Family Services,Equipment and Materials Purcha,DOMESTIC & GENERAL,28/07/2015,4810,113.88
Children's Family Services,Food Costs,DOMINOS PIZZA (BARNET),03/07/2015,4538,34.39
Children's Family Services,Food Costs,DOMINOS PIZZA (BARNET),05/06/2015,4148,12.5
Children's Family Services,Other Services,DON RUFFLES LTD,13/01/2016,6649,547.14
Children's Family Services,Miscellaneous Expenses,DONCASTER MBC#,17/02/2016,7112,11
Children's Family Services,Miscellaneous Expenses,DONCASTER MBC#,18/11/2015,6060,11
Children's Family Services,Education CFR Administrative S,DRI LOGITECH,23/11/2015,6090,33.33
Children's Family Services,Other Agencies - Third Party P,DRIVE-DYNAMICS,27/05/2015,3222,208.33
Children's Family Services,Other Services,DROPBOX BQ96N4D12K35,22/02/2016,7161,71.55
Children's Family Services,Other Transfer Payments to Soc,DVLA DRIVER ONLINE,19/05/2015,3143,34
Children's Family Services,Electricity,E.ON ENERGY SOLUTIONS,07/05/2015,3071,146.99
Children's Family Services,Miscellaneous Expenses,E.ON ENERGY SOLUTIONS,03/11/2015,5865,77.47
Children's Family Services,Other Transfer Payments to Soc,E.ON ENERGY SOLUTIONS,31/08/2015,5183,198.42
Streetscene,Equipment and Materials Purcha,EA HAZARDOUS WASTE-DOM,17/09/2015,5346,18
Children's Family Services,Equipment and Materials Purcha,EARLY YEARS DIRECT LIM,11/02/2016,7059,354.6
Assurance,Miscellaneous Expenses,EAT,06/05/2015,3060,4.5
Adults and Communities,Training,EB DELIVERING INTEGRA,28/08/2015,5167,354
Commissioning,Training,EB DELIVERING INTEGRA,23/12/2015,6522,378
Adults and Communities,Training,EB FAIR EXCHANGE DEVE,18/09/2015,5354,130
Commissioning,Conference Expenses,EB MOVING TOWARDS PLA,18/01/2016,6700,378
Customer Support Group,Conference Expenses,EB PUBLIC SECTOR LAND,05/11/2015,5901,178.8
Children's Education & Skills,Conference Expenses,EB SPECIAL EDUCATIONA,26/08/2015,5129,250
Commissioning,Training,EB TEDXWHITEHALLWOMEN,04/05/2015,3052,69.55
Children's Family Services,Other Services,EBUYER (UK) LTD,08/07/2015,4582,989.97
Children's Family Services,Other Services,EBUYER (UK) LTD,19/10/2015,5666,999.94
Children's Family Services,Other Services,EBUYER (UK) LTD,23/07/2015,4748,999.9
Children's Family Services,Food Costs,EDDIES MEAT MARKET,09/11/2015,5927,11
Children's Family Services,Food Costs,EDDIES MEAT MARKET,13/07/2015,4633,20
Children's Family Services,Food Costs,EDDIES MEAT MARKET,16/09/2015,5332,16.29
Children's Family Services,Food Costs,EDDIES MEAT MARKET,17/08/2015,5025,11.4
Children's Family Services,Food Costs,EDDIES MEAT MARKET,18/02/2016,7117,12
Children's Family Services,Food Costs,EDDIES MEAT MARKET,24/07/2015,4776,29.4
Children's Family Services,Food Costs,EDDIES MEAT MARKET,25/01/2016,6784,22.26
Children's Family Services,Food Costs,EDDIES MEAT MARKET,30/09/2015,5478,17.7
Assurance,Equipment and Materials Purcha,EDE & RAVENSCROFT,18/08/2015,5035,81.5
Children's Family Services,Miscellaneous Expenses,EDF ENERGY-IVR,03/11/2015,5864,138.04
Children's Family Services,Other Transfer Payments to Soc,EDF ENERGY-IVR,20/07/2015,4683,332.21
Children's Family Services,Other Services,EE & T-MOBILE,26/08/2015,5127,8.33
Children's Family Services,Other Transfer Payments to Soc,EE LIMITED 4232,07/08/2015,4914,94.99
Children's Family Services,Equipment and Materials Purcha,ELC-INTERNET,26/10/2015,5745,41.66
Children's Family Services,Equipment and Materials Purcha,ELECTRO SUPPLIES.C,27/10/2015,5773,80.78
Commissioning,Subscriptions,EMAP LTD-SUBSCRIPTIONS,09/02/2016,7019,221.45
Commissioning,Subscriptions,EMAP LTD-SUBSCRIPTIONS,19/01/2016,6725,179
Commissioning,Subscriptions,EMAP LTD-SUBSCRIPTIONS,19/01/2016,6726,179
Children's Family Services,Building Repairs & Maintenance,EMPRESS BUILDING C,12/11/2015,6002,80
Streetscene,Training,ENVIRONMENT MEDIA GRP,14/12/2015,6373,159.9
Commissioning,Equipment and Materials Purcha,EQUINUX AG,01/12/2015,6218,10.18
Commissioning,Equipment and Materials Purcha,EQUINUX AG,19/10/2015,5672,13.67
Children's Education & Skills,Equipment and Materials Repair,EUROTECH ENGINEERING U,19/10/2015,5665,110
Customer Support Group,Conference Expenses,EVENTBRITE INC,11/11/2015,5980,-178.8
Children's Family Services,Food Costs,ASDA HOME SHOPPING0,21/05/2015,5680,174.79
Children's Family Services,Food Costs,ASDA HOME SHOPPING0,21/05/2015,5692,158.32
Children's Family Services,Food Costs,ASDA SUPERSTORE0000,21/05/2015,5687,111.91
Children's Family Services,Publications,ASDA SUPERSTORE0000,21/05/2015,5688,0.55
Children's Family Services,Food Costs,FIOS FOOD CENTRE000,21/05/2015,5689,24.03
Children's Family Services,Other Transfer Payments to Soc,PARENTPAY.COM - V/T,21/05/2015,5690,20
Children's Family Services,Other Transfer Payments to Soc,PAYPAL DREAMS LTD00,21/05/2015,5691,99
Children's Family Services,Food Costs,SAINSBURYS S/MKT000,21/05/2015,5685,7
Children's Family Services,Publications,SAINSBURYS S/MKT000,21/05/2015,5678,0.55
Children's Family Services,Stationery,SAINSBURYS S/MKT000,21/05/2015,5676,5.56
Children's Family Services,Other Services,SKY SUBSCRIPTION000,21/05/2015,5684,65
Children's Family Services,Publications,STATIONERY OFFICE B,21/05/2015,5682,20
Children's Family Services,Food Costs,WWW.MILKANDMORE.CO.,21/05/2015,5683,72.16
Children's Family Services,Travelling Expenses,OYSTER BUS AUTOTOP0,21/05/2015,5743,20
Children's Family Services,Travelling Expenses,GOV.UK/DART-CHARGE0,21/05/2015,5772,10
Children's Family Services,Travelling Expenses,THE DEAN00000000000,21/05/2015,5771,70
Commissioning,Equipment and Materials Purcha,FACEBOOK 38G8X7JK52,07/09/2015,5245,20.01
Commissioning,Equipment and Materials Purcha,FACEBOOK 7UL9Q72K52,01/09/2015,5197,13
Commissioning,Equipment and Materials Purcha,FACEBOOK 9BVK786K52,18/01/2016,6702,160.67
Commissioning,Equipment and Materials Purcha,FACEBOOK ABVK786K52,18/01/2016,6701,39.84
Commissioning,Equipment and Materials Purcha,FACEBOOK GFLM68WJ52,01/10/2015,5500,186.35
Commissioning,Equipment and Materials Purcha,FACEBOOK KL2MV7NK52,07/09/2015,5251,40.03
Commissioning,Equipment and Materials Purcha,FACEBOOK KMAB98SJ52,01/01/2016,6553,148.1
Commissioning,Equipment and Materials Purcha,FACEBOOK RFAXQ8WJ52,01/03/2016,7270,244.14
Commissioning,Equipment and Materials Purcha,FACEBOOK WLWHA82K52,01/02/2016,6893,174.13
Commissioning,Equipment and Materials Purcha,FACEBOOK YJSUR8AK52,01/12/2015,6217,56.5
Commissioning,Equipment and Materials Purcha,FACEBOOK ZCLL28NJ52,02/11/2015,5849,2.59
Children's Family Services,Other Services,FAST KEY SERVICES,08/09/2015,5262,6.74
Children's Family Services,Other Services,FAST KEY SERVICES,09/11/2015,5916,32.5
Children's Family Services,Subscriptions,FILMBANK PVSL ACC,29/09/2015,5473,93.33
Children's Education & Skills,Equipment and Materials Purcha,FILOFAX LETTS BLUELINE,15/09/2015,5328,37.91
Children's Family Services,Other Services,FINCHLEY LIDO,03/02/2016,6937,16.15
Children's Family Services,Other Services,FINCHLEY LIDO,27/01/2016,6840,16.15
Children's Family Services,Other Services,FINCHLEY LIDO,30/07/2015,4847,19.85
Children's Family Services,Food Costs,FIOS FOOD CENTRE,03/12/2015,6257,12.59
Children's Family Services,Food Costs,FIOS FOOD CENTRE,05/11/2015,5888,13.37
Children's Family Services,Food Costs,FIOS FOOD CENTRE,07/10/2015,5559,18.83
Children's Family Services,Food Costs,FIOS FOOD CENTRE,09/09/2015,5268,23.22
Children's Family Services,Food Costs,FIOS FOOD CENTRE,09/12/2015,6321,19.54
Children's Family Services,Food Costs,FIOS FOOD CENTRE,12/08/2015,4967,31.36
Children's Family Services,Food Costs,FIOS FOOD CENTRE,20/05/2015,3149,20.54
Children's Family Services,Food Costs,FIOS FOOD CENTRE,22/09/2015,5387,48.7
Children's Family Services,Food Costs,FIOS FOOD CENTRE,26/02/2016,7227,9.85
Children's Family Services,Publications,FIOS FOOD CENTRE,03/12/2015,6257,0.6
Children's Family Services,Publications,FIOS FOOD CENTRE,22/09/2015,5387,0.6
Children's Family Services,Travelling Expenses,FIRST INFO LTD- TE,06/08/2015,4902,207
Children's Education & Skills,Equipment and Materials Purcha,FIRST STOP ELECT W,27/07/2015,4803,10.76
Children's Family Services,Building Repairs & Maintenance,FIRST STOP ELECT W,29/04/2015,3032,6.83
Children's Family Services,Building Repairs & Maintenance,FIRST STOP ELECT W,30/10/2015,5819,15
Children's Education & Skills,Cleaning and domestic material,FIRSTCHOICE CATERIN,21/05/2015,5663,319.2
Children's Education & Skills,Cleaning and domestic material,FIRSTCHOICE CATERING S,06/01/2016,6577,319.75
Children's Education & Skills,Cleaning and domestic material,FIRSTCHOICE CATERING S,07/08/2015,4916,404
Children's Education & Skills,Cleaning and domestic material,FIRSTCHOICE CATERING S,08/10/2015,5578,266
Children's Education & Skills,Cleaning and domestic material,FIRSTCHOICE CATERING S,15/06/2015,4267,266
Children's Education & Skills,Cleaning and domestic material,FIRSTCHOICE CATERING S,20/01/2016,6744,345
Children's Education & Skills,Cleaning and domestic material,FIRSTCHOICE CATERING S,20/10/2015,5687,266
Children's Education & Skills,Cleaning and domestic material,FIRSTCHOICE CATERING S,30/11/2015,6177,330
Children's Education & Skills,Travelling Expenses,FLEET CARS & COURIERS,08/12/2015,6303,19.17
Children's Education & Skills,Travelling Expenses,FLEET CARS & COURIERS,14/10/2015,5625,127.76
Children's Education & Skills,Travelling Expenses,FLEET CARS & COURIERS,28/10/2015,5796,10.65
Children's Family Services,Other Transfer Payments to Soc,FOOT LOCKER UK LTD,03/06/2015,3304,74.99
Children's Family Services,Other Transfer Payments to Soc,FOOT LOCKER UK LTD,08/06/2015,4190,94.99
Children's Family Services,Other Transfer Payments to Soc,FOOT LOCKER UK LTD,17/06/2015,4309,39.99
Children's Family Services,Other Transfer Payments to Soc,FOOT LOCKER UK LTD,18/01/2016,6708,-56.99
Children's Family Services,Other Transfer Payments to Soc,FOOT LOCKER UK LTD,23/12/2015,6527,57.04
Children's Family Services,Food Costs,FRIENDS,11/05/2015,3083,43.67
Children's Education & Skills,Consumable Catering Supplies,FUN,20/05/2015,3155,23.14
Children's Family Services,Equipment and Materials Purcha,FUN PARTY LTD,10/08/2015,4944,606.75
Children's Family Services,Equipment and Materials Purcha,FUN PARTY LTD,21/08/2015,5083,139.34
Children's Family Services,Advertising,FUNDING SOLUTIONS FOR,11/09/2015,5292,660
Children's Service DSG,Equipment and Materials Purcha,G AND S SMIRTHWAITE LT,01/03/2016,7273,359
Children's Service DSG,Equipment and Materials Purcha,G AND S SMIRTHWAITE LT,15/03/2016,7463,374
Children's Family Services,Equipment and Materials Purcha,GALLALOCK,02/03/2016,7293,4.95
Children's Education & Skills,Food Costs,GALLO NERO 2,16/11/2015,6016,100
Children's Family Services,Other Services,GAME RETAIL LTD LONDON,07/08/2015,4927,30
Children's Family Services,Other Services,GAME RETAIL LTD LONDON,15/12/2015,6404,54.98
Children's Family Services,Other Services,GAME RETAIL LTD LONDON,24/07/2015,4796,43
Children's Family Services,Stationery,GLS EDUCATIONAL,19/01/2016,6736,12.99
Commissioning,Equipment and Materials Purcha,GLS EDUCATIONAL,29/02/2016,7253,59.76
Children's Family Services,Equipment and Materials Purcha,GLS EDUCATIONAL SU,24/08/2015,5101,406.78
Children's Family Services,Equipment and Materials Purcha,GLS EDUCATIONAL SU,24/08/2015,5102,28.95
Children's Family Services,Equipment and Materials Purcha,GLS EDUCATIONAL SU,24/08/2015,5103,392.82
Children's Family Services,Equipment and Materials Purcha,GLS EDUCATIONAL SU,24/08/2015,5104,376.56
Children's Family Services,Equipment and Materials Purcha,GLS EDUCATIONAL SU,24/08/2015,5105,382.77
Children's Family Services,Equipment and Materials Purcha,GLS EDUCATIONAL SU,26/08/2015,5133,-488.14
Assurance,Other Services,GOLDEN BOY COACHES,19/05/2015,3145,448
Children's Family Services,Travelling Expenses,GOLDERS GN 10353,15/07/2015,4663,4
Children's Family Services,Travelling Expenses,GOLDERS GN 10353,20/05/2015,3153,3
Children's Family Services,Other Services,GOV.UK/DART-CHARGE,12/01/2016,6633,50
Children's Family Services,Other Services,GOV.UK/DART-CHARGE,12/01/2016,6634,3
Commissioning,Training,GOV.UK/DART-CHARGE,22/02/2016,7158,5
Commissioning,Travelling Expenses,GOV.UK/DART-CHARGE,02/03/2016,7289,4
Commissioning,Travelling Expenses,GOV.UK/DART-CHARGE,02/03/2016,7290,4
Commissioning,Travelling Expenses,GOV.UK/DART-CHARGE,02/03/2016,7291,4.8
Commissioning,Travelling Expenses,GOV.UK/DART-CHARGE,02/03/2016,7292,4
Children's Family Services,Other Services,GOVERNMENT KNOWLEGDE E,28/05/2015,3239,360
Children's Education & Skills,Employer's National Insurance ,GOVKNOW EVENTS LIMITED,12/11/2015,5990,6.67
Children's Education & Skills,Training,GOVKNOW EVENTS LIMITED,12/11/2015,5991,208.33
Assurance,Miscellaneous Expenses,GRANGE BARNET,25/06/2015,4432,15.46
Assurance,Pool Transport Charges,GRO HM PASSPORT OFFICE,14/07/2015,4641,23.4
Children's Family Services,Miscellaneous Expenses,GRO HM PASSPORT OFFICE,01/06/2015,3275,23.4
Children's Family Services,Miscellaneous Expenses,GRO HM PASSPORT OFFICE,01/07/2015,4500,23.4
Children's Family Services,Miscellaneous Expenses,GRO HM PASSPORT OFFICE,02/03/2016,7308,23.4
Children's Family Services,Miscellaneous Expenses,GRO HM PASSPORT OFFICE,02/07/2015,4506,-9.25
Children's Family Services,Miscellaneous Expenses,GRO HM PASSPORT OFFICE,03/02/2016,6953,23.4
Children's Family Services,Miscellaneous Expenses,GRO HM PASSPORT OFFICE,04/12/2015,6274,46.8
Children's Family Services,Miscellaneous Expenses,GRO HM PASSPORT OFFICE,05/01/2016,6570,23.4
Children's Family Services,Miscellaneous Expenses,GRO HM PASSPORT OFFICE,07/08/2015,4919,117
Children's Family Services,Miscellaneous Expenses,GRO HM PASSPORT OFFICE,10/12/2015,6335,70.2
Children's Family Services,Miscellaneous Expenses,GRO HM PASSPORT OFFICE,11/06/2015,4231,93.6
Children's Family Services,Miscellaneous Expenses,GRO HM PASSPORT OFFICE,11/06/2015,4238,9.25
Children's Family Services,Miscellaneous Expenses,GRO HM PASSPORT OFFICE,15/05/2015,3120,9.25
Children's Family Services,Miscellaneous Expenses,GRO HM PASSPORT OFFICE,15/07/2015,4665,46.8
Children's Family Services,Miscellaneous Expenses,GRO HM PASSPORT OFFICE,15/09/2015,5327,140.4
Children's Family Services,Miscellaneous Expenses,GRO HM PASSPORT OFFICE,15/10/2015,5647,23.4
Children's Family Services,Miscellaneous Expenses,GRO HM PASSPORT OFFICE,16/07/2015,4670,-46.8
Children's Family Services,Miscellaneous Expenses,GRO HM PASSPORT OFFICE,18/11/2015,6063,46.8
Children's Family Services,Miscellaneous Expenses,GRO HM PASSPORT OFFICE,21/01/2016,6764,93.6
Children's Family Services,Miscellaneous Expenses,GRO HM PASSPORT OFFICE,23/06/2015,4397,93.6
Children's Family Services,Miscellaneous Expenses,GRO HM PASSPORT OFFICE,23/07/2015,4773,23.4
Children's Family Services,Miscellaneous Expenses,GRO HM PASSPORT OFFICE,24/07/2015,4774,-23.4
Children's Family Services,Miscellaneous Expenses,GRO HM PASSPORT OFFICE,25/01/2016,6803,46.8
Children's Family Services,Miscellaneous Expenses,GRO HM PASSPORT OFFICE,26/01/2016,6824,-23.4
Children's Family Services,Miscellaneous Expenses,GRO HM PASSPORT OFFICE,29/04/2015,3031,9.25
Children's Family Services,Miscellaneous Expenses,GRO HM PASSPORT OFFICE,29/06/2015,4451,46.8
Children's Family Services,Miscellaneous Expenses,GRO HM PASSPORT OFFICE,30/09/2015,5493,70.2
Adults and Communities,Publications,GUARDIAN NEWS & MEDIA,04/12/2015,6273,"1,391.04"
Children's Family Services,Food Costs,H HARIA CHEMIST,07/03/2016,7350,7.98
Children's Family Services,Other Transfer Payments to Soc,H&M,15/09/2015,5330,54.97
Children's Family Services,Other Transfer Payments to Soc,H&M,26/08/2015,5135,14.99
Children's Family Services,Food Costs,HALAL FOOD DIRECT LTD,08/02/2016,6983,9.5
Assurance,Miscellaneous Expenses,HALFORDS 0370,12/08/2015,4970,29.93
Assurance,Miscellaneous Expenses,HALFORDS 0370,12/08/2015,4972,5
Assurance,Miscellaneous Expenses,HALFORDS 0370,18/02/2016,7121,32.05
Assurance,Equipment and Materials Purcha,HALFORDS 0744000000,21/05/2015,5723,49.93
Assurance,Equipment and Materials Purcha,HALFORDS 0744000000,21/05/2015,5724,7.99
Assurance,Miscellaneous Expenses,HALFORDS 430,11/06/2015,4235,40.76
Assurance,Vehicle Running Costs,HALFORDS 430,15/09/2015,5317,19.99
Children's Family Services,Other Transfer Payments to Soc,HALFORDS 430,17/08/2015,5032,14.85
Assurance,Miscellaneous Expenses,HAND WASH CENTRE,12/08/2015,4969,5.83
Assurance,Miscellaneous Expenses,HAND WASH CENTRE,22/05/2015,3183,5.83
Assurance,Miscellaneous Expenses,HAND WASH CENTRE,26/06/2015,4438,5.83
Customer Support Group,Legal and Court Fees,HAROLD BENJAMIN SOLICI,30/06/2015,4483,"2,124.00"
Children's Family Services,Other Services,HAVEN HOLIDAYS,08/07/2015,4579,360.1
Children's Family Services,Other Services,HAVEN HOLIDAYS,08/07/2015,4580,360.1
Children's Family Services,Other Services,HAVEN HOLIDAYS,10/06/2015,4218,350
Children's Family Services,Other Services,HAVEN HOLIDAYS,10/06/2015,4219,350
Streetscene,Advertising,HAYMARKET PUBLISHI,12/08/2015,4980,"2,295.60"
Children's Family Services,Other Transfer Payments to Soc,HEAD - BRISTOL,21/12/2015,6464,12
Children's Family Services,Food Costs,HEATH NEWS LTD,17/11/2015,6030,7.95
Commissioning,Counsels Fees,HEMSLEY FRASER GROUP L,26/02/2016,7238,"1,200.00"
Children's Family Services,Other Indirect Employee Expens,HENDON NEWSAGENTS,22/01/2016,6767,42.08
Children's Education & Skills,Training,HERTS FOR LEARNING LTD,16/10/2015,5663,195
Children's Family Services,Other Transfer Payments to Soc,HIGH BARNET DENTAL,04/12/2015,6277,25
Children's Family Services,Training,HIREITAILL.COM LTD,24/06/2015,4419,264
Children's Family Services,Legal and Court Fees,HMCOURTS-SERVICE.G,03/08/2015,4869,15
Children's Family Services,Other Transfer Payments to Soc,HMCOURTS-SERVICE.G,25/06/2015,4430,15
Customer Support Group,Fees and Charges,HMCOURTS-SERVICE.G,01/07/2015,4504,32
Customer Support Group,Fees and Charges,HMCOURTS-SERVICE.G,01/12/2015,6223,285.6
Customer Support Group,Fees and Charges,HMCOURTS-SERVICE.G,02/10/2015,5526,288
Customer Support Group,Fees and Charges,HMCOURTS-SERVICE.G,05/01/2016,6568,180
Customer Support Group,Fees and Charges,HMCOURTS-SERVICE.G,06/05/2015,3063,86.4
Customer Support Group,Fees and Charges,HMCOURTS-SERVICE.G,08/07/2015,4604,266.4
Customer Support Group,Fees and Charges,HMCOURTS-SERVICE.G,17/02/2016,7116,"4,891.20"
Customer Support Group,Fees and Charges,HMCOURTS-SERVICE.G,17/11/2015,6041,"5,418.00"
Customer Support Group,Fees and Charges,HMCOURTS-SERVICE.G,18/08/2015,5047,"5,781.00"
Customer Support Group,Fees and Charges,HMCOURTS-SERVICE.G,20/01/2016,6752,"5,918.40"
Customer Support Group,Fees and Charges,HMCOURTS-SERVICE.G,20/05/2015,3161,"15,340.80"
Customer Support Group,Fees and Charges,HMCOURTS-SERVICE.G,21/07/2015,4722,"6,955.20"
Customer Support Group,Fees and Charges,HMCOURTS-SERVICE.G,21/10/2015,5707,"1,568.00"
Customer Support Group,Fees and Charges,HMCOURTS-SERVICE.G,21/10/2015,5708,"4,101.60"
Customer Support Group,Fees and Charges,HMCOURTS-SERVICE.G,22/09/2015,5389,"4,406.40"
Customer Support Group,Fees and Charges,HMCOURTS-SERVICE.G,23/02/2016,7188,175.2
Customer Support Group,Fees and Charges,HMCOURTS-SERVICE.G,23/06/2015,4415,"3,232.80"
Customer Support Group,Fees and Charges,HMCOURTS-SERVICE.G,24/08/2015,5112,"1,568.00"
Customer Support Group,Fees and Charges,HMCOURTS-SERVICE.G,26/01/2016,6822,189.6
Customer Support Group,Fees and Charges,HMCOURTS-SERVICE.G,28/08/2015,5176,201.6
Customer Support Group,Fees and Charges,HMCOURTS-SERVICE.G,29/05/2015,3262,852
Customer Support Group,Fees and Charges,HMCOURTS-SERVICE.G,30/06/2015,4488,"1,536.00"
Customer Support Group,Fees and Charges,HMCOURTS-SERVICE.G,31/07/2015,4857,216
Children's Family Services,Education CFR Administrative S,HOBBY CRAFT LTD,01/02/2016,6878,3.33
Children's Education & Skills,Food Costs,HOBBYCRAFT LTD,25/01/2016,6802,13.3
Children's Family Services,Equipment and Materials Purcha,HOBBYCRAFT LTD,15/02/2016,7086,6.67
Children's Family Services,Training,HOLIDAY INNS,05/01/2016,6572,345.84
Children's Family Services,Other Agencies - Third Party P,HOLLAND & BARRETT,18/09/2015,5353,5.72
Customer Support Group,Equipment and Materials Repair,HOMEBASE LTD,02/12/2015,6248,98.95
Customer Support Group,Equipment and Materials Repair,HOMEBASE LTD,02/12/2015,6249,48.95
Customer Support Group,Equipment and Materials Repair,HOMEBASE LTD,02/12/2015,6250,48.95
Children's Education & Skills,Clothing - Protective Clothing,HOMEBASE LTD  588,23/12/2015,6531,19.89
Children's Education & Skills,Equipment and Materials Purcha,HOMEBASE LTD  588,02/09/2015,5204,24.26
Children's Education & Skills,Equipment and Materials Purcha,HOMEBASE LTD  588,20/05/2015,3162,9.49
Children's Education & Skills,Equipment and Materials Purcha,HOMEBASE LTD  588,21/12/2015,6495,13.76
Children's Education & Skills,Food Costs,HOMEBASE LTD  588,01/03/2016,7279,23.1
Children's Education & Skills,Food Costs,HOMEBASE LTD  588,15/02/2016,7088,28.48
Children's Education & Skills,Food Costs,HOMEBASE LTD  588,26/06/2015,4447,10.68
Children's Family Services,Equipment and Materials Purcha,HOMEBASE LTD  588,02/07/2015,4531,63.32
Children's Family Services,Equipment and Materials Purcha,HOMEBASE LTD  588,02/07/2015,4532,-28.49
Children's Family Services,Equipment and Materials Purcha,HOMEBASE LTD  588,23/10/2015,5742,7.21
Children's Family Services,General Office Expenses,HOMEBASE LTD  588,29/07/2015,4831,31.66
Children's Family Services,Equipment and Materials Purcha,HOMEBASE LTD 016,06/10/2015,5549,93.4
Children's Family Services,Building Repairs & Maintenance,HOMEBASE LTD 024,01/03/2016,7261,34.49
Children's Family Services,Building Repairs & Maintenance,HOMEBASE LTD 024,01/10/2015,5495,41.8
Children's Family Services,Building Repairs & Maintenance,HOMEBASE LTD 024,03/02/2016,6936,56.98
Children's Family Services,Building Repairs & Maintenance,HOMEBASE LTD 024,05/02/2016,6966,52.2
Children's Family Services,Building Repairs & Maintenance,HOMEBASE LTD 024,09/10/2015,5585,96.23
Children's Family Services,Building Repairs & Maintenance,HOMEBASE LTD 024,10/07/2015,4616,18.99
Children's Family Services,Building Repairs & Maintenance,HOMEBASE LTD 024,14/01/2016,6661,54.68
Children's Family Services,Building Repairs & Maintenance,HOMEBASE LTD 024,14/03/2016,7422,50.17
Children's Family Services,Building Repairs & Maintenance,HOMEBASE LTD 024,15/03/2016,7451,53.13
Children's Family Services,Building Repairs & Maintenance,HOMEBASE LTD 024,17/03/2016,7495,28.47
Children's Family Services,Building Repairs & Maintenance,HOMEBASE LTD 024,17/11/2015,6032,142.96
Children's Family Services,Building Repairs & Maintenance,HOMEBASE LTD 024,22/10/2015,5714,59.31
Children's Family Services,Building Repairs & Maintenance,HOMEBASE LTD 024,26/11/2015,6145,63.59
Children's Family Services,Building Repairs & Maintenance,HOMEBASE LTD 024,27/01/2016,6831,73.9
Children's Family Services,Cleaning and domestic material,HOMEBASE LTD 024,29/06/2015,4454,2.65
Children's Family Services,Equipment and Materials Purcha,HOMEBASE LTD 024,02/03/2016,7288,18.98
Children's Family Services,Equipment and Materials Purcha,HOMEBASE LTD 024,03/03/2016,7315,58.25
Children's Family Services,Equipment and Materials Purcha,HOMEBASE LTD 024,04/12/2015,6265,37.98
Children's Family Services,Equipment and Materials Purcha,HOMEBASE LTD 024,05/01/2016,6571,9.49
Children's Family Services,Equipment and Materials Purcha,HOMEBASE LTD 024,05/11/2015,5887,14.24
Children's Family Services,Equipment and Materials Purcha,HOMEBASE LTD 024,10/07/2015,4615,28.49
Children's Family Services,Equipment and Materials Purcha,HOMEBASE LTD 024,13/11/2015,6004,32.76
Children's Family Services,Equipment and Materials Purcha,HOMEBASE LTD 024,15/01/2016,6673,-103.55
Children's Family Services,Equipment and Materials Purcha,HOMEBASE LTD 024,15/01/2016,6674,132.95
Children's Family Services,Equipment and Materials Purcha,HOMEBASE LTD 024,21/09/2015,5361,21.84
Children's Family Services,Equipment and Materials Purcha,HOMEBASE LTD 024,27/01/2016,6832,82.77
Children's Education & Skills,Food Costs,HOMEBASE LTD 520,14/09/2015,5314,16.61
Children's Family Services,Miscellaneous Expenses,HORSEBRIDGE ARTS & COM,22/12/2015,6509,66
Commissioning,Training,HOTELS COM126051618120,16/11/2015,6013,67.32
Commissioning,Training,HOTELS COM127598293577,09/02/2016,7012,67.32
Assurance,Other Indirect Employee Expens,HOTELS MELIA,20/10/2015,5680,280.5
Children's Service DSG,Equipment and Materials Purcha,HP INC UK LIMITED,18/12/2015,6444,749.17
Children's Education & Skills,Equipment and Materials Purcha,HSS HIRE,10/02/2016,7041,208.33
Commissioning,Equipment and Materials Purcha,HSS HIRE,10/02/2016,7040,208.33
Commissioning,Equipment and Materials Purcha,HSS HIRE,23/02/2016,7182,-235.93
Children's Service DSG,Equipment and Materials Purcha,HTTP://SHOP.ICAN.ORG.U,25/08/2015,5125,400
Children's Service DSG,Equipment and Materials Purcha,HTTP://SHOP.ICAN.ORG.U,27/10/2015,5790,400
Children's Service DSG,Subscriptions,HTTP://SHOP.ICAN.ORG.U,08/07/2015,4599,60
Children's Service DSG,Subscriptions,HTTP://SHOP.ICAN.ORG.U,27/10/2015,5789,60
Children's Family Services,Miscellaneous Expenses,HURLEYS,27/10/2015,5785,289
Children's Family Services,Food Costs,H'VESTER ARNOS ARM,21/12/2015,6469,89.37
Children's Education & Skills,Consumable Catering Supplies,HYGIA,06/10/2015,5550,83.3
Streetscene,Other Indirect Employee Expens,IBIS COVENTRY ST JOHN,20/05/2015,3151,132.5
Streetscene,Other Indirect Employee Expens,IBIS COVENTRY ST JOHN,20/05/2015,3152,189.58
Children's Family Services,Cleaning and domestic material,ICELAND,22/02/2016,7167,6.67
Children's Family Services,Cleaning and domestic material,ICELAND,30/12/2015,6550,3
Children's Family Services,Cleaning and domestic material,IKEA,14/12/2015,6361,7
Children's Family Services,E19 - Learning Resources,IKEA,02/11/2015,5821,118.75
Children's Family Services,E19 - Learning Resources,IKEA,02/11/2015,5825,8.33
Children's Family Services,Equipment and Materials Purcha,IKEA,04/02/2016,6964,75.58
Children's Family Services,Equipment and Materials Purcha,IKEA,10/08/2015,4929,70.2
Children's Family Services,Equipment and Materials Purcha,IKEA,16/06/2015,4297,28.5
Children's Family Services,Equipment and Materials Purcha,IKEA,16/06/2015,4298,75.12
Children's Family Services,Equipment and Materials Purcha,IKEA,17/02/2016,7101,180
Children's Family Services,Equipment and Materials Purcha,IKEA,20/07/2015,4704,-18
Children's Family Services,Equipment and Materials Purcha,IKEA,27/08/2015,5158,50
Children's Family Services,Equipment and Materials Purcha,IKEA ONLINE,19/01/2016,6719,97.5
Children's Family Services,Equipment and Materials Purcha,IKEA ONLINE,29/09/2015,5465,337.5
Children's Family Services,Equipment and Materials Purcha,IKEA ONLINE,30/09/2015,5484,275
Children's Family Services,Other Transfer Payments to Soc,IKEA ONLINE,11/11/2015,5977,81
Children's Education & Skills,Equipment and Materials Purcha,IKEA SACAT,11/01/2016,6613,50
Children's Family Services,Equipment and Materials Purcha,IKEA SACAT,11/02/2016,7053,44.58
Children's Family Services,Equipment and Materials Purcha,IKEA SACAT,15/10/2015,5635,96.62
Children's Family Services,Equipment and Materials Purcha,IKEA SACAT,20/07/2015,4685,154
Children's Family Services,Equipment and Materials Purcha,IKEA SACAT,20/07/2015,4705,18
Children's Family Services,Miscellaneous Expenses,IKEA SACAT,21/10/2015,5701,107.55
Children's Service DSG,Equipment and Materials Purcha,INCLUSIVE TECHNOLOGY L,04/12/2015,6275,65
Children's Service DSG,Equipment and Materials Purcha,INCLUSIVE TECHNOLOGY L,30/11/2015,6184,246.5
Commissioning,Training,INCOME OFFICE (2),06/08/2015,4898,350
Children's Family Services,Equipment and Materials Purcha,INFO TECHNOLOGY SUPPLY,25/01/2016,6798,26.22
Children's Service DSG,Professional Services,INPP LTD,26/02/2016,7240,500
Children's Service DSG,Professional Services,INPP LTD,26/02/2016,7241,348.6
Children's Service DSG,Professional Services,INPP LTD,26/02/2016,7242,500
Assurance,Equipment and Materials Purcha,INSPIRED FRAMES,18/05/2015,3123,65.88
Streetscene,Equipment and Materials Purcha,INST OF ADV MOTORI,17/09/2015,5347,32.5
Streetscene,Equipment and Materials Purcha,INST.OF ADANCD MOT,23/09/2015,5400,32.5
Children's Family Services,General Office Expenses,INVESTEC ASSET FIN,26/08/2015,5130,469.85
Children's Family Services,Miscellaneous Expenses,IRCAS,19/11/2015,6067,40.25
Children's Family Services,Food Costs,ISKELE RESTAURANT,22/05/2015,3179,75
Commissioning,Professional Services,ISO/CS,25/01/2016,6785,169.47
Children's Family Services,Other Transfer Payments to Soc,J D SPORTS  100,03/08/2015,4873,75
Children's Family Services,Other Transfer Payments to Soc,J D SPORTS  100,08/06/2015,4187,90
Children's Family Services,Other Transfer Payments to Soc,J D SPORTS  100,18/01/2016,6704,60
Children's Family Services,Other Transfer Payments to Soc,J D SPORTS 546,01/06/2015,3271,15
Children's Family Services,Other Transfer Payments to Soc,J D SPORTS 546,01/06/2015,3272,55
Children's Family Services,Other Transfer Payments to Soc,J D SPORTS 546,01/06/2015,3273,20
Children's Family Services,Other Transfer Payments to Soc,J D SPORTS 546,07/09/2015,5250,100
Children's Family Services,Other Transfer Payments to Soc,J D SPORTS 546,12/10/2015,5607,75
Children's Family Services,Other Transfer Payments to Soc,J D SPORTS 546,15/12/2015,6405,75.05
Children's Family Services,Other Transfer Payments to Soc,J D SPORTS 546,26/08/2015,5134,75
Children's Family Services,Other Transfer Payments to Soc,J D SPORTS 546,27/08/2015,5152,55
Children's Family Services,Other Transfer Payments to Soc,J D SPORTS 546,31/08/2015,5178,30
Children's Family Services,Other Transfer Payments to Soc,J D SPORTS 665,30/11/2015,6172,50.05
Children's Family Services,Travelling Expenses,OYSTER AUTOTOPUP000,21/05/2015,5829,20
Children's Family Services,Travelling Expenses,OYSTER AUTOTOPUP000,21/05/2015,5830,20
Children's Family Services,Travelling Expenses,OYSTER AUTOTOPUP000,21/05/2015,5833,20
Children's Family Services,Stationery,Amazon Digital Dwnl,21/05/2015,5815,0.99
Children's Family Services,Stationery,Amazon Svcs EuropeS,21/05/2015,5805,22.84
Children's Family Services,Stationery,Amazon Svcs EuropeS,21/05/2015,5813,13.98
Children's Family Services,Stationery,Amazon UK Retail000,21/05/2015,5812,32.48
Children's Family Services,Stationery,Amazon UK Retail000,21/05/2015,5818,14.06
Children's Family Services,Stationery,Amazon UK Retail000,21/05/2015,5819,9.18
Children's Family Services,Food Costs,ASDA SUPERSTORE0000,21/05/2015,5814,33.42
Children's Family Services,Food Costs,JS ONLINE GROCERY00,21/05/2015,5804,147.41
Children's Family Services,Food Costs,SAINSBURYS S/MKT000,21/05/2015,5806,129.74
Children's Family Services,Food Costs,SAINSBURYS S/MKT000,21/05/2015,5810,155.96
Children's Family Services,Food Costs,SAINSBURYS S/MKT000,21/05/2015,5816,157.78
Children's Family Services,Food Costs,SAINSBURYS S/MKT000,21/05/2015,5821,115.69
Children's Family Services,Postage,SAINSBURYS S/MKT000,21/05/2015,5808,20.8
Regional Enterprise,Professional Services,J W RUDDOCK &SONS LTD,01/12/2015,6227,"1,645.00"
Children's Family Services,Cleaning and domestic material,JS ONLINE GROCERY00,21/05/2015,5803,14.7
Children's Family Services,Equipment and Materials Purcha,JS ONLINE GROCERY00,21/05/2015,5824,43.68
Children's Family Services,Equipment and Materials Purcha,JS ONLINE GROCERY00,21/05/2015,5825,154.5
Children's Family Services,Equipment and Materials Purcha,JS ONLINE GROCERY00,21/05/2015,5826,45.51
Children's Family Services,Equipment and Materials Purcha,JS ONLINE GROCERY00,21/05/2015,5703,60
Commissioning,Hardware Purchases,JUST PROJECTORS,05/01/2016,6567,119.49
Commissioning,Hardware Purchases,JUST PROJECTORS,06/01/2016,6581,-6
Children's Family Services,Other Transfer Payments to Soc,JUST WRITE,31/08/2015,5180,3.29
Children's Family Services,Miscellaneous Expenses,KASHMIR BUTCHERS LTD,17/12/2015,6435,42.78
Children's Education & Skills,Food Costs,KAYS DELICATESSEN,05/05/2015,3055,397.72
Children's Education & Skills,Food Costs,KAYS DELICATESSEN,06/01/2016,6588,485.91
Children's Education & Skills,Food Costs,KAYS DELICATESSEN,06/11/2015,5912,450.04
Children's Education & Skills,Food Costs,KAYS DELICATESSEN,07/01/2016,6599,346.51
Children's Education & Skills,Food Costs,KAYS DELICATESSEN,07/07/2015,4577,433.32
Children's Education & Skills,Food Costs,KAYS DELICATESSEN,08/06/2015,4189,319.42
Children's Education & Skills,Food Costs,KAYS DELICATESSEN,08/09/2015,5265,433.91
Children's Education & Skills,Food Costs,KAYS DELICATESSEN,09/02/2016,7027,411.05
Children's Education & Skills,Food Costs,KAYS DELICATESSEN,09/06/2015,4216,374.86
Children's Education & Skills,Food Costs,KAYS DELICATESSEN,09/07/2015,4614,389.7
Children's Education & Skills,Food Costs,KAYS DELICATESSEN,09/12/2015,6327,405.64
Children's Education & Skills,Food Costs,KAYS DELICATESSEN,10/02/2016,7050,455.67
Children's Education & Skills,Food Costs,KAYS DELICATESSEN,10/11/2015,5964,482.26
Children's Education & Skills,Food Costs,KAYS DELICATESSEN,11/06/2015,4247,298.71
Children's Education & Skills,Food Costs,KAYS DELICATESSEN,11/11/2015,5982,480.76
Children's Education & Skills,Food Costs,KAYS DELICATESSEN,11/12/2015,6355,480.65
Children's Education & Skills,Food Costs,KAYS DELICATESSEN,12/10/2015,5605,447.3
Children's Education & Skills,Food Costs,KAYS DELICATESSEN,13/05/2015,3107,405.48
Children's Education & Skills,Food Costs,KAYS DELICATESSEN,14/05/2015,3114,463.33
Children's Education & Skills,Food Costs,KAYS DELICATESSEN,15/01/2016,6685,380.93
Children's Education & Skills,Food Costs,KAYS DELICATESSEN,15/12/2015,6407,489.7
Children's Education & Skills,Food Costs,KAYS DELICATESSEN,16/02/2016,7100,236.88
Children's Education & Skills,Food Costs,KAYS DELICATESSEN,16/06/2015,4308,370.92
Children's Education & Skills,Food Costs,KAYS DELICATESSEN,16/12/2015,6422,489.7
Children's Education & Skills,Food Costs,KAYS DELICATESSEN,17/11/2015,6050,288.58
Children's Education & Skills,Food Costs,KAYS DELICATESSEN,18/09/2015,5359,407.85
Children's Education & Skills,Food Costs,KAYS DELICATESSEN,21/07/2015,4723,432.16
Children's Education & Skills,Food Costs,KAYS DELICATESSEN,21/10/2015,5709,416.06
Children's Education & Skills,Food Costs,KAYS DELICATESSEN,22/12/2015,6516,247.84
Children's Education & Skills,Food Costs,KAYS DELICATESSEN,23/02/2016,7189,216.51
Children's Education & Skills,Food Costs,KAYS DELICATESSEN,23/06/2015,4416,210.42
Children's Education & Skills,Food Costs,KAYS DELICATESSEN,26/01/2016,6823,234.91
Children's Education & Skills,Food Costs,KAYS DELICATESSEN,27/07/2015,4804,295.34
Children's Education & Skills,Equipment and Materials Purcha,KAYS DELICATESSEN00,21/05/2015,5732,277.74
Children's Education & Skills,Equipment and Materials Purcha,KAYS DELICATESSEN00,21/05/2015,5736,409.03
Children's Family Services,Food Costs,KFC,09/02/2016,7024,9.93
Children's Family Services,Food Costs,KFC,21/12/2015,6463,9.16
Children's Family Services,Food Costs,KFC - WOOD GREEN RST,17/06/2015,4310,7.36
Children's Family Services,Other Transfer Payments to Soc,KK RETAIL SHOP,22/02/2016,7151,35
Children's Family Services,Other Services,L B BARNET,08/05/2015,3077,21.38
Children's Family Services,Other Services,L B BARNET,13/01/2016,6643,21.38
Children's Family Services,Other Services,L B BARNET,20/01/2016,6738,21.38
Children's Family Services,Other Services,L B BARNET,20/01/2016,6739,21.38
Children's Family Services,Other Transfer Payments to Soc,L B BARNET,24/12/2015,6538,127.25
Children's Education & Skills,Travelling Expenses,L B BARNET PARKING,13/01/2016,6655,1.6
Children's Education & Skills,Travelling Expenses,L B BARNET PARKING,22/02/2016,7171,3.1
Children's Education & Skills,Travelling Expenses,L B BARNET PARKING,29/01/2016,6877,0.6
Children's Education & Skills,Travelling Expenses,L B BARNET PARKING,29/06/2015,4473,1
Children's Family Services,Other Services,L B BARNET PARKING,02/02/2016,6918,3
Children's Family Services,Other Services,L B BARNET PARKING,07/01/2016,6594,1.5
Children's Family Services,Other Services,L B BARNET PARKING,10/02/2016,7045,0.65
Children's Family Services,Other Services,L B BARNET PARKING,13/01/2016,6651,1.5
Children's Family Services,Other Services,L B BARNET PARKING,14/01/2016,6669,1.5
Children's Family Services,Other Services,L B BARNET PARKING,14/12/2015,6370,3
Children's Family Services,Other Services,L B BARNET PARKING,16/12/2015,6416,1.5
Children's Family Services,Other Services,L B BARNET PARKING,18/02/2016,7125,3
Children's Family Services,Other Services,L B BARNET PARKING,18/02/2016,7126,0.65
Children's Family Services,Other Services,L B BARNET PARKING,22/01/2016,6780,1.5
Children's Family Services,Other Services,L B BARNET PARKING,24/02/2016,7194,1.5
Children's Family Services,Other Services,L B BARNET PARKING,26/01/2016,6818,1.5
Children's Family Services,Other Services,L B BARNET PARKING,29/01/2016,6869,0.5
Children's Family Services,Travelling Expenses,L B BARNET PARKING,03/09/2015,5218,1.3
Children's Family Services,Travelling Expenses,L B BARNET PARKING,09/07/2015,4612,0.65
Children's Family Services,Travelling Expenses,L B BARNET PARKING,13/07/2015,4631,0.65
Children's Family Services,Travelling Expenses,L B BARNET PARKING,14/10/2015,5631,1.3
Children's Family Services,Travelling Expenses,L B BARNET PARKING,14/10/2015,5632,1.3
Children's Family Services,Travelling Expenses,L B BARNET PARKING,25/09/2015,5439,0.65
Children's Family Services,Travelling Expenses,L B BARNET PARKING,28/01/2016,6855,1
Children's Family Services,Travelling Expenses,L B BARNET PARKING,28/01/2016,6856,0.65
Children's Family Services,Travelling Expenses,L B BARNET PARKING,30/09/2015,5489,1.3
Children's Education & Skills,Grant Payments,L B CAMDEN TH,22/09/2015,5390,440
Children's Education & Skills,Grant Payments,L B CAMDEN TH,23/09/2015,5408,220
Children's Family Services,Miscellaneous Expenses,L B ISLINGTON,17/08/2015,5023,22
Children's Family Services,Miscellaneous Expenses,L B ISLINGTON,27/01/2016,6837,22
Children's Family Services,Miscellaneous Expenses,L BORO OF ISLINGTN,21/05/2015,3171,11
Children's Family Services,Miscellaneous Expenses,L BORO OF ISLINGTN,21/05/2015,3172,11
Children's Family Services,Travelling Expenses,OYSTER BUS AUTOTOP0,21/05/2015,5837,40
Children's Education & Skills,Subscriptions,LANCASHIRE CC (M),17/11/2015,6044,150
Children's Family Services,Building Repairs & Maintenance,LAWSONS WHETSTONE00,21/05/2015,5777,11.5
Children's Family Services,Miscellaneous Expenses,LB BRENT REGISTRARS,03/03/2016,7321,20
Children's Family Services,Other Agencies - Third Party P,LBBARNET PAYENET,08/01/2016,6604,551.36
Children's Family Services,Miscellaneous Expenses,LBHACKNEY PYMT,12/08/2015,4964,31
Children's Family Services,Equipment and Materials Purcha,LBS SECURITY SERV,05/10/2015,5536,192
Children's Family Services,Other Services,LCOTRADING.CO.UK,12/08/2015,4973,192.3
Children's Family Services,Equipment and Materials Purcha,LEGO EDUCATION,15/01/2016,6680,659.99
Children's Family Services,Equipment and Materials Purcha,LINENS LTD,02/03/2016,7300,147.68
Children's Family Services,Equipment and Materials Purcha,LINENS LTD,21/03/2016,7527,84.64
Children's Service DSG,Conference Expenses,LITERACYTRUST.ORG,23/02/2016,7186,230
Children's Education & Skills,Equipment and Materials Purcha,LOCKSMITHS,01/02/2016,6904,21.63
Children's Family Services,Miscellaneous Expenses,LONDON BOROUGH OF,03/02/2016,6952,21
Children's Family Services,Miscellaneous Expenses,LONDON BOROUGH OF,27/01/2016,6842,21
Children's Family Services,Miscellaneous Expenses,LONDON BOROUGH/GRE,15/10/2015,5643,11.61
Commissioning,Training,LONDON FIRST,04/11/2015,5874,420
Children's Family Services,Other Transfer Payments to Soc,LOVE2REWARD.CO.UK,01/05/2015,3038,506
Children's Family Services,Other Transfer Payments to Soc,LOVE2REWARD.CO.UK,02/12/2015,6232,506
Children's Family Services,Other Transfer Payments to Soc,LOVE2REWARD.CO.UK,05/01/2016,6569,501
Children's Family Services,Other Transfer Payments to Soc,LOVE2REWARD.CO.UK,12/11/2015,5983,506
Children's Family Services,Other Transfer Payments to Soc,LOVE2REWARD.CO.UK,13/10/2015,5620,506
Children's Family Services,Other Transfer Payments to Soc,LOVE2REWARD.CO.UK,23/02/2016,7185,506
Children's Family Services,Other Transfer Payments to Soc,LOVE2REWARD.CO.UK,29/07/2015,4835,506
Children's Family Services,Miscellaneous Expenses,LOVE2SHOP.CO.UK,16/02/2016,7098,153.9
Assurance,Miscellaneous Expenses,LUL TICKET MACHINE,01/12/2015,6228,11.6
Assurance,Miscellaneous Expenses,LUL TICKET MACHINE,03/12/2015,6263,12
Assurance,Miscellaneous Expenses,LUL TICKET MACHINE,09/10/2015,5594,11.6
Assurance,Miscellaneous Expenses,LUL TICKET MACHINE,15/10/2015,5646,23.2
Assurance,Miscellaneous Expenses,LUL TICKET MACHINE,18/11/2015,6062,11.6
Assurance,Miscellaneous Expenses,LUL TICKET MACHINE,24/02/2016,7198,11.8
Assurance,Pool Transport Charges,LUL TICKET MACHINE,30/09/2015,5481,15
Children's Education & Skills,Travelling Expenses,LUL TICKET MACHINE,22/10/2015,5719,80.7
Children's Education & Skills,Travelling Expenses,LUL TICKET MACHINE,23/11/2015,6099,80.7
Children's Family Services,Books-CDs-Audio-Video,LUL TICKET MACHINE,26/06/2015,4437,10
Children's Family Services,Food Costs,LUL TICKET MACHINE,02/06/2015,3283,8.33
Children's Family Services,Other Agencies - Third Party P,LUL TICKET MACHINE,17/09/2015,5343,8.33
Children's Family Services,Travelling Expenses,LUL TICKET MACHINE,06/01/2016,6585,10
Children's Family Services,Travelling Expenses,LUL TICKET MACHINE,14/01/2016,6656,10
Children's Family Services,Travelling Expenses,LUL TICKET MACHINE,16/10/2015,5658,5
Children's Family Services,Travelling Expenses,LUL TICKET MACHINE,18/12/2015,6442,10
Assurance,Travelling Expenses,LUL TICKET MACHINE0,21/05/2015,5728,10
Children's Education & Skills,Travelling Expenses,LUL TICKET OFFICE.,03/09/2015,5211,85.7
Children's Family Services,Miscellaneous Expenses,LUTON BC INTERNET,28/10/2015,5801,22.37
Children's Education & Skills,Food Costs,M  D GRODZINSKI LTD,21/05/2015,5670,310.39
Children's Education & Skills,Food Costs,M & D GRODZINSKI LTD,01/05/2015,3036,313.65
Children's Education & Skills,Food Costs,M & D GRODZINSKI LTD,02/03/2016,7295,299.89
Children's Education & Skills,Food Costs,M & D GRODZINSKI LTD,02/10/2015,5511,410.94
Children's Education & Skills,Food Costs,M & D GRODZINSKI LTD,04/08/2015,4877,218.16
Children's Education & Skills,Food Costs,M & D GRODZINSKI LTD,09/10/2015,5583,453.02
Children's Education & Skills,Food Costs,M & D GRODZINSKI LTD,16/02/2016,7093,325.15
Children's Education & Skills,Food Costs,M & D GRODZINSKI LTD,16/06/2015,4295,274.95
Children's Education & Skills,Food Costs,M & D GRODZINSKI LTD,17/12/2015,6429,320.29
Children's Education & Skills,Food Costs,M & D GRODZINSKI LTD,23/11/2015,6091,131.54
Children's Education & Skills,Food Costs,M & D GRODZINSKI LTD,25/01/2016,6788,256
Commissioning,IT Services,ADOBE  CREATIVE CLO,21/05/2015,5746,114.33
Commissioning,Advertising,WWW.GETTYIMAGES.COM,21/05/2015,5747,58.25
Customer Support Group,Legal and Court Fees,HMCOURTS-SERVICE.G0,21/05/2015,5839,243
Customer Support Group,Legal and Court Fees,HMCOURTS-SERVICE.G0,21/05/2015,5840,"2,450.00"
Customer Support Group,Legal and Court Fees,HMCOURTS-SERVICE.G0,21/05/2015,5841,"2,450.00"
Customer Support Group,Legal and Court Fees,HMCOURTS-SERVICE.G0,21/05/2015,5842,"6,207.00"
Streetscene,Books-CDs-Audio-Video,Amazon Svcs EuropeS,21/05/2015,5648,90.81
Streetscene,Books-CDs-Audio-Video,Amazon Svcs EuropeS,21/05/2015,5649,3.99
Streetscene,Books-CDs-Audio-Video,Amazon Svcs EuropeS,21/05/2015,5650,99.8
Streetscene,Books-CDs-Audio-Video,Amazon Svcs EuropeS,21/05/2015,5653,89.98
Streetscene,Books-CDs-Audio-Video,Amazon Svcs EuropeS,21/05/2015,5654,23.74
Streetscene,Equipment and Materials Purcha,Amazon UK Retail000,21/05/2015,5651,34.95
Streetscene,Equipment and Materials Purcha,Amazon UK Retail000,21/05/2015,5652,34.95
Streetscene,Equipment and Materials Purcha,Amazon UK Retail000,21/05/2015,5655,5.35
Streetscene,Equipment and Materials Purcha,Amazon UK Retail000,21/05/2015,5656,22.77
Children's Family Services,Private Contractors - Third Pa,FAST KEY SERVICES00,21/05/2015,5788,29.94
Children's Family Services,Transport Hire Charges,J ODOHERTY HAULAGE,21/05/2015,5799,294
Children's Family Services,Postage,POST OFFICE COUNTER,21/05/2015,5791,6.55
Children's Family Services,Stationery,UKOFFICEDIRECT.CO.0,21/05/2015,5798,-971.7
Children's Family Services,Private Contractors - Third Pa,WWW.DOORCONTROLSDIR,21/05/2015,5787,96.48
Children's Family Services,Private Contractors - Third Pa,WWW.DOORCONTROLSDIR,21/05/2015,5797,-88.14
Children's Family Services,Food Costs,SAINSBURYS S/MKT000,21/05/2015,5748,173.97
Streetscene,Equipment and Materials Purcha,MACHINE MART WEB,02/12/2015,6236,152.38
Streetscene,Equipment and Materials Purcha,MACHINE MART WEB,10/12/2015,6332,114.73
Children's Family Services,Training,MAG EVENTS,20/11/2015,6083,775
Children's Family Services,Training,MAG EVENTS,20/11/2015,6085,125
Children's Family Services,Subscriptions,MAGSUBCRIPTIONS COM,01/02/2016,6902,93.5
Children's Service DSG,Subscriptions,MAGSUBCRIPTIONS COM,22/07/2015,4746,112.2
Children's Education & Skills,Food Costs,MAJESTIC WINE,18/05/2015,3136,339.6
Children's Education & Skills,Food Costs,MAJESTIC WINE,19/05/2015,3142,96
Children's Education & Skills,Food Costs,MAJESTIC WINE,27/05/2015,3227,-96
Children's Education & Skills,Food Costs,MAJESTIC WINE,27/05/2015,3233,-112
Children's Family Services,Cleaning and domestic material,MAKRO SELF SERVICE,21/05/2015,5679,53.96
Children's Family Services,Cleaning and domestic material,MAKRO SELF SERVICE,19/10/2015,5669,55.46
Children's Family Services,Cleaning and domestic material,MAKRO SELF SERVICE,22/05/2015,3181,51.97
Children's Family Services,Cleaning and domestic material,MAKRO SELF SERVICE ENF,02/06/2015,3287,52.75
Children's Family Services,Cleaning and domestic material,MAKRO SELF SERVICE ENF,05/02/2016,6969,117.49
Children's Family Services,Cleaning and domestic material,MAKRO SELF SERVICE ENF,09/11/2015,5933,105.5
Children's Family Services,Cleaning and domestic material,MAKRO SELF SERVICE ENF,11/08/2015,4955,86.92
Children's Family Services,Cleaning and domestic material,MAKRO SELF SERVICE ENF,11/09/2015,5293,107.29
Children's Family Services,Cleaning and domestic material,MAKRO SELF SERVICE ENF,14/12/2015,6360,126.46
Children's Family Services,Cleaning and domestic material,MAKRO SELF SERVICE ENF,15/01/2016,6675,152.66
Children's Family Services,Cleaning and domestic material,MAKRO SELF SERVICE ENF,15/12/2015,6388,25.78
Children's Family Services,Cleaning and domestic material,MAKRO SELF SERVICE ENF,16/11/2015,6015,43.14
Children's Family Services,Cleaning and domestic material,MAKRO SELF SERVICE ENF,20/11/2015,6080,61.73
Children's Family Services,Cleaning and domestic material,MAKRO SELF SERVICE ENF,21/12/2015,6472,25.78
Children's Family Services,Cleaning and domestic material,MAKRO SELF SERVICE ENF,23/02/2016,7178,123.52
Children's Family Services,Cleaning and domestic material,MAKRO SELF SERVICE ENF,30/11/2015,6166,32.38
Children's Family Services,Food Costs,MAKRO SELF SERVICE ENF,14/12/2015,6360,13.63
Children's Family Services,Food Costs,MAKRO SELF SERVICE ENF,15/01/2016,6675,5
Children's Family Services,Food Costs,MAKRO SELF SERVICE ENF,21/12/2015,6472,91.93
Assurance,Subsistence,MANUELS000000000000,21/05/2015,5721,4.7
Children's Family Services,Equipment and Materials Repair,MARCO BEVERAGE SYSTEMS,05/06/2015,4150,180
Assurance,Miscellaneous Expenses,MARKS & SPENCER,28/07/2015,4816,25
Assurance,Miscellaneous Expenses,MARKS & SPENCER,28/07/2015,4818,25
Children's Family Services,Food Costs,MARKS & SPENCER,09/12/2015,6320,29.8
Children's Family Services,Food Costs,MARKS & SPENCER,14/12/2015,6358,7.5
Children's Family Services,Food Costs,MARKS & SPENCER,20/11/2015,6081,8
Children's Family Services,Food Costs,MARKS & SPENCER,20/11/2015,6088,3.4
Children's Family Services,Food Costs,MARKS & SPENCER,22/05/2015,3186,16.75
Children's Family Services,Travelling Expenses,MARKS & SPENCER,20/11/2015,6088,0
Children's Family Services,Miscellaneous Expenses,MARSTON GROUP,30/10/2015,5809,325
Assurance,Miscellaneous Expenses,MCDONALDS,23/06/2015,4400,3.9
Children's Family Services,Food Costs,MCDONALDS,01/06/2015,3280,14.51
Children's Family Services,Food Costs,MCDONALDS,02/02/2016,6932,8.58
Children's Family Services,Food Costs,MCDONALDS,03/02/2016,6948,7.08
Children's Family Services,Food Costs,MCDONALDS,04/08/2015,4881,4.58
Children's Family Services,Food Costs,MCDONALDS,09/02/2016,7025,4.99
Children's Family Services,Food Costs,MCDONALDS,10/08/2015,4935,13.93
Children's Family Services,Food Costs,MCDONALDS,14/03/2016,7424,15.85
Children's Family Services,Food Costs,MCDONALDS,16/06/2015,4296,19.12
Children's Family Services,Food Costs,MCDONALDS,16/11/2015,6025,3.99
Children's Family Services,Food Costs,MCDONALDS,19/02/2016,7138,13.38
Children's Family Services,Food Costs,MCDONALDS,19/06/2015,4355,7.76
Children's Family Services,Food Costs,MCDONALDS,22/10/2015,5712,13.45
Children's Family Services,Food Costs,MCDONALDS,25/09/2015,5433,8.89
Children's Family Services,Food Costs,MCDONALDS,29/05/2015,3259,13.44
Children's Family Services,Food Costs,MCDONALDS,29/06/2015,4463,22.31
Children's Family Services,Food Costs,MCDONALDS,30/06/2015,4486,9.88
Assurance,Other Indirect Employee Expens,ME LONDON,06/11/2015,5902,211
Assurance,Other Indirect Employee Expens,ME LONDON,22/10/2015,5710,100
Commissioning,Building Repairs & Maintenance,MET PARKING SERVICES L,02/06/2015,3298,"1,740.00"
Assurance,Miscellaneous Expenses,MIDDLESEX UNIVERSITY H,01/02/2016,6891,1.02
Assurance,Miscellaneous Expenses,MIDDLESEX UNIVERSITY H,05/08/2015,4889,0.84
Assurance,Miscellaneous Expenses,MIDDLESEX UNIVERSITY H,20/01/2016,6748,0.84
Assurance,Miscellaneous Expenses,MIDDLESEX UNIVERSITY H,25/05/2015,3201,6.4
Assurance,Miscellaneous Expenses,MIDDLESEX UNIVERSITY H,25/05/2015,3202,3.08
Assurance,Miscellaneous Expenses,MIDDLESEX UNIVERSITY H,25/06/2015,4431,1.17
Assurance,Miscellaneous Expenses,MIDDLESEX UNIVERSITY H,28/07/2015,4815,0.84
Assurance,Miscellaneous Expenses,MIDDLESEX UNIVERSITY H,29/07/2015,4834,20.97
Assurance,Other Indirect Employee Expens,MIDDLESEX UNIVERSITY H,13/08/2015,4984,9.17
Assurance,Other Indirect Employee Expens,MIDDLESEX UNIVERSITY H,29/05/2015,3253,3.38
Children's Family Services,Books-CDs-Audio-Video,MIDDLESEX UNIVERSITY H,10/02/2016,7037,3.5
Children's Family Services,Cleaning and domestic material,MIDDLESEX UNIVERSITY H,13/01/2016,6648,1.28
Children's Family Services,Miscellaneous Expenses,MILTON KEYNES COUNCIL,05/08/2015,4896,26
Children's Education & Skills,Equipment and Materials Repair,MIXREPAIRS LTD,18/01/2016,6694,108.36
Children's Family Services,Food Costs,MORRISONS STORES,08/02/2016,7005,11.98
Children's Family Services,Food Costs,MORRISONS STORES,17/06/2015,4326,65.44
Children's Family Services,Food Costs,MORRISONS STORES,26/06/2015,4445,13.34
Children's Family Services,Other Transfer Payments to Soc,MORRISONS STORES,02/09/2015,5203,8.41
Children's Family Services,Other Transfer Payments to Soc,MORRISONS STORES,03/03/2016,7323,8.97
Children's Family Services,Other Transfer Payments to Soc,MORRISONS STORES,23/12/2015,6525,5
Children's Family Services,Food Costs,MOTO BURGER KING - WES,21/12/2015,6465,13.98
Children's Family Services,Food Costs,MOTO WETHERBY BK,06/07/2015,4546,16.05
Children's Family Services,Food Costs,MR P K PATEL,27/01/2016,6825,5.7
Children's Family Services,Publications,MR P K PATEL,30/06/2015,4481,151
Children's Family Services,Publications,MR P K PATEL,30/10/2015,5814,156.6
Children's Family Services,Travelling Expenses,MR P K PATEL,27/08/2015,5140,17.1
Commissioning,Equipment and Materials Purcha,MYFONTS,09/11/2015,5919,39.99
Commissioning,Equipment and Materials Purcha,MYFONTS,16/11/2015,6021,35.99
Commissioning,Equipment and Materials Purcha,MYFONTS,18/12/2015,6452,38.98
Children's Family Services,Travelling Expenses,OYSTER AUTOTOPUP000,21/05/2015,5849,20
Children's Family Services,Food Costs,NANDOS EDINBURGH OMNI,30/06/2015,4475,30.5
Children's Family Services,Food Costs,NANDOS FINCHLEY,25/08/2015,5117,34.3
Children's Service DSG,Subscriptions,NAS UK,05/11/2015,5898,60
Children's Service DSG,Training,NAS UK,05/11/2015,5899,175
Children's Family Services,Travelling Expenses,NATIONAL EXPRESS LIMIT,03/08/2015,4859,21
Children's Family Services,Travelling Expenses,NATIONAL EXPRESS LIMIT,10/09/2015,5289,15
Children's Family Services,Travelling Expenses,NATIONAL EXPRESS LIMIT,11/06/2015,4239,29.5
Children's Family Services,Travelling Expenses,NATIONAL EXPRESS LIMIT,22/06/2015,4378,29.5
Children's Family Services,Travelling Expenses,NATIONAL EXPRESS LIMIT,23/07/2015,4772,15
Children's Family Services,Travelling Expenses,NATIONAL EXPRESS LIMIT,25/02/2016,7220,20.2
Children's Family Services,Travelling Expenses,NATIONAL EXPRESS LIMIT,25/05/2015,3206,25.4
Children's Family Services,Travelling Expenses,NATIONAL EXPRESS LIMIT,27/01/2016,6835,49.8
Children's Family Services,Miscellaneous Expenses,NATIONALITY DIRECTORAT,01/01/2016,6555,162
Children's Family Services,Miscellaneous Expenses,NCC INCOME,20/05/2015,3157,75.8
Children's Family Services,Travelling Expenses,NCP LIMITED P&D,02/02/2016,6930,6
Children's Family Services,Training,NCS CIMA VUE EXAM,02/11/2015,5838,53
Children's Family Services,Other Services,NELSON DISH & GLAS,23/10/2015,5739,723.6
Children's Family Services,Equipment and Materials Purcha,NEVER NEVER LAND,08/02/2016,7002,80
Children's Family Services,Other Transfer Payments to Soc,NEW LOOK /1422/,30/11/2015,6167,24.99
Children's Family Services,Other Transfer Payments to Soc,NEW LOOK RETAILERS LTD,16/10/2015,5656,39.99
Children's Service DSG,Other Establishments - Third P,NORDOFF-ROBBINS,14/08/2015,5000,300
Children's Education & Skills,Miscellaneous Expenses,NORTH LONDON BUS.,07/05/2015,3072,36
Children's Education & Skills,Miscellaneous Expenses,NORTH LONDON BUS.,08/07/2015,4602,15
Children's Education & Skills,Miscellaneous Expenses,NORTH LONDON BUS.,21/05/2015,3177,72
Children's Education & Skills,Transport Hire Charges,NORTH LONDON BUS.,17/06/2015,4319,36
Children's Education & Skills,Venue Hire,NORTH LONDON BUS.,07/08/2015,4915,60
Children's Family Services,Venue Hire,NORTH LONDON BUS.,03/12/2015,6262,37.5
Children's Family Services,Venue Hire,NORTH LONDON BUS.,06/11/2015,5908,40
Children's Family Services,Venue Hire,NORTH LONDON BUS.,18/01/2016,6690,60
Children's Education & Skills,Venue Hire,NORTH LONDON BUS.00,21/05/2015,5775,36
Children's Education & Skills,Consumable Catering Supplies,NORTHFIELDS,27/10/2015,5779,162
Children's Family Services,Equipment and Materials Purcha,OFSTED INTERNET,14/07/2015,4654,183.33
Children's Family Services,Equipment and Materials Purcha,OPENANDUSEB4,31/08/2015,5184,12.5
Children's Service DSG,Equipment and Materials Purcha,OPTIMUS PROF PUBLISHIN,11/09/2015,5300,69
Children's Service DSG,Equipment and Materials Purcha,OPTIMUS PROF PUBLISHIN,14/07/2015,4656,300
Children's Family Services,Equipment and Materials Purcha,OSCARS DEN,22/06/2015,4371,90
Children's Family Services,Postage,OSIDGE PK 10359,24/08/2015,5087,6.48
Children's Family Services,Training,OXFORD BROOKES UNI,24/07/2015,4795,500
Adults and Communities,Miscellaneous Expenses,OYSTER AUTOSETTLE,15/06/2015,4289,16.67
Adults and Communities,Miscellaneous Expenses,OYSTER AUTOSETTLE,22/05/2015,3184,33.33
Children's Family Services,Travelling Expenses,OYSTER AUTOSETTLE,05/08/2015,4894,20
Children's Family Services,Travelling Expenses,OYSTER AUTOSETTLE,13/11/2015,6010,40
Children's Family Services,Travelling Expenses,OYSTER AUTOSETTLE,14/09/2015,5303,20
Adults and Communities,Miscellaneous Expenses,OYSTER AUTOTOPUP,01/02/2016,6896,16.67
Children's Family Services,Books-CDs-Audio-Video,OYSTER AUTOTOPUP,09/02/2016,7017,20
Children's Family Services,Books-CDs-Audio-Video,OYSTER AUTOTOPUP,13/11/2015,6008,20
Children's Family Services,Books-CDs-Audio-Video,OYSTER AUTOTOPUP,22/12/2015,6506,20
Children's Family Services,Books-CDs-Audio-Video,OYSTER AUTOTOPUP,23/10/2015,5738,20
Children's Family Services,Books-CDs-Audio-Video,OYSTER AUTOTOPUP,27/11/2015,6161,20
Children's Family Services,Travelling Expenses,OYSTER AUTOTOPUP,02/02/2016,6925,20
Children's Family Services,Travelling Expenses,OYSTER AUTOTOPUP,03/08/2015,4870,20
Children's Family Services,Travelling Expenses,OYSTER AUTOTOPUP,06/08/2015,4905,20
Children's Family Services,Travelling Expenses,OYSTER AUTOTOPUP,07/03/2016,7351,40
Children's Family Services,Travelling Expenses,OYSTER AUTOTOPUP,07/09/2015,5238,20
Children's Family Services,Travelling Expenses,OYSTER AUTOTOPUP,07/12/2015,6293,20
Children's Family Services,Travelling Expenses,OYSTER AUTOTOPUP,08/02/2016,6995,20
Children's Family Services,Travelling Expenses,OYSTER AUTOTOPUP,09/11/2015,5923,20
Children's Family Services,Travelling Expenses,OYSTER AUTOTOPUP,10/08/2015,4950,20
Children's Family Services,Travelling Expenses,OYSTER AUTOTOPUP,11/05/2015,3090,20
Children's Family Services,Travelling Expenses,OYSTER AUTOTOPUP,13/07/2015,4630,20
Children's Family Services,Travelling Expenses,OYSTER AUTOTOPUP,14/03/2016,7440,20
Children's Family Services,Travelling Expenses,OYSTER AUTOTOPUP,14/03/2016,7441,20
Children's Family Services,Travelling Expenses,OYSTER AUTOTOPUP,14/07/2015,4653,20
Children's Family Services,Travelling Expenses,OYSTER AUTOTOPUP,15/02/2016,7085,16.67
Children's Family Services,Travelling Expenses,OYSTER AUTOTOPUP,15/10/2015,5644,20
Children's Family Services,Travelling Expenses,OYSTER AUTOTOPUP,16/07/2015,4672,20
Children's Family Services,Travelling Expenses,OYSTER AUTOTOPUP,17/07/2015,4677,20
Children's Family Services,Travelling Expenses,OYSTER AUTOTOPUP,17/08/2015,5029,20
Children's Family Services,Travelling Expenses,OYSTER AUTOTOPUP,18/12/2015,6462,20
Children's Family Services,Travelling Expenses,OYSTER AUTOTOPUP,21/09/2015,5373,20
Children's Family Services,Travelling Expenses,OYSTER AUTOTOPUP,21/09/2015,5375,20
Children's Family Services,Travelling Expenses,OYSTER AUTOTOPUP,22/01/2016,6782,20
Children's Family Services,Travelling Expenses,OYSTER AUTOTOPUP,22/05/2015,3185,20
Children's Family Services,Travelling Expenses,OYSTER AUTOTOPUP,22/06/2015,4376,20
Children's Family Services,Travelling Expenses,OYSTER AUTOTOPUP,23/06/2015,4396,20
Children's Family Services,Travelling Expenses,OYSTER AUTOTOPUP,23/10/2015,5740,20
Children's Family Services,Travelling Expenses,OYSTER AUTOTOPUP,23/11/2015,6095,20
Children's Family Services,Travelling Expenses,OYSTER AUTOTOPUP,25/01/2016,6800,20
Children's Family Services,Travelling Expenses,OYSTER AUTOTOPUP,26/11/2015,6154,20
Children's Family Services,Travelling Expenses,OYSTER AUTOTOPUP,27/07/2015,4805,20
Children's Family Services,Travelling Expenses,OYSTER AUTOTOPUP,28/12/2015,6545,20
Children's Family Services,Travelling Expenses,OYSTER AUTOTOPUP,29/02/2016,7255,20
Children's Family Services,Travelling Expenses,OYSTER AUTOTOPUP,29/06/2015,4453,20
Streetscene,Equipment and Materials Purcha,OYSTER AUTOTOPUP,03/02/2016,6939,20
Streetscene,Equipment and Materials Purcha,OYSTER AUTOTOPUP,03/07/2015,4541,20
Streetscene,Equipment and Materials Purcha,OYSTER AUTOTOPUP,11/02/2016,7055,20
Streetscene,Equipment and Materials Purcha,OYSTER AUTOTOPUP,21/09/2015,5367,20
Adults and Communities,Travelling Expenses,OYSTER AUTOTOPUP000,21/05/2015,5744,40
Children's Family Services,Books-CDs-Audio-Video,OYSTER BUS AUTOSET,06/10/2015,5552,20
Children's Family Services,Books-CDs-Audio-Video,OYSTER BUS AUTOSET,21/09/2015,5372,20
Children's Family Services,Travelling Expenses,OYSTER BUS AUTOSET,24/08/2015,5108,20
Children's Family Services,Travelling Expenses,OYSTER BUS AUTOSET,27/08/2015,5157,20
Children's Family Services,Travelling Expenses,OYSTER BUS AUTOSET,28/05/2015,3244,40
Children's Family Services,Travelling Expenses,OYSTER BUS AUTOSET,29/05/2015,3255,40
Children's Family Services,Travelling Expenses,OYSTER BUS AUTOSET,29/05/2015,3256,40
Children's Family Services,Travelling Expenses,OYSTER BUS AUTOSET,29/06/2015,4465,20
Streetscene,Equipment and Materials Purcha,OYSTER BUS AUTOSET,18/05/2015,3132,20
Adults and Communities,Miscellaneous Expenses,OYSTER BUS AUTOTOP,05/02/2016,6978,16.67
Adults and Communities,Miscellaneous Expenses,OYSTER BUS AUTOTOP,14/12/2015,6372,33.33
Adults and Communities,Miscellaneous Expenses,OYSTER BUS AUTOTOP,15/10/2015,5642,16.67
Adults and Communities,Miscellaneous Expenses,OYSTER BUS AUTOTOP,16/10/2015,5661,33.33
Adults and Communities,Miscellaneous Expenses,OYSTER BUS AUTOTOP,19/10/2015,5677,16.67
Adults and Communities,Miscellaneous Expenses,OYSTER BUS AUTOTOP,23/11/2015,6117,16.67
Adults and Communities,Miscellaneous Expenses,OYSTER BUS AUTOTOP,29/01/2016,6870,33.33
Children's Family Services,Books-CDs-Audio-Video,OYSTER BUS AUTOTOP,07/12/2015,6290,20
Children's Family Services,Books-CDs-Audio-Video,OYSTER BUS AUTOTOP,15/02/2016,7080,20
Children's Family Services,Other Indirect Employee Expens,OYSTER BUS AUTOTOP,02/02/2016,6907,16.67
Children's Family Services,Travelling Expenses,OYSTER BUS AUTOTOP,01/01/2016,6556,20
Children's Family Services,Travelling Expenses,OYSTER BUS AUTOTOP,01/02/2016,6897,20
Children's Family Services,Travelling Expenses,OYSTER BUS AUTOTOP,01/03/2016,7272,20
Children's Family Services,Travelling Expenses,OYSTER BUS AUTOTOP,02/12/2015,6238,40
Children's Family Services,Travelling Expenses,OYSTER BUS AUTOTOP,02/12/2015,6251,20
Children's Family Services,Travelling Expenses,OYSTER BUS AUTOTOP,03/02/2016,6940,20
Children's Family Services,Travelling Expenses,OYSTER BUS AUTOTOP,03/02/2016,6950,20
Children's Family Services,Travelling Expenses,OYSTER BUS AUTOTOP,03/08/2015,4860,20
Children's Family Services,Travelling Expenses,OYSTER BUS AUTOTOP,03/08/2015,4876,20
Children's Family Services,Travelling Expenses,OYSTER BUS AUTOTOP,03/12/2015,6256,20
Children's Family Services,Travelling Expenses,OYSTER BUS AUTOTOP,03/12/2015,6259,40
Children's Family Services,Travelling Expenses,OYSTER BUS AUTOTOP,04/01/2016,6557,20
Children's Family Services,Travelling Expenses,OYSTER BUS AUTOTOP,04/02/2016,6962,20
Children's Family Services,Travelling Expenses,OYSTER BUS AUTOTOP,04/06/2015,4145,20
Children's Family Services,Travelling Expenses,OYSTER BUS AUTOTOP,05/02/2016,6976,20
Children's Family Services,Travelling Expenses,OYSTER BUS AUTOTOP,05/10/2015,5537,20
Children's Family Services,Travelling Expenses,OYSTER BUS AUTOTOP,05/10/2015,5540,20
Children's Family Services,Travelling Expenses,OYSTER BUS AUTOTOP,05/10/2015,5546,20
Children's Family Services,Travelling Expenses,OYSTER BUS AUTOTOP,06/11/2015,5907,20
Children's Family Services,Travelling Expenses,OYSTER BUS AUTOTOP,06/11/2015,5909,20
Children's Family Services,Travelling Expenses,OYSTER BUS AUTOTOP,07/09/2015,5246,20
Children's Family Services,Travelling Expenses,OYSTER BUS AUTOTOP,07/09/2015,5252,20
Children's Family Services,Travelling Expenses,OYSTER BUS AUTOTOP,08/01/2016,6605,20
Children's Family Services,Travelling Expenses,OYSTER BUS AUTOTOP,08/02/2016,7001,20
Children's Family Services,Travelling Expenses,OYSTER BUS AUTOTOP,08/06/2015,4191,20
Children's Family Services,Travelling Expenses,OYSTER BUS AUTOTOP,08/06/2015,4192,40
Children's Family Services,Travelling Expenses,OYSTER BUS AUTOTOP,09/07/2015,4608,20
Children's Family Services,Travelling Expenses,OYSTER BUS AUTOTOP,09/07/2015,4613,20
Children's Family Services,Travelling Expenses,OYSTER BUS AUTOTOP,09/10/2015,5590,20
Children's Family Services,Travelling Expenses,OYSTER BUS AUTOTOP,10/07/2015,4622,20
Children's Family Services,Travelling Expenses,OYSTER BUS AUTOTOP,10/08/2015,4943,20
Children's Family Services,Travelling Expenses,OYSTER BUS AUTOTOP,10/08/2015,4949,20
Children's Family Services,Travelling Expenses,OYSTER BUS AUTOTOP,10/09/2015,5290,20
Children's Family Services,Travelling Expenses,OYSTER BUS AUTOTOP,11/01/2016,6622,20
Children's Family Services,Travelling Expenses,OYSTER BUS AUTOTOP,11/01/2016,6626,20
Children's Family Services,Travelling Expenses,OYSTER BUS AUTOTOP,11/01/2016,6630,20
Children's Family Services,Travelling Expenses,OYSTER BUS AUTOTOP,11/02/2016,7063,20
Children's Family Services,Travelling Expenses,OYSTER BUS AUTOTOP,11/03/2016,7416,20
Children's Family Services,Travelling Expenses,OYSTER BUS AUTOTOP,13/07/2015,4635,20
Children's Family Services,Travelling Expenses,OYSTER BUS AUTOTOP,13/07/2015,4636,20
Children's Family Services,Travelling Expenses,OYSTER BUS AUTOTOP,14/03/2016,7438,40
Children's Family Services,Travelling Expenses,OYSTER BUS AUTOTOP,14/09/2015,5313,20
Children's Family Services,Travelling Expenses,OYSTER BUS AUTOTOP,14/12/2015,6366,20
Children's Family Services,Travelling Expenses,OYSTER BUS AUTOTOP,14/12/2015,6374,20
Children's Family Services,Travelling Expenses,OYSTER BUS AUTOTOP,15/03/2016,7462,20
Children's Family Services,Travelling Expenses,OYSTER BUS AUTOTOP,15/06/2015,4288,40
Children's Family Services,Travelling Expenses,OYSTER BUS AUTOTOP,16/10/2015,5662,20
Children's Family Services,Travelling Expenses,OYSTER BUS AUTOTOP,16/10/2015,5664,20
Children's Family Services,Travelling Expenses,OYSTER BUS AUTOTOP,17/03/2016,7500,20
Children's Family Services,Travelling Expenses,OYSTER BUS AUTOTOP,17/08/2015,5024,20
Children's Family Services,Travelling Expenses,OYSTER BUS AUTOTOP,17/09/2015,5352,20
Children's Family Services,Travelling Expenses,OYSTER BUS AUTOTOP,17/11/2015,6043,20
Children's Family Services,Travelling Expenses,OYSTER BUS AUTOTOP,18/02/2016,7129,20
Children's Family Services,Travelling Expenses,OYSTER BUS AUTOTOP,18/05/2015,3138,20
Children's Family Services,Travelling Expenses,OYSTER BUS AUTOTOP,19/02/2016,7148,20
Children's Family Services,Travelling Expenses,OYSTER BUS AUTOTOP,19/11/2015,6072,20
Children's Family Services,Travelling Expenses,OYSTER BUS AUTOTOP,20/07/2015,4708,20
Children's Family Services,Travelling Expenses,OYSTER BUS AUTOTOP,20/11/2015,6084,40
Children's Family Services,Travelling Expenses,OYSTER BUS AUTOTOP,21/01/2016,6759,20
Children's Family Services,Travelling Expenses,OYSTER BUS AUTOTOP,21/01/2016,6760,20
Children's Family Services,Travelling Expenses,OYSTER BUS AUTOTOP,21/03/2016,7536,20
Children's Family Services,Travelling Expenses,OYSTER BUS AUTOTOP,21/07/2015,4716,20
Children's Family Services,Travelling Expenses,OYSTER BUS AUTOTOP,21/08/2015,5084,20
Children's Family Services,Travelling Expenses,OYSTER BUS AUTOTOP,21/09/2015,5380,20
Children's Family Services,Travelling Expenses,OYSTER BUS AUTOTOP,21/12/2015,6485,20
Children's Family Services,Travelling Expenses,OYSTER BUS AUTOTOP,22/01/2016,6770,20
Children's Family Services,Travelling Expenses,OYSTER BUS AUTOTOP,22/01/2016,6775,20
Children's Family Services,Travelling Expenses,OYSTER BUS AUTOTOP,22/01/2016,6776,40
Children's Family Services,Travelling Expenses,OYSTER BUS AUTOTOP,22/02/2016,7157,20
Children's Family Services,Travelling Expenses,OYSTER BUS AUTOTOP,22/06/2015,4379,20
Children's Family Services,Travelling Expenses,OYSTER BUS AUTOTOP,23/11/2015,6103,40
Children's Family Services,Travelling Expenses,OYSTER BUS AUTOTOP,23/11/2015,6112,20
Children's Family Services,Travelling Expenses,OYSTER BUS AUTOTOP,23/11/2015,6116,20
Children's Family Services,Travelling Expenses,OYSTER BUS AUTOTOP,24/03/2016,7578,20
Children's Family Services,Travelling Expenses,OYSTER BUS AUTOTOP,24/03/2016,7590,20
Children's Family Services,Travelling Expenses,OYSTER BUS AUTOTOP,24/08/2015,5098,20
Children's Family Services,Travelling Expenses,OYSTER BUS AUTOTOP,24/08/2015,5100,20
Children's Family Services,Travelling Expenses,OYSTER BUS AUTOTOP,24/08/2015,5109,20
Children's Family Services,Travelling Expenses,OYSTER BUS AUTOTOP,24/12/2015,6537,20
Children's Family Services,Travelling Expenses,OYSTER BUS AUTOTOP,25/01/2016,6799,20
Children's Family Services,Travelling Expenses,OYSTER BUS AUTOTOP,25/05/2015,3203,20
Children's Family Services,Travelling Expenses,OYSTER BUS AUTOTOP,25/05/2015,3210,20
Children's Family Services,Travelling Expenses,OYSTER BUS AUTOTOP,26/10/2015,5765,20
Children's Family Services,Travelling Expenses,OYSTER BUS AUTOTOP,26/10/2015,5767,20
Children's Family Services,Travelling Expenses,OYSTER BUS AUTOTOP,27/07/2015,4806,20
Children's Family Services,Travelling Expenses,OYSTER BUS AUTOTOP,28/01/2016,6850,20
Children's Family Services,Travelling Expenses,OYSTER BUS AUTOTOP,28/08/2015,5168,20
Children's Family Services,Travelling Expenses,OYSTER BUS AUTOTOP,28/08/2015,5170,20
Children's Family Services,Travelling Expenses,OYSTER BUS AUTOTOP,28/08/2015,5173,20
Children's Family Services,Travelling Expenses,OYSTER BUS AUTOTOP,28/09/2015,5452,20
Children's Family Services,Travelling Expenses,OYSTER BUS AUTOTOP,29/01/2016,6874,20
Children's Family Services,Travelling Expenses,OYSTER BUS AUTOTOP,29/02/2016,7254,20
Children's Family Services,Travelling Expenses,OYSTER BUS AUTOTOP,29/06/2015,4472,20
Children's Family Services,Travelling Expenses,OYSTER BUS AUTOTOP,30/10/2015,5817,20
Children's Family Services,Other Indirect Employee Expens,OYSTER ISSUE WEB,22/09/2015,5385,12.5
Children's Family Services,Travelling Expenses,OYSTER ISSUE WEB,05/08/2015,4895,25
Children's Family Services,Travelling Expenses,OYSTER ISSUE WEB,18/03/2016,7509,20.83
Children's Family Services,Travelling Expenses,OYSTER ISSUE WEB,18/03/2016,7510,20.83
Adults and Communities,Miscellaneous Expenses,OYSTER RENEW WEB,26/11/2015,6152,16.67
Children's Family Services,Equipment and Materials Purcha,OYSTER RENEW WEB,25/08/2015,5123,50
Children's Family Services,Other Indirect Employee Expens,OYSTER RENEW WEB,02/11/2015,5823,41.67
Children's Family Services,E19 - Learning Resources,PACEY COMMERCIAL SERVI,11/11/2015,5966,1.66
Children's Service DSG,Subscriptions,PACEY COMMERCIAL SERVI,25/01/2016,6801,80
Children's Family Services,Miscellaneous Expenses,PACK & SEND HARROW,12/08/2015,4965,459
Children's Family Services,Other Transfer Payments to Soc,PAK COSMETIC CENTR,03/03/2016,7322,3.99
Children's Family Services,Equipment and Materials Purcha,PANDORA BOOKS,17/09/2015,5349,223.33
Children's Family Services,Other Agencies - Third Party P,PAPA JOHNS,25/09/2015,5425,14.98
Children's Family Services,Stationery,PAPERSTONE,16/11/2015,6024,77.96
Children's Family Services,Food Costs,PARENTPAY.COM,15/05/2015,3117,20
Children's Family Services,Other Transfer Payments to Soc,PARENTPAY.COM,11/06/2015,4228,10
Children's Family Services,Travelling Expenses,PARKEON DEMO 45,23/11/2015,6109,3.2
Children's Education & Skills,Travelling Expenses,PARKING - OFFSTREE,20/10/2015,5694,0.6
Children's Education & Skills,Travelling Expenses,PARKING - OFFSTREE,22/09/2015,5393,1.4
Children's Education & Skills,Travelling Expenses,PARKING - ON-STREE,03/06/2015,3310,1.1
Children's Education & Skills,Travelling Expenses,PARKING - ON-STREE,14/10/2015,5633,2.1
Children's Family Services,Other Agencies - Third Party P,PARKINGEYE LTD,21/08/2015,5079,3.5
Children's Service DSG,Training,PARTICIPANT UK LIMITED,21/07/2015,4719,190
Children's Family Services,Books-CDs-Audio-Video,PARTRIDGE  PRINT000,21/05/2015,5776,154.6
Children's Family Services,Books-CDs-Audio-Video,PARTRIDGE & PRINT,05/11/2015,5886,855.5
Children's Family Services,Books-CDs-Audio-Video,PARTRIDGE & PRINT,20/01/2016,6737,204
Children's Service DSG,Training,PAYATRADER,28/05/2015,3250,584
Children's Family Services,Food Costs,PAYBYPHONE PARKING LB,24/06/2015,4422,2.67
Children's Family Services,Other Agencies - Third Party P,PAYBYPHONE PARKING LB,22/07/2015,4725,1
Children's Family Services,Other Agencies - Third Party P,PAYBYPHONE PARKING LB,24/09/2015,5411,4.29
Children's Education & Skills,Books-CDs-Audio-Video,PAYPAL  CLPE,03/06/2015,3308,25.35
Children's Education & Skills,Subscriptions,PAYPAL  CLPE,15/12/2015,6403,300
Children's Service DSG,Training,PAYPAL  CLPE,18/01/2016,6703,220
Children's Family Services,Training,PAYPAL  COMMUNITYBA,11/01/2016,6611,50
Children's Family Services,Other Services,PAYPAL  DDCFRANCIS,02/02/2016,6917,70
Children's Education & Skills,Equipment and Materials Purcha,PAYPAL  DENBYRETAIL,15/05/2015,3118,137.5
Children's Family Services,Training,PAYPAL  DEVELOPMENT,02/03/2016,7281,245.83
Children's Family Services,Miscellaneous Expenses,PAYPAL  EDKHAULAGEL,03/02/2016,6946,120
Children's Family Services,Miscellaneous Expenses,PAYPAL  EDKHAULAGEL,15/02/2016,7084,90
Children's Family Services,Miscellaneous Expenses,PAYPAL  EDKHAULAGEL,26/01/2016,6820,60
Children's Service DSG,Training,PAYPAL  EJARMANTLTD,02/11/2015,5842,35
Children's Family Services,Other Transfer Payments to Soc,PAYPAL  HONGKONGBAI,18/12/2015,6447,152.88
Children's Family Services,Equipment and Materials Purcha,PAYPAL  INTREPIDSEC,28/08/2015,5169,665
Children's Family Services,Other Services,PAYPAL  LEESCRIVENE,02/02/2016,6919,59.5
Children's Family Services,Other Services,PAYPAL  LEESCRIVENE,26/01/2016,6817,58.9
Children's Family Services,Other Transfer Payments to Soc,PAYPAL  LIVEMATHS,04/02/2016,6961,90
Children's Family Services,Training,PAYPAL  LOCALINFORM,30/10/2015,5816,199.95
Children's Family Services,Other Services,PAYPAL  LONDONFA,03/07/2015,4542,95
Children's Family Services,Other Services,PAYPAL  LONDONFA,17/11/2015,6045,60
Children's Family Services,Other Services,PAYPAL  LONDONFA,18/08/2015,5038,95
Children's Family Services,Travelling Expenses,PAYPAL  LOWCOSTTRAV,02/02/2016,6924,362.53
Children's Family Services,Equipment and Materials Purcha,PAYPAL  MEGASHOPUK,17/06/2015,4322,19.16
Commissioning,Equipment and Materials Purcha,PAYPAL  NADPO,11/11/2015,5968,104
Children's Service DSG,Training,PAYPAL  NAS UK,01/10/2015,5503,245
Commissioning,Conference Expenses,PAYPAL  NEWLOCALGOV,11/01/2016,6623,180
Children's Family Services,Equipment and Materials Purcha,PAYPAL  OPENANDUSE,08/02/2016,6990,12.5
Children's Family Services,Other Services,PAYPAL  SHAUNHAYWOO,20/01/2016,6750,55
Commissioning,Other Services,PAYPAL  SMN,16/11/2015,6017,145
Children's Family Services,Equipment and Materials Purcha,PAYPAL  WORKERSWORK,28/09/2015,5443,819.59
Children's Family Services,Equipment and Materials Purcha,PAYPAL  WORKERSWORK,30/07/2015,4839,961.8
Customer Support Group,Miscellaneous Expenses,PAYPAL  WORKERSWORK,27/08/2015,5143,181.8
Adults and Communities,Subscriptions,PAYPAL LOCALINFORM0,21/05/2015,5753,210
Children's Family Services,Equipment and Materials Purcha,PC WORLD ONLINE,24/08/2015,5089,7.99
Children's Family Services,Other Transfer Payments to Soc,PC WORLD ONLINE,15/12/2015,6385,123.32
Customer Support Group,Other Services,PEARSON ED LTD,11/12/2015,6350,63.5
Children's Family Services,Equipment and Materials Purcha,PEARSONS (ENFIELD),17/12/2015,6427,39.99
Children's Family Services,Printing-Contract,PELLTECH LTD,15/10/2015,5638,48.93
Children's Education & Skills,Training,PENTAGON,18/06/2015,4344,987.47
Children's Family Services,Miscellaneous Expenses,PETERBOROUGH DIRECT,10/02/2016,7047,44
Children's Family Services,Equipment and Materials Purcha,PETS AT HOME LTD,14/08/2015,5001,35
Children's Family Services,Equipment and Materials Purcha,PETS AT HOME LTD,23/09/2015,5402,106.87
Children's Service DSG,Equipment and Materials Purcha,PHONAK GROUP LTD,02/11/2015,5841,72
Children's Family Services,Food Costs,PINACLES RESTAURANT,02/07/2015,4508,6.9
Assurance,Equipment and Materials Purcha,PINKS SPIRES,08/07/2015,4584,50
Assurance,Grounds maintenance,PINKS SPIRES0000000,21/05/2015,5716,340
Children's Family Services,Other Agencies - Third Party P,PIZZA HUT 481,28/09/2015,5453,42.22
Children's Family Services,Food Costs,PIZZA HUT ONLINE WEB,24/09/2015,5418,28.73
Children's Education & Skills,Postage,POST OFFICE COUNTER,20/10/2015,5688,6.55
Children's Family Services,E19 - Learning Resources,POST OFFICE COUNTER,16/06/2015,4299,90
Children's Family Services,Education CFR Administrative S,POST OFFICE COUNTER,01/03/2016,7259,52.5
Children's Family Services,Education CFR Administrative S,POST OFFICE COUNTER,11/01/2016,6610,12.6
Children's Family Services,Education CFR Administrative S,POST OFFICE COUNTER,14/01/2016,6660,105
Children's Family Services,Education CFR Administrative S,POST OFFICE COUNTER,22/01/2016,6768,25.2
